extractdate,publisheruri,publisherlabel,serviceyypeuri,servicetypelabel,DATE OF TRANSACTION,LA DEPARTMENT INCURRING SPEND,BENEFICIARY,GROSS AMOUNT,SUMMARY OF PURPOSE OF SPEND,MERCHANT CATEGORY
29/07/2015,http://opendatacommunities.org/id/county-council/surrey,Surrey,http://id.esd.org.uk/service/1465,Council expenditure,29/03/2015,FAIRCROFT COMMUNITY HOME,WOKING BOROUGH COUNCIL,1.3,MISCELLANEOUS STAFF TRAVEL,AUTOMOBILE PARKING LOTS AND GARAGES
29/07/2015,http://opendatacommunities.org/id/county-council/surrey,Surrey,http://id.esd.org.uk/service/1465,Council expenditure,29/03/2015,FAIRCROFT COMMUNITY HOME,WOKING COUNCIL PARKING,2.6,MISCELLANEOUS STAFF TRAVEL,AUTOMOBILE PARKING LOTS AND GARAGES
29/07/2015,http://opendatacommunities.org/id/county-council/surrey,Surrey,http://id.esd.org.uk/service/1465,Council expenditure,29/03/2015,SURREY HEATH BOROUGH TEAM               ,"AMAZON SVCS EUROPE,SAR",569.65,EDUC VISITS/HOLS/CAMPS/TOYS,BOOK STORES
29/07/2015,http://opendatacommunities.org/id/county-council/surrey,Surrey,http://id.esd.org.uk/service/1465,Council expenditure,29/03/2015,FAIRCROFT COMMUNITY HOME,WOKING TURNSTYLE LTD,13.9,REFRESHMENT COSTS,"THEATRICAL PRODUCERS(EXCL MOTION PIX),TICKET AGNCY"
29/07/2015,http://opendatacommunities.org/id/county-council/surrey,Surrey,http://id.esd.org.uk/service/1465,Council expenditure,29/03/2015,CEO - PUBLIC HEALTH CAMPAIGNS           ,FACEBOOK 24JGR76AK2,24.75,PUBLICITY,ADVERTISING SERVICES
29/07/2015,http://opendatacommunities.org/id/county-council/surrey,Surrey,http://id.esd.org.uk/service/1465,Council expenditure,29/03/2015,CHILDREN'S RIGHTS TEAM,"AMAZON SVCS EUROPE,SAR",173.85,STATIONERY,BOOK STORES
29/07/2015,http://opendatacommunities.org/id/county-council/surrey,Surrey,http://id.esd.org.uk/service/1465,Council expenditure,29/03/2015,SOLD DAY TO DAY OPERATIONS,TESCO STORES 6999,27.34,EQUIPMENT,"GROCERY STORES, SUPERMARKETS"
29/07/2015,http://opendatacommunities.org/id/county-council/surrey,Surrey,http://id.esd.org.uk/service/1465,Council expenditure,29/03/2015,CEO - PUBLIC HEALTH CAMPAIGNS           ,FACEBOOK FLBLV7S2S2,1.75,PUBLICITY,ADVERTISING SERVICES
29/07/2015,http://opendatacommunities.org/id/county-council/surrey,Surrey,http://id.esd.org.uk/service/1465,Council expenditure,29/03/2015,IMT PRODUCTION APPLICATIONS TEAM,RACKSPACE EMAIL & APPS,55.21,COMPUTER SERVICES,COMPUTER NETWORK/INFORMATION SERVICES
29/07/2015,http://opendatacommunities.org/id/county-council/surrey,Surrey,http://id.esd.org.uk/service/1465,Council expenditure,29/03/2015,TRANSPORT,AMAZON UK RETAIL,15.88,STATIONERY,DIRECT MARKETING-OTHER DIRECT MARKETERS/NOT ELSEW.
29/07/2015,http://opendatacommunities.org/id/county-council/surrey,Surrey,http://id.esd.org.uk/service/1465,Council expenditure,29/03/2015,YOUTH ENGAGEMENT CONTRACT,"AMAZON SVCS EUROPE,SAR",69.95,EQUIPMENT,BOOK STORES
29/07/2015,http://opendatacommunities.org/id/county-council/surrey,Surrey,http://id.esd.org.uk/service/1465,Council expenditure,29/03/2015,FAIRCROFT COMMUNITY HOME,ATG TICKETS,26,EDUC VISITS/HOLS/CAMPS/TOYS,"THEATRICAL PRODUCERS(EXCL MOTION PIX),TICKET AGNCY"
29/07/2015,http://opendatacommunities.org/id/county-council/surrey,Surrey,http://id.esd.org.uk/service/1465,Council expenditure,29/03/2015,FAIRCROFT COMMUNITY HOME,HOBBYCRAFT,5,EDUC VISITS/HOLS/CAMPS/TOYS,"ARTIST SUPPLY STORES, CRAFT SHOPS"
29/07/2015,http://opendatacommunities.org/id/county-council/surrey,Surrey,http://id.esd.org.uk/service/1465,Council expenditure,29/03/2015,LIBERTAS COMMUNITY HOME,LORO PARQUE,114.1,EDUC VISITS/HOLS/CAMPS/TOYS,"THEATRICAL PRODUCERS(EXCL MOTION PIX),TICKET AGNCY"
29/07/2015,http://opendatacommunities.org/id/county-council/surrey,Surrey,http://id.esd.org.uk/service/1465,Council expenditure,29/03/2015,LIBERTAS COMMUNITY HOME,BEACH CLUB RESTAURANTE,12.08,PURCHASE OF FOOD (RAW MATERIALS),"EATING PLACES, RESTAURANTS"
29/07/2015,http://opendatacommunities.org/id/county-council/surrey,Surrey,http://id.esd.org.uk/service/1465,Council expenditure,29/03/2015,OCCUPATIONAL HEALTH,"AMAZON SVCS EUROPE,SAR",234.84,EQUIPMENT,BOOK STORES
29/07/2015,http://opendatacommunities.org/id/county-council/surrey,Surrey,http://id.esd.org.uk/service/1465,Council expenditure,29/03/2015,BOOKS - ADULT FICTION                   ,AMAZON UK RETAIL,9.99,LIBRARY RESOURCES,DIRECT MARKETING-OTHER DIRECT MARKETERS/NOT ELSEW.
29/07/2015,http://opendatacommunities.org/id/county-council/surrey,Surrey,http://id.esd.org.uk/service/1465,Council expenditure,29/03/2015,FOSTERING SERVICE CENTRAL COSTS,AMAZON UK RETAIL,374.59,BOOKS,DIRECT MARKETING-OTHER DIRECT MARKETERS/NOT ELSEW.
29/07/2015,http://opendatacommunities.org/id/county-council/surrey,Surrey,http://id.esd.org.uk/service/1465,Council expenditure,29/03/2015,LIBERTAS COMMUNITY HOME,BEACH CLUB RESTAURANTE,70.41,PURCHASE OF FOOD (RAW MATERIALS),"EATING PLACES, RESTAURANTS"
29/07/2015,http://opendatacommunities.org/id/county-council/surrey,Surrey,http://id.esd.org.uk/service/1465,Council expenditure,29/03/2015,CEO - PUBLIC HEALTH CAMPAIGNS           ,GOOGLE  ADWS2060179426,500,PUBLICITY,DIRECT MARKETING-CONTINUITY/SUBSCRIPTION MERCHANTS
29/07/2015,http://opendatacommunities.org/id/county-council/surrey,Surrey,http://id.esd.org.uk/service/1465,Council expenditure,29/03/2015,CHEYNE WALK COMMUNITY HOME,SAINSBURYS TO YOU 0026,169.23,PURCHASE OF FOOD (RAW MATERIALS),"GROCERY STORES, SUPERMARKETS"
29/07/2015,http://opendatacommunities.org/id/county-council/surrey,Surrey,http://id.esd.org.uk/service/1465,Council expenditure,29/03/2015,LIBERTAS COMMUNITY HOME,TAQUILLA LORO PARQUE,233.86,EDUC VISITS/HOLS/CAMPS/TOYS,MOTION PICTURE THEATERS
29/07/2015,http://opendatacommunities.org/id/county-council/surrey,Surrey,http://id.esd.org.uk/service/1465,Council expenditure,29/03/2015,LIBERTAS COMMUNITY HOME,BEACH CLUB RESTAURANT,12.08,PURCHASE OF FOOD (RAW MATERIALS),"EATING PLACES, RESTAURANTS"
29/07/2015,http://opendatacommunities.org/id/county-council/surrey,Surrey,http://id.esd.org.uk/service/1465,Council expenditure,29/03/2015,SOLD DAY TO DAY OPERATIONS,SHELL HOP OAST 112,8.4,EQUIPMENT,SERVICE STATIONS WITH OR WITHOUT ANCILLARY SERVICE
29/07/2015,http://opendatacommunities.org/id/county-council/surrey,Surrey,http://id.esd.org.uk/service/1465,Council expenditure,29/03/2015,YOUTH ENGAGEMENT CONTRACT,"AMAZON SVCS EUROPE,SAR",13.99,EQUIPMENT,BOOK STORES
29/07/2015,http://opendatacommunities.org/id/county-council/surrey,Surrey,http://id.esd.org.uk/service/1465,Council expenditure,30/03/2015,PRIMARY EDUCATION TRANSPORT,HALFORDS ON LINE,149,EQUIPMENT,BICYCLE SHOPS-SALES AND SERVICE
29/07/2015,http://opendatacommunities.org/id/county-council/surrey,Surrey,http://id.esd.org.uk/service/1465,Council expenditure,30/03/2015,PRIMARY EDUCATION TRANSPORT,HALFORDS ON LINE,4.99,EQUIPMENT,BICYCLE SHOPS-SALES AND SERVICE
29/07/2015,http://opendatacommunities.org/id/county-council/surrey,Surrey,http://id.esd.org.uk/service/1465,Council expenditure,30/03/2015,SERVICE DELIVERY RESOURCES,PARMA INDUSTRIES,19.8,CLEANING MATERIALS,MOTOR VEHICLE SUPPLIES AND NEW PARTS
29/07/2015,http://opendatacommunities.org/id/county-council/surrey,Surrey,http://id.esd.org.uk/service/1465,Council expenditure,30/03/2015,TRANSPORT,DABS COM PLC,145.41,COMPUTER HARDWARE,"COMPUTERS, COMPUTER PERIPHERAL EQUIPMENT, SOFTWARE"
29/07/2015,http://opendatacommunities.org/id/county-council/surrey,Surrey,http://id.esd.org.uk/service/1465,Council expenditure,30/03/2015,EXTENDED HOURS SREVICE,ASDA HOME SHOPPING,-8,PURCHASE OF FOOD (RAW MATERIALS),"GROCERY STORES, SUPERMARKETS"
29/07/2015,http://opendatacommunities.org/id/county-council/surrey,Surrey,http://id.esd.org.uk/service/1465,Council expenditure,30/03/2015,KARIBU COMMUNITY HOME,LEATHERHEAD SERVICE ST,23.48,PURCHASE OF FOOD (RAW MATERIALS),SERVICE STATIONS WITH OR WITHOUT ANCILLARY SERVICE
29/07/2015,http://opendatacommunities.org/id/county-council/surrey,Surrey,http://id.esd.org.uk/service/1465,Council expenditure,30/03/2015,LIBERTAS COMMUNITY HOME,RTE. Y BARES LITORAL B,61.13,PURCHASE OF FOOD (RAW MATERIALS),"LODGING-HOTELS,MOTELS,RESORTS-NOT CLASSIFIED"
29/07/2015,http://opendatacommunities.org/id/county-council/surrey,Surrey,http://id.esd.org.uk/service/1465,Council expenditure,30/03/2015,MALLOW CRESCENT,TESCO STORE 2590,82.04,PURCHASE OF FOOD (RAW MATERIALS),"GROCERY STORES, SUPERMARKETS"
29/07/2015,http://opendatacommunities.org/id/county-council/surrey,Surrey,http://id.esd.org.uk/service/1465,Council expenditure,30/03/2015,COUNTY HALL,FIESTA FURNITURE L,"2,652.32",ADAPTATIONS,"EQUIP, FURNITURE, HOME FURNSHNGS STRS (EXCPT APPL)"
29/07/2015,http://opendatacommunities.org/id/county-council/surrey,Surrey,http://id.esd.org.uk/service/1465,Council expenditure,30/03/2015,EXTENDED HOURS SREVICE,ASDA HOME SHOPPING,51.21,PURCHASE OF FOOD (RAW MATERIALS),"GROCERY STORES, SUPERMARKETS"
29/07/2015,http://opendatacommunities.org/id/county-council/surrey,Surrey,http://id.esd.org.uk/service/1465,Council expenditure,30/03/2015,NE CARE - CP & COURT LAC,THE DORSET HOTEL,45,CHILDREN ACT SEC 17 PAYMENTS,"LODGING-HOTELS,MOTELS,RESORTS-NOT CLASSIFIED"
29/07/2015,http://opendatacommunities.org/id/county-council/surrey,Surrey,http://id.esd.org.uk/service/1465,Council expenditure,30/03/2015,YOUTH ENGAGEMENT CONTRACT,"AMAZON SVCS EUROPE,SAR",16.59,EQUIPMENT,BOOK STORES
29/07/2015,http://opendatacommunities.org/id/county-council/surrey,Surrey,http://id.esd.org.uk/service/1465,Council expenditure,30/03/2015,OCCUPATIONAL HEALTH,"AMAZON SVCS EUROPE,SAR",-138.6,EQUIPMENT,BOOK STORES
29/07/2015,http://opendatacommunities.org/id/county-council/surrey,Surrey,http://id.esd.org.uk/service/1465,Council expenditure,30/03/2015,LOCAL ASSISTANCE SCHEME,WWW.DIVANCENTRE.CO.UK,75.05,FURNITURE,"EQUIP, FURNITURE, HOME FURNSHNGS STRS (EXCPT APPL)"
29/07/2015,http://opendatacommunities.org/id/county-council/surrey,Surrey,http://id.esd.org.uk/service/1465,Council expenditure,30/03/2015,TRAINING AND DEVELOPMENT,WWW.BABCOCK.CO.UK,"1,791.96",TRAINING EXPENSES EXTERNAL GENERAL,"COLLEGES, UNIV, PRO SCHOOLS, JUNIOR COLLEGES"
29/07/2015,http://opendatacommunities.org/id/county-council/surrey,Surrey,http://id.esd.org.uk/service/1465,Council expenditure,30/03/2015,OCCUPATIONAL HEALTH,JOHNSON HEALTH TECH UK,"1,740.00",EQUIPMENT,SPORTING GOODS STORES
29/07/2015,http://opendatacommunities.org/id/county-council/surrey,Surrey,http://id.esd.org.uk/service/1465,Council expenditure,30/03/2015,YOUTH ENGAGEMENT CONTRACT,AMAZON UK RETAIL,105.27,EQUIPMENT,DIRECT MARKETING-OTHER DIRECT MARKETERS/NOT ELSEW.
29/07/2015,http://opendatacommunities.org/id/county-council/surrey,Surrey,http://id.esd.org.uk/service/1465,Council expenditure,30/03/2015,LEAVING CARE PACKAGES,PP HILLCROFTCO,20,CURRICULUM CONSUMABLES,"ORGANIZATIONS, CHARITABLE AND SOCIAL SERVICES"
29/07/2015,http://opendatacommunities.org/id/county-council/surrey,Surrey,http://id.esd.org.uk/service/1465,Council expenditure,30/03/2015,YOUTH ENGAGEMENT CONTRACT,AMAZON UK RETAIL,105.26,EQUIPMENT,DIRECT MARKETING-OTHER DIRECT MARKETERS/NOT ELSEW.
29/07/2015,http://opendatacommunities.org/id/county-council/surrey,Surrey,http://id.esd.org.uk/service/1465,Council expenditure,30/03/2015,N REGIONAL STAFF,PAC,168,EQUIPMENT,SPORTING GOODS STORES
29/07/2015,http://opendatacommunities.org/id/county-council/surrey,Surrey,http://id.esd.org.uk/service/1465,Council expenditure,30/03/2015,CHILDREN'S RIGHTS TEAM,PLAYZONE,310,VENUE COSTS (INCLUDING HIRE OF ROOMS),"AMUSEMENT PARKS,CARNIVALS,CIRCUS,FORTUNE TELLERS"
29/07/2015,http://opendatacommunities.org/id/county-council/surrey,Surrey,http://id.esd.org.uk/service/1465,Council expenditure,30/03/2015,HOPE SERVICE - WEST,SAINSBURYS SACAT(4409),17.1,PURCHASE OF FOOD (RAW MATERIALS),"GROCERY STORES, SUPERMARKETS"
29/07/2015,http://opendatacommunities.org/id/county-council/surrey,Surrey,http://id.esd.org.uk/service/1465,Council expenditure,30/03/2015,PE/CDT MAINTENANCE OVERHEADS,MACHINE MART/INTER,38.03,EQUIPMENT,"EQUIPMENT RENTAL&LEASING SVS, FURNTURE/TOOL RENTAL"
29/07/2015,http://opendatacommunities.org/id/county-council/surrey,Surrey,http://id.esd.org.uk/service/1465,Council expenditure,30/03/2015,RUTH HOUSE,SAINSBURYS TO YOU 0686,67.55,PURCHASE OF FOOD (RAW MATERIALS),"GROCERY STORES, SUPERMARKETS"
29/07/2015,http://opendatacommunities.org/id/county-council/surrey,Surrey,http://id.esd.org.uk/service/1465,Council expenditure,30/03/2015,RUTH HOUSE,SAINSBURYS TO YOU 0686,201.75,PURCHASE OF FOOD (RAW MATERIALS),"GROCERY STORES, SUPERMARKETS"
29/07/2015,http://opendatacommunities.org/id/county-council/surrey,Surrey,http://id.esd.org.uk/service/1465,Council expenditure,30/03/2015,SURREY ARTS OPEN STUDIOS,KREMER SIGNS,592.04,EQUIPMENT,MISCELLANEOUS PUBLISHING AND PRINTING
29/07/2015,http://opendatacommunities.org/id/county-council/surrey,Surrey,http://id.esd.org.uk/service/1465,Council expenditure,30/03/2015,HEAD OF SERVICES FOR YOUNG PEOPLE,EAST MIDLANDS,32.5,MISCELLANEOUS STAFF TRAVEL,PASSENGER RAILWAYS
29/07/2015,http://opendatacommunities.org/id/county-council/surrey,Surrey,http://id.esd.org.uk/service/1465,Council expenditure,30/03/2015,YOUTH ENGAGEMENT CONTRACT,"AMAZON SVCS EUROPE,SAR",54.84,EQUIPMENT,BOOK STORES
29/07/2015,http://opendatacommunities.org/id/county-council/surrey,Surrey,http://id.esd.org.uk/service/1465,Council expenditure,30/03/2015,EXTENDED HOURS SREVICE,"AMAZON SVCS EUROPE,SAR",15.9,EDUC VISITS/HOLS/CAMPS/TOYS,BOOK STORES
29/07/2015,http://opendatacommunities.org/id/county-council/surrey,Surrey,http://id.esd.org.uk/service/1465,Council expenditure,30/03/2015,FAIRCROFT COMMUNITY HOME,FREEDOM LEISURE,27.6,EDUC VISITS/HOLS/CAMPS/TOYS,GOVERNMENT SERVICES-NOT ELSEWHERE CLASSIFIED
29/07/2015,http://opendatacommunities.org/id/county-council/surrey,Surrey,http://id.esd.org.uk/service/1465,Council expenditure,30/03/2015,IMT CRITICAL ENVIRONMENTS,AMAZON UK RETAIL,29.83,REFRESHMENT COSTS,DIRECT MARKETING-OTHER DIRECT MARKETERS/NOT ELSEW.
29/07/2015,http://opendatacommunities.org/id/county-council/surrey,Surrey,http://id.esd.org.uk/service/1465,Council expenditure,30/03/2015,BURBANK COMMUNITY HOME,ASDA  STORES 4775,12,"CLOTHING, UNIFORM AND LAUNDRY","GROCERY STORES, SUPERMARKETS"
29/07/2015,http://opendatacommunities.org/id/county-council/surrey,Surrey,http://id.esd.org.uk/service/1465,Council expenditure,30/03/2015,HOPE SERVICE - EAST,SAINSBURYS 0683,175.1,PURCHASE OF FOOD (RAW MATERIALS),"GROCERY STORES, SUPERMARKETS"
29/07/2015,http://opendatacommunities.org/id/county-council/surrey,Surrey,http://id.esd.org.uk/service/1465,Council expenditure,30/03/2015,LIBERTAS COMMUNITY HOME,SAINSBURYS 0652,121.89,PURCHASE OF FOOD (RAW MATERIALS),"GROCERY STORES, SUPERMARKETS"
29/07/2015,http://opendatacommunities.org/id/county-council/surrey,Surrey,http://id.esd.org.uk/service/1465,Council expenditure,30/03/2015,LOWER MOLE COUNTRYSIDE PROJECT,TESCO STORES 6320,19.44,POSTAGE AND COURIER CHARGES,"GROCERY STORES, SUPERMARKETS"
29/07/2015,http://opendatacommunities.org/id/county-council/surrey,Surrey,http://id.esd.org.uk/service/1465,Council expenditure,30/03/2015,SE CARE - LAC,SURREY CC CARD PAY,21,CHILDREN ACT SEC 17 PAYMENTS,COMPUTER NETWORK/INFORMATION SERVICES
29/07/2015,http://opendatacommunities.org/id/county-council/surrey,Surrey,http://id.esd.org.uk/service/1465,Council expenditure,30/03/2015,HILLSIDE,SAINSBURYS 0675,58.95,PURCHASE OF FOOD (RAW MATERIALS),"GROCERY STORES, SUPERMARKETS"
29/07/2015,http://opendatacommunities.org/id/county-council/surrey,Surrey,http://id.esd.org.uk/service/1465,Council expenditure,30/03/2015,HILLSIDE,SAINSBURYS 0675,12,PURCHASE OF FOOD (RAW MATERIALS),"GROCERY STORES, SUPERMARKETS"
29/07/2015,http://opendatacommunities.org/id/county-council/surrey,Surrey,http://id.esd.org.uk/service/1465,Council expenditure,30/03/2015,LOWER MOLE COUNTRYSIDE PROJECT,SAINSBURYS 0683,12.35,REFRESHMENT COSTS,"GROCERY STORES, SUPERMARKETS"
29/07/2015,http://opendatacommunities.org/id/county-council/surrey,Surrey,http://id.esd.org.uk/service/1465,Council expenditure,30/03/2015,LIBERTAS COMMUNITY HOME,E.S.OROTIANDA,16.86,EDUC VISITS/HOLS/CAMPS/TOYS,SERVICE STATIONS WITH OR WITHOUT ANCILLARY SERVICE
29/07/2015,http://opendatacommunities.org/id/county-council/surrey,Surrey,http://id.esd.org.uk/service/1465,Council expenditure,30/03/2015,LIBERTAS COMMUNITY HOME,WICKES,24.99,DAY TO DAY MAINTENANCE,"BUILDING MATERIALS, LUMBER STORES"
29/07/2015,http://opendatacommunities.org/id/county-council/surrey,Surrey,http://id.esd.org.uk/service/1465,Council expenditure,30/03/2015,YOUTH ENGAGEMENT CONTRACT,AMAZON UK RETAIL,105.26,EQUIPMENT,DIRECT MARKETING-OTHER DIRECT MARKETERS/NOT ELSEW.
29/07/2015,http://opendatacommunities.org/id/county-council/surrey,Surrey,http://id.esd.org.uk/service/1465,Council expenditure,30/03/2015,LEAVING CARE PACKAGES,THE LETTING CO UK LTD,474.3,INDEPENDENT LIVING PLACEMENTS,PROFESSIONAL SERVICES-NOT ELSEWHERE CLASSIFIED
29/07/2015,http://opendatacommunities.org/id/county-council/surrey,Surrey,http://id.esd.org.uk/service/1465,Council expenditure,30/03/2015,FINANCIAL STRATEGY & REPORTING TEAM,COMPANIES HOUSE,-1,FEES,GOVERNMENT SERVICES-NOT ELSEWHERE CLASSIFIED
29/07/2015,http://opendatacommunities.org/id/county-council/surrey,Surrey,http://id.esd.org.uk/service/1465,Council expenditure,30/03/2015,HERITAGE PARTNERSHIP AND LEARNING,PAYPAL  VOODOOCHILL,150,COMPUTER SERVICES,"COMMERCIAL ART, GRAPHICS, PHOTOGRAPHY"
29/07/2015,http://opendatacommunities.org/id/county-council/surrey,Surrey,http://id.esd.org.uk/service/1465,Council expenditure,30/03/2015,OCCUPATIONAL HEALTH,"AMAZON SVCS EUROPE,SAR",138.6,EQUIPMENT,BOOK STORES
29/07/2015,http://opendatacommunities.org/id/county-council/surrey,Surrey,http://id.esd.org.uk/service/1465,Council expenditure,30/03/2015,PROPERTY OPERATIONS TEAM,B & Q,7.69,PURCHASE OF BUILDING MATERIALS,"BUILDING MATERIALS, LUMBER STORES"
29/07/2015,http://opendatacommunities.org/id/county-council/surrey,Surrey,http://id.esd.org.uk/service/1465,Council expenditure,30/03/2015,YOUTH ENGAGEMENT CONTRACT,AMAZON UK RETAIL,105.26,EQUIPMENT,DIRECT MARKETING-OTHER DIRECT MARKETERS/NOT ELSEW.
29/07/2015,http://opendatacommunities.org/id/county-council/surrey,Surrey,http://id.esd.org.uk/service/1465,Council expenditure,30/03/2015,LOCAL PREVENTION FRAMEWORK - TANDRIDGE,WWW.POSTOFFICE.CO.UK,7.5,CURRICULUM CONSUMABLES,POSTAL SERVICES-GOVERNMENT ONLY
29/07/2015,http://opendatacommunities.org/id/county-council/surrey,Surrey,http://id.esd.org.uk/service/1465,Council expenditure,30/03/2015,LOCAL PREVENTION FRAMEWORK - TANDRIDGE,BEAVER WATERSCAPES LTD,7,CURRICULUM CONSUMABLES,SPORTING GOODS STORES
29/07/2015,http://opendatacommunities.org/id/county-council/surrey,Surrey,http://id.esd.org.uk/service/1465,Council expenditure,30/03/2015,LOWER MOLE COUNTRYSIDE PROJECT,WICKES,43.35,PURCHASE OF BUILDING MATERIALS,"BUILDING MATERIALS, LUMBER STORES"
29/07/2015,http://opendatacommunities.org/id/county-council/surrey,Surrey,http://id.esd.org.uk/service/1465,Council expenditure,30/03/2015,YOUTH ENGAGEMENT CONTRACT,"AMAZON SVCS EUROPE,SAR",19.5,EQUIPMENT,BOOK STORES
29/07/2015,http://opendatacommunities.org/id/county-council/surrey,Surrey,http://id.esd.org.uk/service/1465,Council expenditure,30/03/2015,HILLSIDE,SAINSBURYS 0784,34.71,PURCHASE OF FOOD (RAW MATERIALS),"GROCERY STORES, SUPERMARKETS"
29/07/2015,http://opendatacommunities.org/id/county-council/surrey,Surrey,http://id.esd.org.uk/service/1465,Council expenditure,30/03/2015,SOUTH EAST AREA TEAM,FREEDOM LEISURE,114,EDUC VISITS/HOLS/CAMPS/TOYS,RECREATION SERVICES (NOT ELSEWHERE CLASSIFIED)
29/07/2015,http://opendatacommunities.org/id/county-council/surrey,Surrey,http://id.esd.org.uk/service/1465,Council expenditure,30/03/2015,WAVERLEY BOROUGH TEAM                   ,HEALTH EDCO,552.9,EDUC VISITS/HOLS/CAMPS/TOYS,"HEALTH PRACTITIONERS, MEDICAL SRVCS-NOT ELSEWHERE"
29/07/2015,http://opendatacommunities.org/id/county-council/surrey,Surrey,http://id.esd.org.uk/service/1465,Council expenditure,30/03/2015,YOUTH ENGAGEMENT CONTRACT,AMAZON UK RETAIL,105.27,EQUIPMENT,DIRECT MARKETING-OTHER DIRECT MARKETERS/NOT ELSEW.
29/07/2015,http://opendatacommunities.org/id/county-council/surrey,Surrey,http://id.esd.org.uk/service/1465,Council expenditure,30/03/2015,ARUNDEL,ASDA SUPERSTORE,14.67,REFRESHMENT COSTS,"GROCERY STORES, SUPERMARKETS"
29/07/2015,http://opendatacommunities.org/id/county-council/surrey,Surrey,http://id.esd.org.uk/service/1465,Council expenditure,30/03/2015,YOUTH ENGAGEMENT CONTRACT,AMAZON UK RETAIL,105.26,EQUIPMENT,DIRECT MARKETING-OTHER DIRECT MARKETERS/NOT ELSEW.
29/07/2015,http://opendatacommunities.org/id/county-council/surrey,Surrey,http://id.esd.org.uk/service/1465,Council expenditure,30/03/2015,MALLOW CRESCENT,FAST KEY SERVICES,6.72,EQUIPMENT,BUSINESS SERVICES-NOT ELSEWHERE CLASSIFIED
29/07/2015,http://opendatacommunities.org/id/county-council/surrey,Surrey,http://id.esd.org.uk/service/1465,Council expenditure,30/03/2015,DOWNLANDS COUNTRYSIDE PROJECT,TESCO STORES,47.56,REFRESHMENT COSTS,"GROCERY STORES, SUPERMARKETS"
29/07/2015,http://opendatacommunities.org/id/county-council/surrey,Surrey,http://id.esd.org.uk/service/1465,Council expenditure,30/03/2015,IMT TECHNICAL DELIVERY,"AMAZON SVCS EUROPE,SAR",57.95,COMPUTER HARDWARE,BOOK STORES
29/07/2015,http://opendatacommunities.org/id/county-council/surrey,Surrey,http://id.esd.org.uk/service/1465,Council expenditure,30/03/2015,SOLD ESTATES MANAGEMENT,UKFLOORINGDIRECT.C,449.95,DAY TO DAY MAINTENANCE,FLOOR COVERING STORES
29/07/2015,http://opendatacommunities.org/id/county-council/surrey,Surrey,http://id.esd.org.uk/service/1465,Council expenditure,30/03/2015,COUNTY HALL,WICKES BUILDING,29.33,DAY TO DAY MAINTENANCE,"BUILDING MATERIALS, LUMBER STORES"
29/07/2015,http://opendatacommunities.org/id/county-council/surrey,Surrey,http://id.esd.org.uk/service/1465,Council expenditure,30/03/2015,COUNTY HALL,JCM LOCKSMITHS LTD,138.6,DAY TO DAY MAINTENANCE,HARDWARE STORES
29/07/2015,http://opendatacommunities.org/id/county-council/surrey,Surrey,http://id.esd.org.uk/service/1465,Council expenditure,30/03/2015,TRANSPORT,"AMAZON SVCS EUROPE,SAR",37.1,COMPUTER CONSUMABLES,BOOK STORES
29/07/2015,http://opendatacommunities.org/id/county-council/surrey,Surrey,http://id.esd.org.uk/service/1465,Council expenditure,30/03/2015,BURBANK COMMUNITY HOME,LONDIS,4.99,PURCHASE OF FOOD (RAW MATERIALS),"GROCERY STORES, SUPERMARKETS"
29/07/2015,http://opendatacommunities.org/id/county-council/surrey,Surrey,http://id.esd.org.uk/service/1465,Council expenditure,30/03/2015,GYC WORKSHOPS                           ,PRINTED.COM,168.65,PRINTING,"QUICK COPY,REPRODUCTION AND BLUEPRINTING SERVICES"
29/07/2015,http://opendatacommunities.org/id/county-council/surrey,Surrey,http://id.esd.org.uk/service/1465,Council expenditure,30/03/2015,BURBANK COMMUNITY HOME,WWW.DVLA.GOV.UK,32.5,VEHICLE REPAIRS AND MAINTENANCE,GOVERNMENT SERVICES-NOT ELSEWHERE CLASSIFIED
29/07/2015,http://opendatacommunities.org/id/county-council/surrey,Surrey,http://id.esd.org.uk/service/1465,Council expenditure,30/03/2015,PROPERTY OPERATIONS TEAM,WICKES,11.99,PURCHASE OF BUILDING MATERIALS,"BUILDING MATERIALS, LUMBER STORES"
29/07/2015,http://opendatacommunities.org/id/county-council/surrey,Surrey,http://id.esd.org.uk/service/1465,Council expenditure,30/03/2015,LIBERTAS COMMUNITY HOME,IMPORTACIONES MAGA,188.84,HIRE OF VEHICLES,TRAVEL AGENCIES AND TOUR OPERATORS
29/07/2015,http://opendatacommunities.org/id/county-council/surrey,Surrey,http://id.esd.org.uk/service/1465,Council expenditure,30/03/2015,KARIBU COMMUNITY HOME,STARBUCKS,7.4,PURCHASE OF FOOD (RAW MATERIALS),FAST FOOD RESTAURANTS
29/07/2015,http://opendatacommunities.org/id/county-council/surrey,Surrey,http://id.esd.org.uk/service/1465,Council expenditure,30/03/2015,YOUTH ENGAGEMENT CONTRACT,AMAZON UK RETAIL,227.42,EQUIPMENT,DIRECT MARKETING-OTHER DIRECT MARKETERS/NOT ELSEW.
29/07/2015,http://opendatacommunities.org/id/county-council/surrey,Surrey,http://id.esd.org.uk/service/1465,Council expenditure,30/03/2015,YOUTH ENGAGEMENT CONTRACT,AMAZON UK RETAIL,26.37,EQUIPMENT,DIRECT MARKETING-OTHER DIRECT MARKETERS/NOT ELSEW.
29/07/2015,http://opendatacommunities.org/id/county-council/surrey,Surrey,http://id.esd.org.uk/service/1465,Council expenditure,30/03/2015,CEO - PUBLIC HEALTH CAMPAIGNS           ,FACEBOOK 85PPX7JAK2,24.75,PUBLICITY,ADVERTISING SERVICES
29/07/2015,http://opendatacommunities.org/id/county-council/surrey,Surrey,http://id.esd.org.uk/service/1465,Council expenditure,30/03/2015,FOSTERING SERVICE CENTRAL COSTS,AMAZON UK RETAIL,59.84,BOOKS,DIRECT MARKETING-OTHER DIRECT MARKETERS/NOT ELSEW.
29/07/2015,http://opendatacommunities.org/id/county-council/surrey,Surrey,http://id.esd.org.uk/service/1465,Council expenditure,31/03/2015,COUNTY HALL,WWW.ARCO.CO.UK,881.28,EQUIPMENT,INDUSTRIAL SUPPLIES NOT ELSEWHERE CLASSIFIED
29/07/2015,http://opendatacommunities.org/id/county-council/surrey,Surrey,http://id.esd.org.uk/service/1465,Council expenditure,31/03/2015,COVEHAM,TV LICENSING,145.5,LICENCE FEES,"CONSULTING, MANAGEMENT, AND PUBLIC RELATIONS SVCS"
29/07/2015,http://opendatacommunities.org/id/county-council/surrey,Surrey,http://id.esd.org.uk/service/1465,Council expenditure,31/03/2015,SW CARE - LAC,TRAVELODGE WEBSITE,50.95,CHILDREN ACT SEC 17 PAYMENTS,TRAVELODGE
29/07/2015,http://opendatacommunities.org/id/county-council/surrey,Surrey,http://id.esd.org.uk/service/1465,Council expenditure,31/03/2015,LEAVING CARE PACKAGES,TRAVELODGE WEBSITE,388.9,3RD PARTY PAYMENTS PRIVATE INDIV,TRAVELODGE
29/07/2015,http://opendatacommunities.org/id/county-council/surrey,Surrey,http://id.esd.org.uk/service/1465,Council expenditure,31/03/2015,YOUTH ENGAGEMENT CONTRACT,"AMAZON SVCS EUROPE,SAR",28.91,EQUIPMENT,BOOK STORES
29/07/2015,http://opendatacommunities.org/id/county-council/surrey,Surrey,http://id.esd.org.uk/service/1465,Council expenditure,31/03/2015,TRANSPORT,"AMAZON SVCS EUROPE,SAR",23.7,DAY TO DAY MAINTENANCE,BOOK STORES
29/07/2015,http://opendatacommunities.org/id/county-council/surrey,Surrey,http://id.esd.org.uk/service/1465,Council expenditure,31/03/2015,CHEYNE WALK COMMUNITY HOME,AMAZON UK RETAIL,7.54,EQUIPMENT,DIRECT MARKETING-OTHER DIRECT MARKETERS/NOT ELSEW.
29/07/2015,http://opendatacommunities.org/id/county-council/surrey,Surrey,http://id.esd.org.uk/service/1465,Council expenditure,31/03/2015,CHEYNE WALK COMMUNITY HOME,"AMAZON SVCS EUROPE,SAR",25.97,EQUIPMENT,BOOK STORES
29/07/2015,http://opendatacommunities.org/id/county-council/surrey,Surrey,http://id.esd.org.uk/service/1465,Council expenditure,31/03/2015,CEO - PUBLIC HEALTH CAMPAIGNS           ,GOOGLE  ADWS2060179426,500,PUBLICITY,DIRECT MARKETING-CONTINUITY/SUBSCRIPTION MERCHANTS
29/07/2015,http://opendatacommunities.org/id/county-council/surrey,Surrey,http://id.esd.org.uk/service/1465,Council expenditure,31/03/2015,SOLD ESTATES MANAGEMENT,HOMEBASE LTD,70.34,DAY TO DAY MAINTENANCE,"BUILDING MATERIALS, LUMBER STORES"
29/07/2015,http://opendatacommunities.org/id/county-council/surrey,Surrey,http://id.esd.org.uk/service/1465,Council expenditure,31/03/2015,REIGATE AND BANSTEAD LOCALITY TEAM,"AMAZON SVCS EUROPE,SAR",0.66,EQUIPMENT,BOOK STORES
29/07/2015,http://opendatacommunities.org/id/county-council/surrey,Surrey,http://id.esd.org.uk/service/1465,Council expenditure,31/03/2015,CS BUSINESS SUPPORT EAST,"AMAZON SVCS EUROPE,SAR",36.4,STATIONERY,BOOK STORES
29/07/2015,http://opendatacommunities.org/id/county-council/surrey,Surrey,http://id.esd.org.uk/service/1465,Council expenditure,31/03/2015,NE TRANSPORT,WINSTANLEYS PRAMWORLD,34.99,EQUIPMENT,"GAME, TOY, AND HOBBY SHOPS"
29/07/2015,http://opendatacommunities.org/id/county-council/surrey,Surrey,http://id.esd.org.uk/service/1465,Council expenditure,31/03/2015,YSS YOUTH CENTRE IMPROVEMENTS,ARGOS DIRECT,-25,EQUIPMENT,DIRECT MARKETING-CATALOG MERCHANTS
29/07/2015,http://opendatacommunities.org/id/county-council/surrey,Surrey,http://id.esd.org.uk/service/1465,Council expenditure,31/03/2015,BUSINESS UNIT,B & Q,-91.25,PURCHASE CARD TRANSACTION LOG DEFAULT,"BUILDING MATERIALS, LUMBER STORES"
29/07/2015,http://opendatacommunities.org/id/county-council/surrey,Surrey,http://id.esd.org.uk/service/1465,Council expenditure,31/03/2015,TRANSPORT,COMBINED PRECISION,3.29,COMPUTER CONSUMABLES,ELECTRICAL PARTS AND EQUIPMENT
29/07/2015,http://opendatacommunities.org/id/county-council/surrey,Surrey,http://id.esd.org.uk/service/1465,Council expenditure,31/03/2015,LEAVING CARE PACKAGES,CURRYS ONLINE,159.99,EQUIPMENT,ELECTRONIC SALES
29/07/2015,http://opendatacommunities.org/id/county-council/surrey,Surrey,http://id.esd.org.uk/service/1465,Council expenditure,31/03/2015,EXTENDED HOURS SREVICE,"AMAZON SVCS EUROPE,SAR",6.15,EDUC VISITS/HOLS/CAMPS/TOYS,BOOK STORES
29/07/2015,http://opendatacommunities.org/id/county-council/surrey,Surrey,http://id.esd.org.uk/service/1465,Council expenditure,31/03/2015,TRANSPORT,"AMAZON SVCS EUROPE,SAR",36.3,DAY TO DAY MAINTENANCE,BOOK STORES
29/07/2015,http://opendatacommunities.org/id/county-council/surrey,Surrey,http://id.esd.org.uk/service/1465,Council expenditure,31/03/2015,NW CARE - NON-LAC CP & COURT,TRAVELODGE WEBSITE,333,CHILDREN ACT SEC 17 PAYMENTS,TRAVELODGE
29/07/2015,http://opendatacommunities.org/id/county-council/surrey,Surrey,http://id.esd.org.uk/service/1465,Council expenditure,31/03/2015,CORE ACTIVITY                           ,FREEDOM LEISURE,2.7,REFRESHMENT COSTS,GOVERNMENT SERVICES-NOT ELSEWHERE CLASSIFIED
29/07/2015,http://opendatacommunities.org/id/county-council/surrey,Surrey,http://id.esd.org.uk/service/1465,Council expenditure,31/03/2015,COVEHAM,SAINSBURYS TO YOU 0687,148.13,PURCHASE OF FOOD (RAW MATERIALS),"GROCERY STORES, SUPERMARKETS"
29/07/2015,http://opendatacommunities.org/id/county-council/surrey,Surrey,http://id.esd.org.uk/service/1465,Council expenditure,31/03/2015,YOUTH ENGAGEMENT CONTRACT,"AMAZON SVCS EUROPE,SAR",150,EQUIPMENT,BOOK STORES
29/07/2015,http://opendatacommunities.org/id/county-council/surrey,Surrey,http://id.esd.org.uk/service/1465,Council expenditure,31/03/2015,EXTENDED HOURS SREVICE,"AMAZON SVCS EUROPE,SAR",48.89,EDUC VISITS/HOLS/CAMPS/TOYS,BOOK STORES
29/07/2015,http://opendatacommunities.org/id/county-council/surrey,Surrey,http://id.esd.org.uk/service/1465,Council expenditure,31/03/2015,LAKERS YC,ARGOS RETAIL GROUP,105.85,EQUIPMENT,DISCOUNT STORES
29/07/2015,http://opendatacommunities.org/id/county-council/surrey,Surrey,http://id.esd.org.uk/service/1465,Council expenditure,31/03/2015,BURBANK COMMUNITY HOME,CAR PARKS SPH,3,MISCELLANEOUS STAFF TRAVEL,GOVERNMENT SERVICES-NOT ELSEWHERE CLASSIFIED
29/07/2015,http://opendatacommunities.org/id/county-council/surrey,Surrey,http://id.esd.org.uk/service/1465,Council expenditure,31/03/2015,ACCOMMODATION CLEANING AND REFURBISHMENT,IKEA ONLINE,287.5,"CLOTHING, UNIFORM AND LAUNDRY",MISCELLANEOUS HOUSE FURNISHING SPECIALTY SHOPS
29/07/2015,http://opendatacommunities.org/id/county-council/surrey,Surrey,http://id.esd.org.uk/service/1465,Council expenditure,31/03/2015,APPLEWOOD,ASDA HOME SHOPPING,158.33,PURCHASE OF FOOD (RAW MATERIALS),"GROCERY STORES, SUPERMARKETS"
29/07/2015,http://opendatacommunities.org/id/county-council/surrey,Surrey,http://id.esd.org.uk/service/1465,Council expenditure,31/03/2015,LEAVING CARE PACKAGES,PSC BUSINESS CONSULTAN,118.8,CURRICULUM CONSUMABLES,"CONSULTING, MANAGEMENT, AND PUBLIC RELATIONS SVCS"
29/07/2015,http://opendatacommunities.org/id/county-council/surrey,Surrey,http://id.esd.org.uk/service/1465,Council expenditure,31/03/2015,LONGFIELD RESIDENTIAL CARE,SAINSBURYS 2115,13.5,REFRESHMENT COSTS,"GROCERY STORES, SUPERMARKETS"
29/07/2015,http://opendatacommunities.org/id/county-council/surrey,Surrey,http://id.esd.org.uk/service/1465,Council expenditure,31/03/2015,BURBANK COMMUNITY HOME,SAINSBURYS SACAT 0686,14.44,PURCHASE OF FOOD (RAW MATERIALS),"GROCERY STORES, SUPERMARKETS"
29/07/2015,http://opendatacommunities.org/id/county-council/surrey,Surrey,http://id.esd.org.uk/service/1465,Council expenditure,31/03/2015,E&I - TEXTILES                          ,STK SHUTTERSTOCK.COM,38.4,STATIONERY,"COMMERCIAL ART, GRAPHICS, PHOTOGRAPHY"
29/07/2015,http://opendatacommunities.org/id/county-council/surrey,Surrey,http://id.esd.org.uk/service/1465,Council expenditure,31/03/2015,LIBERTAS COMMUNITY HOME,BEACH CLUB RESTAURANTE,56.27,PURCHASE OF FOOD (RAW MATERIALS),"EATING PLACES, RESTAURANTS"
29/07/2015,http://opendatacommunities.org/id/county-council/surrey,Surrey,http://id.esd.org.uk/service/1465,Council expenditure,31/03/2015,WOODLANDS COMMUNITY HOME,SAINSBURYS 0686,6.15,PURCHASE OF FOOD (RAW MATERIALS),"GROCERY STORES, SUPERMARKETS"
29/07/2015,http://opendatacommunities.org/id/county-council/surrey,Surrey,http://id.esd.org.uk/service/1465,Council expenditure,31/03/2015,WOODLANDS COMMUNITY HOME,SAINSBURYS 0686,124.21,PURCHASE OF FOOD (RAW MATERIALS),"GROCERY STORES, SUPERMARKETS"
29/07/2015,http://opendatacommunities.org/id/county-council/surrey,Surrey,http://id.esd.org.uk/service/1465,Council expenditure,31/03/2015,DOWNLANDS COUNTRYSIDE PROJECT,RICHMONDS,78.77,EQUIPMENT,LAWN AND GARDEN SUPPLY STORES
29/07/2015,http://opendatacommunities.org/id/county-council/surrey,Surrey,http://id.esd.org.uk/service/1465,Council expenditure,31/03/2015,HILLSIDE,SAINSBURYS 0675,32.64,PURCHASE OF FOOD (RAW MATERIALS),"GROCERY STORES, SUPERMARKETS"
29/07/2015,http://opendatacommunities.org/id/county-council/surrey,Surrey,http://id.esd.org.uk/service/1465,Council expenditure,31/03/2015,TRANSPORT,NORTHERN DIVER (INTNL),609,OPERATIONAL FIRE EQUIPMENT,SPORTING GOODS STORES
29/07/2015,http://opendatacommunities.org/id/county-council/surrey,Surrey,http://id.esd.org.uk/service/1465,Council expenditure,31/03/2015,ACCESS 2 EDUCATION NW NON-MEDICAL,WWW.PUBLICPOLICYEXCHAN,283.2,SUBSISTENCE AND CONFERENCE EXPENSES,BUSINESS SERVICES-NOT ELSEWHERE CLASSIFIED
29/07/2015,http://opendatacommunities.org/id/county-council/surrey,Surrey,http://id.esd.org.uk/service/1465,Council expenditure,31/03/2015,REIGATE AND BANSTEAD LOCALITY TEAM,AMAZON UK RETAIL,19.32,EQUIPMENT,DIRECT MARKETING-OTHER DIRECT MARKETERS/NOT ELSEW.
29/07/2015,http://opendatacommunities.org/id/county-council/surrey,Surrey,http://id.esd.org.uk/service/1465,Council expenditure,31/03/2015,CEO - PUBLIC HEALTH CAMPAIGNS           ,FACEBOOK 6269W7W9K2,24.75,PUBLICITY,ADVERTISING SERVICES
29/07/2015,http://opendatacommunities.org/id/county-council/surrey,Surrey,http://id.esd.org.uk/service/1465,Council expenditure,31/03/2015,CHEYNE WALK COMMUNITY HOME,AMF BOWLING,24,EDUC VISITS/HOLS/CAMPS/TOYS,"CLUBS-CNTRY,MBRSHIP(ATHLET,REC,SPRTS,PRIVATE GOLF"
29/07/2015,http://opendatacommunities.org/id/county-council/surrey,Surrey,http://id.esd.org.uk/service/1465,Council expenditure,31/03/2015,EXTENDED HOURS SREVICE,"AMAZON SVCS EUROPE,SAR",5.74,EDUC VISITS/HOLS/CAMPS/TOYS,BOOK STORES
29/07/2015,http://opendatacommunities.org/id/county-council/surrey,Surrey,http://id.esd.org.uk/service/1465,Council expenditure,31/03/2015,BURBANK COMMUNITY HOME,WWW.SURREYCC.GOV.UK,50,REFRESHMENT COSTS,GOVERNMENT SERVICES-NOT ELSEWHERE CLASSIFIED
29/07/2015,http://opendatacommunities.org/id/county-council/surrey,Surrey,http://id.esd.org.uk/service/1465,Council expenditure,31/03/2015,TRANSPORT,M6 TOLL,5.5,VEHICLE REPAIRS AND MAINTENANCE,"BRIDGE AND ROAD FEES, TOLLS"
29/07/2015,http://opendatacommunities.org/id/county-council/surrey,Surrey,http://id.esd.org.uk/service/1465,Council expenditure,31/03/2015,YOUTH ENGAGEMENT CONTRACT,"AMAZON SVCS EUROPE,SAR",83.94,EQUIPMENT,BOOK STORES
29/07/2015,http://opendatacommunities.org/id/county-council/surrey,Surrey,http://id.esd.org.uk/service/1465,Council expenditure,31/03/2015,PROPERTY OPERATIONS TEAM,WICKES,11.17,PURCHASE OF BUILDING MATERIALS,HOME SUPPLY WAREHOUSE STORES
29/07/2015,http://opendatacommunities.org/id/county-council/surrey,Surrey,http://id.esd.org.uk/service/1465,Council expenditure,31/03/2015,SEN GREEN PAPER PATHFINDER PILOT,"AMAZON SVCS EUROPE,SAR",44.82,EQUIPMENT,BOOK STORES
29/07/2015,http://opendatacommunities.org/id/county-council/surrey,Surrey,http://id.esd.org.uk/service/1465,Council expenditure,31/03/2015,LONGFIELD RESIDENTIAL CARE,CO-OP GROUP 500340,5,REFRESHMENT COSTS,"GROCERY STORES, SUPERMARKETS"
29/07/2015,http://opendatacommunities.org/id/county-council/surrey,Surrey,http://id.esd.org.uk/service/1465,Council expenditure,31/03/2015,ROW AREA2 WAV WOK                       ,CURRYS S/S,14.99,EQUIPMENT,ELECTRONIC SALES
29/07/2015,http://opendatacommunities.org/id/county-council/surrey,Surrey,http://id.esd.org.uk/service/1465,Council expenditure,31/03/2015,TRANSPORT,MCDONALDS,14.86,VEHICLE REPAIRS AND MAINTENANCE,FAST FOOD RESTAURANTS
29/07/2015,http://opendatacommunities.org/id/county-council/surrey,Surrey,http://id.esd.org.uk/service/1465,Council expenditure,31/03/2015,HERITAGE ENTERPRISE (SCAU),PLASTICS BY POST,49.75,STATIONERY,LANDSCAPING AND HORTICULTURAL SERVICES
29/07/2015,http://opendatacommunities.org/id/county-council/surrey,Surrey,http://id.esd.org.uk/service/1465,Council expenditure,31/03/2015,BURBANK COMMUNITY HOME,TRAINLINE.COM,81.04,NON-STAFF RELATED TRANSPORT COSTS,PASSENGER RAILWAYS
29/07/2015,http://opendatacommunities.org/id/county-council/surrey,Surrey,http://id.esd.org.uk/service/1465,Council expenditure,31/03/2015,TRANSPORT,NCP LIMITED - MJV,10.5,MISCELLANEOUS STAFF TRAVEL,AUTOMOBILE PARKING LOTS AND GARAGES
29/07/2015,http://opendatacommunities.org/id/county-council/surrey,Surrey,http://id.esd.org.uk/service/1465,Council expenditure,31/03/2015,HR - STRATEGIC SUPPORT,THE PLASTIC BOX COMPAN,91.8,EQUIPMENT,INDUSTRIAL SUPPLIES NOT ELSEWHERE CLASSIFIED
29/07/2015,http://opendatacommunities.org/id/county-council/surrey,Surrey,http://id.esd.org.uk/service/1465,Council expenditure,31/03/2015,DOWNLANDS COUNTRYSIDE PROJECT,SCATS COUNTRYSTORE 70,196.02,EQUIPMENT,AGRICULTURAL COOPERATIVES
29/07/2015,http://opendatacommunities.org/id/county-council/surrey,Surrey,http://id.esd.org.uk/service/1465,Council expenditure,31/03/2015,DOWNLANDS COUNTRYSIDE PROJECT,RICHMONDS,15.14,EQUIPMENT,LAWN AND GARDEN SUPPLY STORES
29/07/2015,http://opendatacommunities.org/id/county-council/surrey,Surrey,http://id.esd.org.uk/service/1465,Council expenditure,31/03/2015,EXTENDED HOURS SREVICE,"AMAZON SVCS EUROPE,SAR",35.59,EDUC VISITS/HOLS/CAMPS/TOYS,BOOK STORES
29/07/2015,http://opendatacommunities.org/id/county-council/surrey,Surrey,http://id.esd.org.uk/service/1465,Council expenditure,31/03/2015,LIBERTAS COMMUNITY HOME,LORO PARQUE,115.24,EDUC VISITS/HOLS/CAMPS/TOYS,"THEATRICAL PRODUCERS(EXCL MOTION PIX),TICKET AGNCY"
29/07/2015,http://opendatacommunities.org/id/county-council/surrey,Surrey,http://id.esd.org.uk/service/1465,Council expenditure,31/03/2015,RUTH HOUSE,THE FARM SHOP-,506.31,PURCHASE OF FOOD (RAW MATERIALS),"CLOCK, JEWELRY, WATCH, AND SILVERWARE STORE"
29/07/2015,http://opendatacommunities.org/id/county-council/surrey,Surrey,http://id.esd.org.uk/service/1465,Council expenditure,31/03/2015,PE/CDT MAINTENANCE OVERHEADS,BEARINGS AND BELTS,121.74,ITEMS PURCHASED FOR RE-SALE,"ARCHITECTURAL, ENGINEERING, AND SURVEYING SERVICES"
29/07/2015,http://opendatacommunities.org/id/county-council/surrey,Surrey,http://id.esd.org.uk/service/1465,Council expenditure,31/03/2015,CS PERFORMANCE QUALITY AND AUDIT,WESTMINSTER FORUM,252,TRAINING EXPENSES EXTERNAL GENERAL,"CONSULTING, MANAGEMENT, AND PUBLIC RELATIONS SVCS"
29/07/2015,http://opendatacommunities.org/id/county-council/surrey,Surrey,http://id.esd.org.uk/service/1465,Council expenditure,31/03/2015,HOPE SERVICE - WEST,SAINSBURYS SACAT(4409),2,PURCHASE OF FOOD (RAW MATERIALS),"GROCERY STORES, SUPERMARKETS"
29/07/2015,http://opendatacommunities.org/id/county-council/surrey,Surrey,http://id.esd.org.uk/service/1465,Council expenditure,31/03/2015,BURBANK COMMUNITY HOME,COLUMBUS TRAINLINE,4,NON-STAFF RELATED TRANSPORT COSTS,"INSURANCE SALES,UNDERWRITING,AND PREMIUMS"
29/07/2015,http://opendatacommunities.org/id/county-council/surrey,Surrey,http://id.esd.org.uk/service/1465,Council expenditure,31/03/2015,HOPE SERVICE - WEST,SAINSBURYS SACAT(4409),12.55,PURCHASE OF FOOD (RAW MATERIALS),"GROCERY STORES, SUPERMARKETS"
29/07/2015,http://opendatacommunities.org/id/county-council/surrey,Surrey,http://id.esd.org.uk/service/1465,Council expenditure,31/03/2015,SPELTHORNE LOCAL CARE OP,SAFESTORE,424.2,OTHER COMMUNITY CARE VOL,"PUBLIC WAREHOUSING-FARM, REFRIG GOODS, HHG STORAGE"
29/07/2015,http://opendatacommunities.org/id/county-council/surrey,Surrey,http://id.esd.org.uk/service/1465,Council expenditure,31/03/2015,CHEYNE WALK COMMUNITY HOME,SAINSBURYS TO YOU 0026,93.7,PURCHASE OF FOOD (RAW MATERIALS),"GROCERY STORES, SUPERMARKETS"
29/07/2015,http://opendatacommunities.org/id/county-council/surrey,Surrey,http://id.esd.org.uk/service/1465,Council expenditure,31/03/2015,IMPROVING OUTCOMES - EARLY SUPPORT,NAS UK,20,SUBSCRIPTIONS,"ORGANIZATIONS, CHARITABLE AND SOCIAL SERVICES"
29/07/2015,http://opendatacommunities.org/id/county-council/surrey,Surrey,http://id.esd.org.uk/service/1465,Council expenditure,31/03/2015,SW CARE - LAC,HM PASSPORT OFFICE,46,FEES,GOVERNMENT SERVICES-NOT ELSEWHERE CLASSIFIED
29/07/2015,http://opendatacommunities.org/id/county-council/surrey,Surrey,http://id.esd.org.uk/service/1465,Council expenditure,31/03/2015,LEAVING CARE PACKAGES,ARGOS RETAIL GROUP,95.39,EQUIPMENT,DISCOUNT STORES
29/07/2015,http://opendatacommunities.org/id/county-council/surrey,Surrey,http://id.esd.org.uk/service/1465,Council expenditure,31/03/2015,KARIBU COMMUNITY HOME,TESCO STORE 2812,393.42,PURCHASE OF FOOD (RAW MATERIALS),"GROCERY STORES, SUPERMARKETS"
29/07/2015,http://opendatacommunities.org/id/county-council/surrey,Surrey,http://id.esd.org.uk/service/1465,Council expenditure,31/03/2015,EXTENDED HOURS SREVICE,"AMAZON SVCS EUROPE,SAR",25.98,EDUC VISITS/HOLS/CAMPS/TOYS,BOOK STORES
29/07/2015,http://opendatacommunities.org/id/county-council/surrey,Surrey,http://id.esd.org.uk/service/1465,Council expenditure,01/04/2015,ARUNDEL,ASDA HOME SHOPPING,100.36,REFRESHMENT COSTS,"GROCERY STORES, SUPERMARKETS"
29/07/2015,http://opendatacommunities.org/id/county-council/surrey,Surrey,http://id.esd.org.uk/service/1465,Council expenditure,01/04/2015,ARUNDEL,ASDA HOME SHOPPING,4,REFRESHMENT COSTS,"GROCERY STORES, SUPERMARKETS"
29/07/2015,http://opendatacommunities.org/id/county-council/surrey,Surrey,http://id.esd.org.uk/service/1465,Council expenditure,01/04/2015,TRANSPORT STUDIES TEAM,PREMIER INN50015220,204.25,TRAINING EXPENSES EXTERNAL GENERAL,PREMIER INN
29/07/2015,http://opendatacommunities.org/id/county-council/surrey,Surrey,http://id.esd.org.uk/service/1465,Council expenditure,01/04/2015,YOUTH ENGAGEMENT CONTRACT,"AMAZON SVCS EUROPE,SAR",2.52,EQUIPMENT,BOOK STORES
29/07/2015,http://opendatacommunities.org/id/county-council/surrey,Surrey,http://id.esd.org.uk/service/1465,Council expenditure,01/04/2015,YOUTH ENGAGEMENT CONTRACT,"AMAZON SVCS EUROPE,SAR",21.78,EQUIPMENT,BOOK STORES
29/07/2015,http://opendatacommunities.org/id/county-council/surrey,Surrey,http://id.esd.org.uk/service/1465,Council expenditure,01/04/2015,YOUTH ENGAGEMENT CONTRACT,"AMAZON SVCS EUROPE,SAR",7.49,EQUIPMENT,BOOK STORES
29/07/2015,http://opendatacommunities.org/id/county-council/surrey,Surrey,http://id.esd.org.uk/service/1465,Council expenditure,01/04/2015,TRANSPORT,NCP LIMITED,10,MISCELLANEOUS STAFF TRAVEL,AUTOMOBILE PARKING LOTS AND GARAGES
29/07/2015,http://opendatacommunities.org/id/county-council/surrey,Surrey,http://id.esd.org.uk/service/1465,Council expenditure,01/04/2015,E&I - TEXTILES                          ,GOOGLE  SVCSAPPS_SUPER,30.25,PUBLICITY,DIRECT MARKETING-CONTINUITY/SUBSCRIPTION MERCHANTS
29/07/2015,http://opendatacommunities.org/id/county-council/surrey,Surrey,http://id.esd.org.uk/service/1465,Council expenditure,01/04/2015,SPORTIVATE                              ,AMAZON UK RETAIL,241.99,EQUIPMENT,DIRECT MARKETING-OTHER DIRECT MARKETERS/NOT ELSEW.
29/07/2015,http://opendatacommunities.org/id/county-council/surrey,Surrey,http://id.esd.org.uk/service/1465,Council expenditure,01/04/2015,E&I - TEXTILES                          ,FACEBOOK Y5YE28AAK2,17.49,PUBLICITY,ADVERTISING SERVICES
29/07/2015,http://opendatacommunities.org/id/county-council/surrey,Surrey,http://id.esd.org.uk/service/1465,Council expenditure,01/04/2015,KARIBU COMMUNITY HOME,ODEON,16.6,EDUC VISITS/HOLS/CAMPS/TOYS,MOTION PICTURE THEATERS
29/07/2015,http://opendatacommunities.org/id/county-council/surrey,Surrey,http://id.esd.org.uk/service/1465,Council expenditure,01/04/2015,EXTENDED HOURS SREVICE,"AMAZON SVCS EUROPE,SAR",7.87,EDUC VISITS/HOLS/CAMPS/TOYS,BOOK STORES
29/07/2015,http://opendatacommunities.org/id/county-council/surrey,Surrey,http://id.esd.org.uk/service/1465,Council expenditure,01/04/2015,YOUTH ENGAGEMENT CONTRACT,"AMAZON SVCS EUROPE,SAR",21.65,EQUIPMENT,BOOK STORES
29/07/2015,http://opendatacommunities.org/id/county-council/surrey,Surrey,http://id.esd.org.uk/service/1465,Council expenditure,01/04/2015,LONGFIELD RESIDENTIAL CARE,HOMEBASE LTD 305,59.98,EQUIPMENT,"BUILDING MATERIALS, LUMBER STORES"
29/07/2015,http://opendatacommunities.org/id/county-council/surrey,Surrey,http://id.esd.org.uk/service/1465,Council expenditure,01/04/2015,ROW AREA3 MV EPS ELM                    ,ARGOS RETAIL GROUP,14.99,EQUIPMENT,DISCOUNT STORES
29/07/2015,http://opendatacommunities.org/id/county-council/surrey,Surrey,http://id.esd.org.uk/service/1465,Council expenditure,01/04/2015,IMT TECHNICAL DELIVERY,"AMAZON SVCS EUROPE,SAR",0.91,COMPUTER HARDWARE,BOOK STORES
29/07/2015,http://opendatacommunities.org/id/county-council/surrey,Surrey,http://id.esd.org.uk/service/1465,Council expenditure,01/04/2015,POLICY AND PERFORMANCE TEAM,GOOGLE  SVCSAPPS_SHIFT,36.3,COMPUTER CONSUMABLES,DIRECT MARKETING-CONTINUITY/SUBSCRIPTION MERCHANTS
29/07/2015,http://opendatacommunities.org/id/county-council/surrey,Surrey,http://id.esd.org.uk/service/1465,Council expenditure,01/04/2015,TRANSPORT,AMAZON UK MARKETPLACE,269,DAY TO DAY MAINTENANCE,BOOK STORES
29/07/2015,http://opendatacommunities.org/id/county-council/surrey,Surrey,http://id.esd.org.uk/service/1465,Council expenditure,01/04/2015,CHEYNE WALK COMMUNITY HOME,TESCO STORE 2560,58.18,PURCHASE OF FOOD (RAW MATERIALS),"GROCERY STORES, SUPERMARKETS"
29/07/2015,http://opendatacommunities.org/id/county-council/surrey,Surrey,http://id.esd.org.uk/service/1465,Council expenditure,01/04/2015,CONSORT HOUSE REDHILL,ARGOS LTD,59.99,EQUIPMENT,DISCOUNT STORES
29/07/2015,http://opendatacommunities.org/id/county-council/surrey,Surrey,http://id.esd.org.uk/service/1465,Council expenditure,01/04/2015,HR - BUSINESS SERVICES AND TRAINING,"AMAZON SVCS EUROPE,SAR",2.14,STATIONERY,BOOK STORES
29/07/2015,http://opendatacommunities.org/id/county-council/surrey,Surrey,http://id.esd.org.uk/service/1465,Council expenditure,01/04/2015,LIBERTAS COMMUNITY HOME,BEACH CLUB RESTAURANTE,54.22,PURCHASE OF FOOD (RAW MATERIALS),"EATING PLACES, RESTAURANTS"
29/07/2015,http://opendatacommunities.org/id/county-council/surrey,Surrey,http://id.esd.org.uk/service/1465,Council expenditure,01/04/2015,HOPE SERVICE - EAST,WWW.GOAPE.CO.UK,-50,EDUC VISITS/HOLS/CAMPS/TOYS,RECREATIONAL AND SPORTING CAMPS
29/07/2015,http://opendatacommunities.org/id/county-council/surrey,Surrey,http://id.esd.org.uk/service/1465,Council expenditure,01/04/2015,BURBANK COMMUNITY HOME,SAINSBURYS TO YOU 0686,197.7,PURCHASE OF FOOD (RAW MATERIALS),"GROCERY STORES, SUPERMARKETS"
29/07/2015,http://opendatacommunities.org/id/county-council/surrey,Surrey,http://id.esd.org.uk/service/1465,Council expenditure,01/04/2015,YOUTH ENGAGEMENT CONTRACT,"AMAZON SVCS EUROPE,SAR",201.14,EQUIPMENT,BOOK STORES
29/07/2015,http://opendatacommunities.org/id/county-council/surrey,Surrey,http://id.esd.org.uk/service/1465,Council expenditure,01/04/2015,WOODLANDS COMMUNITY HOME,SAINSBURYS 0686,75.75,CLEANING MATERIALS,"GROCERY STORES, SUPERMARKETS"
29/07/2015,http://opendatacommunities.org/id/county-council/surrey,Surrey,http://id.esd.org.uk/service/1465,Council expenditure,01/04/2015,HILLSIDE,SAINSBURYS 0675,81.27,PURCHASE OF FOOD (RAW MATERIALS),"GROCERY STORES, SUPERMARKETS"
29/07/2015,http://opendatacommunities.org/id/county-council/surrey,Surrey,http://id.esd.org.uk/service/1465,Council expenditure,01/04/2015,TRANSPORT,SCREWFIX DIRECT,299.54,DAY TO DAY MAINTENANCE,"BUILDING MATERIALS, LUMBER STORES"
29/07/2015,http://opendatacommunities.org/id/county-council/surrey,Surrey,http://id.esd.org.uk/service/1465,Council expenditure,01/04/2015,HOPE SERVICE - WEST,"AMAZON SVCS EUROPE,SAR",8.5,CURRICULUM EQUIPMENT AND FURNITURE,BOOK STORES
29/07/2015,http://opendatacommunities.org/id/county-council/surrey,Surrey,http://id.esd.org.uk/service/1465,Council expenditure,01/04/2015,YOUTH ENGAGEMENT CONTRACT,"AMAZON SVCS EUROPE,SAR",55.6,EQUIPMENT,BOOK STORES
29/07/2015,http://opendatacommunities.org/id/county-council/surrey,Surrey,http://id.esd.org.uk/service/1465,Council expenditure,01/04/2015,YOUTH ENGAGEMENT CONTRACT,"AMAZON SVCS EUROPE,SAR",2.28,EQUIPMENT,BOOK STORES
29/07/2015,http://opendatacommunities.org/id/county-council/surrey,Surrey,http://id.esd.org.uk/service/1465,Council expenditure,01/04/2015,TRANSPORT,PLASTOR LIMITED,190.44,STATIONERY,HARDWARE EQUIPMENT AND SUPPLIES
29/07/2015,http://opendatacommunities.org/id/county-council/surrey,Surrey,http://id.esd.org.uk/service/1465,Council expenditure,01/04/2015,YOUTH ENGAGEMENT CONTRACT,"AMAZON SVCS EUROPE,SAR",22.59,EQUIPMENT,BOOK STORES
29/07/2015,http://opendatacommunities.org/id/county-council/surrey,Surrey,http://id.esd.org.uk/service/1465,Council expenditure,01/04/2015,TRAINING AND DEVELOPMENT,WWW.PMGLTD.CO.UK,402,SUBSISTENCE AND CONFERENCE EXPENSES,BUSINESS SERVICES-NOT ELSEWHERE CLASSIFIED
29/07/2015,http://opendatacommunities.org/id/county-council/surrey,Surrey,http://id.esd.org.uk/service/1465,Council expenditure,01/04/2015,CHEYNE WALK COMMUNITY HOME,WWW.GRAVITYFORCE.CO.UK,23,EDUC VISITS/HOLS/CAMPS/TOYS,RECREATION SERVICES (NOT ELSEWHERE CLASSIFIED)
29/07/2015,http://opendatacommunities.org/id/county-council/surrey,Surrey,http://id.esd.org.uk/service/1465,Council expenditure,01/04/2015,YOUTH ENGAGEMENT CONTRACT,AMAZON UK MARKETPLACE,15.51,EQUIPMENT,BOOK STORES
29/07/2015,http://opendatacommunities.org/id/county-council/surrey,Surrey,http://id.esd.org.uk/service/1465,Council expenditure,01/04/2015,EVENTS,PAYPAL  MCMORRIS,972,"CLOTHING, UNIFORM AND LAUNDRY",PROFESSIONAL SERVICES-NOT ELSEWHERE CLASSIFIED
29/07/2015,http://opendatacommunities.org/id/county-council/surrey,Surrey,http://id.esd.org.uk/service/1465,Council expenditure,01/04/2015,YOUTH ENGAGEMENT CONTRACT,"AMAZON SVCS EUROPE,SAR",2.62,EQUIPMENT,BOOK STORES
29/07/2015,http://opendatacommunities.org/id/county-council/surrey,Surrey,http://id.esd.org.uk/service/1465,Council expenditure,01/04/2015,TRANSPORT,NCP LIMITED - MJV,6.1,COMPUTER CONSUMABLES,AUTOMOBILE PARKING LOTS AND GARAGES
29/07/2015,http://opendatacommunities.org/id/county-council/surrey,Surrey,http://id.esd.org.uk/service/1465,Council expenditure,01/04/2015,ACL CENTRAL EXPENDITURE,BUNZL CATERING SERVICE,31.2,CURRICULUM CONSUMABLES,CATERERS
29/07/2015,http://opendatacommunities.org/id/county-council/surrey,Surrey,http://id.esd.org.uk/service/1465,Council expenditure,01/04/2015,POLICY AND PERFORMANCE TEAM,"AMAZON SVCS EUROPE,SAR",-118.8,EQUIPMENT,BOOK STORES
29/07/2015,http://opendatacommunities.org/id/county-council/surrey,Surrey,http://id.esd.org.uk/service/1465,Council expenditure,01/04/2015,YOUTH ENGAGEMENT CONTRACT,"AMAZON SVCS EUROPE,SAR",25.56,EQUIPMENT,BOOK STORES
29/07/2015,http://opendatacommunities.org/id/county-council/surrey,Surrey,http://id.esd.org.uk/service/1465,Council expenditure,01/04/2015,YOUTH ENGAGEMENT CONTRACT,"AMAZON SVCS EUROPE,SAR",63.12,EQUIPMENT,BOOK STORES
29/07/2015,http://opendatacommunities.org/id/county-council/surrey,Surrey,http://id.esd.org.uk/service/1465,Council expenditure,01/04/2015,LEGAL SUPPORT TEAM,"AMAZON SVCS EUROPE,SAR",159.92,EQUIPMENT,BOOK STORES
29/07/2015,http://opendatacommunities.org/id/county-council/surrey,Surrey,http://id.esd.org.uk/service/1465,Council expenditure,01/04/2015,ACL CENTRAL EXPENDITURE,BUNZL CATERING SERVICE,6,CURRICULUM CONSUMABLES,CATERERS
29/07/2015,http://opendatacommunities.org/id/county-council/surrey,Surrey,http://id.esd.org.uk/service/1465,Council expenditure,01/04/2015,LEAVING CARE PACKAGES,WESTERN TUTORIAL COLLE,185.4,CURRICULUM CONSUMABLES,ART DEALERS AND GALLERIES
29/07/2015,http://opendatacommunities.org/id/county-council/surrey,Surrey,http://id.esd.org.uk/service/1465,Council expenditure,01/04/2015,HOPE SERVICE - WEST,SAINSBURYS SACAT(4409),1.4,PURCHASE OF FOOD (RAW MATERIALS),"GROCERY STORES, SUPERMARKETS"
29/07/2015,http://opendatacommunities.org/id/county-council/surrey,Surrey,http://id.esd.org.uk/service/1465,Council expenditure,01/04/2015,LIBERTAS COMMUNITY HOME,LAKELAND LIMITED,39.96,EQUIPMENT,ACCESSORY AND APPAREL STORES-MISCELLANEOUS
29/07/2015,http://opendatacommunities.org/id/county-council/surrey,Surrey,http://id.esd.org.uk/service/1465,Council expenditure,01/04/2015,BROCKHURST RESIDENTIAL CARE,TESCOS,40.2,REFRESHMENT COSTS,"GROCERY STORES, SUPERMARKETS"
29/07/2015,http://opendatacommunities.org/id/county-council/surrey,Surrey,http://id.esd.org.uk/service/1465,Council expenditure,01/04/2015,BROCKHURST RESIDENTIAL CARE,TESCOS,67.85,REFRESHMENT COSTS,"GROCERY STORES, SUPERMARKETS"
29/07/2015,http://opendatacommunities.org/id/county-council/surrey,Surrey,http://id.esd.org.uk/service/1465,Council expenditure,01/04/2015,IMT CRITICAL ENVIRONMENTS,WWW.MILKANDMORE.CO.UK,56.12,REFRESHMENT COSTS,DIRECT MARKETING-CONTINUITY/SUBSCRIPTION MERCHANTS
29/07/2015,http://opendatacommunities.org/id/county-council/surrey,Surrey,http://id.esd.org.uk/service/1465,Council expenditure,01/04/2015,ASH YC,VUE NCS CITB HS&E TEST,17.5,EDUC VISITS/HOLS/CAMPS/TOYS,SCHOOLS & EDUCATIONAL SVC-NOT ELSEWHERE CLASSIFIED
29/07/2015,http://opendatacommunities.org/id/county-council/surrey,Surrey,http://id.esd.org.uk/service/1465,Council expenditure,01/04/2015,EXTENDED HOURS SREVICE,AMAZON UK RETAIL,190.55,FURNITURE,DIRECT MARKETING-OTHER DIRECT MARKETERS/NOT ELSEW.
29/07/2015,http://opendatacommunities.org/id/county-council/surrey,Surrey,http://id.esd.org.uk/service/1465,Council expenditure,01/04/2015,YOUTH ENGAGEMENT CONTRACT,"AMAZON SVCS EUROPE,SAR",27.2,EQUIPMENT,BOOK STORES
29/07/2015,http://opendatacommunities.org/id/county-council/surrey,Surrey,http://id.esd.org.uk/service/1465,Council expenditure,01/04/2015,Q&C A COTTLE,SNOW & ROCKSPORTS,479.68,EQUIPMENT,SPORTING GOODS STORES
29/07/2015,http://opendatacommunities.org/id/county-council/surrey,Surrey,http://id.esd.org.uk/service/1465,Council expenditure,01/04/2015,HOLLAND CLOSE RESIDENTIAL HOME,TESCO-STORES 6647,160.4,PURCHASE OF FOOD (RAW MATERIALS),"GROCERY STORES, SUPERMARKETS"
29/07/2015,http://opendatacommunities.org/id/county-council/surrey,Surrey,http://id.esd.org.uk/service/1465,Council expenditure,01/04/2015,POLICY AND PERFORMANCE TEAM,"AMAZON SVCS EUROPE,SAR",3.19,EQUIPMENT,BOOK STORES
29/07/2015,http://opendatacommunities.org/id/county-council/surrey,Surrey,http://id.esd.org.uk/service/1465,Council expenditure,01/04/2015,NE CARE - LAC,EASYJET00 000ENXRD31,115.24,MISCELLANEOUS STAFF TRAVEL,EASYJET
29/07/2015,http://opendatacommunities.org/id/county-council/surrey,Surrey,http://id.esd.org.uk/service/1465,Council expenditure,01/04/2015,YOUTH ENGAGEMENT CONTRACT,AMAZON UK MARKETPLACE,2.25,EQUIPMENT,BOOK STORES
29/07/2015,http://opendatacommunities.org/id/county-council/surrey,Surrey,http://id.esd.org.uk/service/1465,Council expenditure,01/04/2015,IMPROVING OUTCOMES - EARLY SUPPORT,"AMAZON SVCS EUROPE,SAR",25.98,STATIONERY,BOOK STORES
29/07/2015,http://opendatacommunities.org/id/county-council/surrey,Surrey,http://id.esd.org.uk/service/1465,Council expenditure,01/04/2015,CS BUSINESS SUPPORT EAST,AMAZON UK RETAIL,23.66,STATIONERY,DIRECT MARKETING-OTHER DIRECT MARKETERS/NOT ELSEW.
29/07/2015,http://opendatacommunities.org/id/county-council/surrey,Surrey,http://id.esd.org.uk/service/1465,Council expenditure,01/04/2015,CHAIRMAN,CATERHAM GALLERIES,89.13,EQUIPMENT,ART DEALERS AND GALLERIES
29/07/2015,http://opendatacommunities.org/id/county-council/surrey,Surrey,http://id.esd.org.uk/service/1465,Council expenditure,01/04/2015,SEN GREEN PAPER PATHFINDER PILOT,AMAZON UK RETAIL,10,EQUIPMENT,DIRECT MARKETING-OTHER DIRECT MARKETERS/NOT ELSEW.
29/07/2015,http://opendatacommunities.org/id/county-council/surrey,Surrey,http://id.esd.org.uk/service/1465,Council expenditure,01/04/2015,NORTH WEST AREA TEAM,FASTHOSTS INTERNET,5.99,EDUC VISITS/HOLS/CAMPS/TOYS,COMPUTER NETWORK/INFORMATION SERVICES
29/07/2015,http://opendatacommunities.org/id/county-council/surrey,Surrey,http://id.esd.org.uk/service/1465,Council expenditure,01/04/2015,HOPE SERVICE - WEST,"AMAZON SVCS EUROPE,SAR",54.36,CURRICULUM EQUIPMENT AND FURNITURE,BOOK STORES
29/07/2015,http://opendatacommunities.org/id/county-council/surrey,Surrey,http://id.esd.org.uk/service/1465,Council expenditure,01/04/2015,HOPE SERVICE - WEST,"AMAZON SVCS EUROPE,SAR",2.99,CURRICULUM CONSUMABLES,BOOK STORES
29/07/2015,http://opendatacommunities.org/id/county-council/surrey,Surrey,http://id.esd.org.uk/service/1465,Council expenditure,02/04/2015,LEAVING CARE PACKAGES,PREMIER INN44025570,167.5,3RD PARTY PAYMENTS PRIVATE INDIV,PREMIER INN
29/07/2015,http://opendatacommunities.org/id/county-council/surrey,Surrey,http://id.esd.org.uk/service/1465,Council expenditure,02/04/2015,COMMUNICATIONS TEAM,TIMES NEWSPAPERS LTD,17.34,STATIONERY,"BOOKS,PERIODICALS AND NEWSPAPERS"
29/07/2015,http://opendatacommunities.org/id/county-council/surrey,Surrey,http://id.esd.org.uk/service/1465,Council expenditure,02/04/2015,ARUNDEL,ASDA HOME SHOPPING,122.69,REFRESHMENT COSTS,"GROCERY STORES, SUPERMARKETS"
29/07/2015,http://opendatacommunities.org/id/county-council/surrey,Surrey,http://id.esd.org.uk/service/1465,Council expenditure,02/04/2015,ARUNDEL,ASDA HOME SHOPPING,5.39,REFRESHMENT COSTS,"GROCERY STORES, SUPERMARKETS"
29/07/2015,http://opendatacommunities.org/id/county-council/surrey,Surrey,http://id.esd.org.uk/service/1465,Council expenditure,02/04/2015,ACL CENTRAL EXPENDITURE,"AMAZON SVCS EUROPE,SAR",11.16,UPKEEP OF GROUNDS,BOOK STORES
29/07/2015,http://opendatacommunities.org/id/county-council/surrey,Surrey,http://id.esd.org.uk/service/1465,Council expenditure,02/04/2015,SOLD DAY TO DAY OPERATIONS,TAM LEISURE NEW MALDEN,49.95,EQUIPMENT,TENT AND AWNING SHOPS
29/07/2015,http://opendatacommunities.org/id/county-council/surrey,Surrey,http://id.esd.org.uk/service/1465,Council expenditure,02/04/2015,ACL CENTRAL EXPENDITURE,"AMAZON SVCS EUROPE,SAR",12.96,EQUIPMENT,BOOK STORES
29/07/2015,http://opendatacommunities.org/id/county-council/surrey,Surrey,http://id.esd.org.uk/service/1465,Council expenditure,02/04/2015,ARUNDEL,TESCO STORE 3066,10.5,REFRESHMENT COSTS,"GROCERY STORES, SUPERMARKETS"
29/07/2015,http://opendatacommunities.org/id/county-council/surrey,Surrey,http://id.esd.org.uk/service/1465,Council expenditure,02/04/2015,ARUNDEL,TESCO STORE 3066,40,REFRESHMENT COSTS,"GROCERY STORES, SUPERMARKETS"
29/07/2015,http://opendatacommunities.org/id/county-council/surrey,Surrey,http://id.esd.org.uk/service/1465,Council expenditure,02/04/2015,YOUTH ENGAGEMENT CONTRACT,"AMAZON SVCS EUROPE,SAR",113.02,EQUIPMENT,BOOK STORES
29/07/2015,http://opendatacommunities.org/id/county-council/surrey,Surrey,http://id.esd.org.uk/service/1465,Council expenditure,02/04/2015,TRANSPORT,DVSA,42,VEHICLE REPAIRS AND MAINTENANCE,GOVERNMENT SERVICES-NOT ELSEWHERE CLASSIFIED
29/07/2015,http://opendatacommunities.org/id/county-council/surrey,Surrey,http://id.esd.org.uk/service/1465,Council expenditure,02/04/2015,YOUTH ENGAGEMENT CONTRACT,"AMAZON SVCS EUROPE,SAR",65.34,EQUIPMENT,BOOK STORES
29/07/2015,http://opendatacommunities.org/id/county-council/surrey,Surrey,http://id.esd.org.uk/service/1465,Council expenditure,02/04/2015,YOUTH ENGAGEMENT CONTRACT,"AMAZON SVCS EUROPE,SAR",39.26,EQUIPMENT,BOOK STORES
29/07/2015,http://opendatacommunities.org/id/county-council/surrey,Surrey,http://id.esd.org.uk/service/1465,Council expenditure,02/04/2015,ACL CENTRAL EXPENDITURE,"AMAZON SVCS EUROPE,SAR",6.44,SPECIALIST EDUCATIONAL STATIONERY,BOOK STORES
29/07/2015,http://opendatacommunities.org/id/county-council/surrey,Surrey,http://id.esd.org.uk/service/1465,Council expenditure,02/04/2015,YOUTH ENGAGEMENT CONTRACT,"AMAZON SVCS EUROPE,SAR",97.05,EQUIPMENT,BOOK STORES
29/07/2015,http://opendatacommunities.org/id/county-council/surrey,Surrey,http://id.esd.org.uk/service/1465,Council expenditure,02/04/2015,TRAINING AND DEVELOPMENT,WWW.PMGLTD.CO.UK,888,SUBSISTENCE AND CONFERENCE EXPENSES,BUSINESS SERVICES-NOT ELSEWHERE CLASSIFIED
29/07/2015,http://opendatacommunities.org/id/county-council/surrey,Surrey,http://id.esd.org.uk/service/1465,Council expenditure,02/04/2015,HOPE SERVICE - EAST,BURGER KING GUILDFORD,8.38,REFRESHMENT COSTS,FAST FOOD RESTAURANTS
29/07/2015,http://opendatacommunities.org/id/county-council/surrey,Surrey,http://id.esd.org.uk/service/1465,Council expenditure,02/04/2015,POLICY AND PERFORMANCE TEAM,AMAZON UK RETAIL,8.99,BOOKS,DIRECT MARKETING-OTHER DIRECT MARKETERS/NOT ELSEW.
29/07/2015,http://opendatacommunities.org/id/county-council/surrey,Surrey,http://id.esd.org.uk/service/1465,Council expenditure,02/04/2015,IMT SUPPORT SERVICE DESK,"AMAZON SVCS EUROPE,SAR",2.97,EQUIPMENT,BOOK STORES
29/07/2015,http://opendatacommunities.org/id/county-council/surrey,Surrey,http://id.esd.org.uk/service/1465,Council expenditure,02/04/2015,LEAVING CARE PACKAGES,TRAVELODGE WEBSITE,69,3RD PARTY PAYMENTS PRIVATE INDIV,TRAVELODGE
29/07/2015,http://opendatacommunities.org/id/county-council/surrey,Surrey,http://id.esd.org.uk/service/1465,Council expenditure,02/04/2015,Q&C A COTTLE,CENTRE FOR ACCESSIBLE,630,TRAINING EXPENSES EXTERNAL GENERAL,"ORGANIZATIONS, CHARITABLE AND SOCIAL SERVICES"
29/07/2015,http://opendatacommunities.org/id/county-council/surrey,Surrey,http://id.esd.org.uk/service/1465,Council expenditure,02/04/2015,CHILDMINDING,"AMAZON SVCS EUROPE,SAR",29.52,EQUIPMENT,BOOK STORES
29/07/2015,http://opendatacommunities.org/id/county-council/surrey,Surrey,http://id.esd.org.uk/service/1465,Council expenditure,02/04/2015,EXTENDED HOURS SREVICE,"AMAZON SVCS EUROPE,SAR",35.61,EDUC VISITS/HOLS/CAMPS/TOYS,BOOK STORES
29/07/2015,http://opendatacommunities.org/id/county-council/surrey,Surrey,http://id.esd.org.uk/service/1465,Council expenditure,02/04/2015,ROW MAINTENANCE,SCREWFIX DIRECT,21.2,EQUIPMENT,"BUILDING MATERIALS, LUMBER STORES"
29/07/2015,http://opendatacommunities.org/id/county-council/surrey,Surrey,http://id.esd.org.uk/service/1465,Council expenditure,02/04/2015,YOUTH ENGAGEMENT CONTRACT,AMAZON UK RETAIL,11.22,EQUIPMENT,DIRECT MARKETING-OTHER DIRECT MARKETERS/NOT ELSEW.
29/07/2015,http://opendatacommunities.org/id/county-council/surrey,Surrey,http://id.esd.org.uk/service/1465,Council expenditure,02/04/2015,TRANSPORT,HARWOODS LANDROVER,7.5,VEHICLE REPAIRS AND MAINTENANCE,AUTOMOTIVE SERVICE SHOPS
29/07/2015,http://opendatacommunities.org/id/county-council/surrey,Surrey,http://id.esd.org.uk/service/1465,Council expenditure,02/04/2015,YOUTH ENGAGEMENT CONTRACT,"AMAZON SVCS EUROPE,SAR",13.31,EQUIPMENT,BOOK STORES
29/07/2015,http://opendatacommunities.org/id/county-council/surrey,Surrey,http://id.esd.org.uk/service/1465,Council expenditure,02/04/2015,POLICY AND PERFORMANCE TEAM,"AMAZON SVCS EUROPE,SAR",2.81,BOOKS,BOOK STORES
29/07/2015,http://opendatacommunities.org/id/county-council/surrey,Surrey,http://id.esd.org.uk/service/1465,Council expenditure,02/04/2015,SOLD DAY TO DAY OPERATIONS,WWW.LONDONPASS.COM,399,EDUC VISITS/HOLS/CAMPS/TOYS,TOURIST ATTRACTIONS AND EXHIBITS
29/07/2015,http://opendatacommunities.org/id/county-council/surrey,Surrey,http://id.esd.org.uk/service/1465,Council expenditure,02/04/2015,TARGETED INTERVENTION,BITTOMS KINGSTON,4.2,EDUC VISITS/HOLS/CAMPS/TOYS,GOVERNMENT SERVICES-NOT ELSEWHERE CLASSIFIED
29/07/2015,http://opendatacommunities.org/id/county-council/surrey,Surrey,http://id.esd.org.uk/service/1465,Council expenditure,02/04/2015,MALLOW CRESCENT,SAINSBURYS TO YOU 0686,11.6,PURCHASE OF FOOD (RAW MATERIALS),"GROCERY STORES, SUPERMARKETS"
29/07/2015,http://opendatacommunities.org/id/county-council/surrey,Surrey,http://id.esd.org.uk/service/1465,Council expenditure,02/04/2015,MALLOW CRESCENT,SAINSBURYS TO YOU 0686,120.8,PURCHASE OF FOOD (RAW MATERIALS),"GROCERY STORES, SUPERMARKETS"
29/07/2015,http://opendatacommunities.org/id/county-council/surrey,Surrey,http://id.esd.org.uk/service/1465,Council expenditure,02/04/2015,KARIBU COMMUNITY HOME,"AMAZON SVCS EUROPE,SAR",4.98,EQUIPMENT,BOOK STORES
29/07/2015,http://opendatacommunities.org/id/county-council/surrey,Surrey,http://id.esd.org.uk/service/1465,Council expenditure,02/04/2015,STANWELL ROAD ASHFORD,TIMPSON LTD,43.5,DAY TO DAY MAINTENANCE,"HAT CLEANING SHOPS, SHOE REPAIR SHOPS, SHOE SHINE"
29/07/2015,http://opendatacommunities.org/id/county-council/surrey,Surrey,http://id.esd.org.uk/service/1465,Council expenditure,02/04/2015,TRANSPORT,COMBINED PRECISION,1.49,COMPUTER CONSUMABLES,ELECTRICAL PARTS AND EQUIPMENT
29/07/2015,http://opendatacommunities.org/id/county-council/surrey,Surrey,http://id.esd.org.uk/service/1465,Council expenditure,02/04/2015,FAIRCROFT COMMUNITY HOME,TESCO STORE 2160,225.41,PURCHASE OF FOOD (RAW MATERIALS),"GROCERY STORES, SUPERMARKETS"
29/07/2015,http://opendatacommunities.org/id/county-council/surrey,Surrey,http://id.esd.org.uk/service/1465,Council expenditure,02/04/2015,CORE ACTIVITY                           ,WWW.TROPHYSTORE.CO.UK,92.98,EQUIPMENT,"GIFT, CARD, NOVELTY AND SOUVENIR SHOPS"
29/07/2015,http://opendatacommunities.org/id/county-council/surrey,Surrey,http://id.esd.org.uk/service/1465,Council expenditure,02/04/2015,ACL CENTRAL EXPENDITURE,AMAZON UK RETAIL,6.41,EQUIPMENT,DIRECT MARKETING-OTHER DIRECT MARKETERS/NOT ELSEW.
29/07/2015,http://opendatacommunities.org/id/county-council/surrey,Surrey,http://id.esd.org.uk/service/1465,Council expenditure,02/04/2015,IMT CRITICAL ENVIRONMENTS,AMAZON UK RETAIL,15,REFRESHMENT COSTS,DIRECT MARKETING-OTHER DIRECT MARKETERS/NOT ELSEW.
29/07/2015,http://opendatacommunities.org/id/county-council/surrey,Surrey,http://id.esd.org.uk/service/1465,Council expenditure,02/04/2015,COUNTY HALL,"AMAZON SVCS EUROPE,SAR",142.47,EQUIPMENT,BOOK STORES
29/07/2015,http://opendatacommunities.org/id/county-council/surrey,Surrey,http://id.esd.org.uk/service/1465,Council expenditure,02/04/2015,Q&C A COTTLE,CENTRE FOR ACCESSIBLE,40,SUBSCRIPTIONS,"ORGANIZATIONS, CHARITABLE AND SOCIAL SERVICES"
29/07/2015,http://opendatacommunities.org/id/county-council/surrey,Surrey,http://id.esd.org.uk/service/1465,Council expenditure,02/04/2015,YOUTH ENGAGEMENT CONTRACT,"AMAZON SVCS EUROPE,SAR",51.16,EQUIPMENT,BOOK STORES
29/07/2015,http://opendatacommunities.org/id/county-council/surrey,Surrey,http://id.esd.org.uk/service/1465,Council expenditure,02/04/2015,SOLD CURRICULUM PROGRAMME DELIVERY,THE POST OFFICE,14.04,POSTAGE AND COURIER CHARGES,POSTAL SERVICES-GOVERNMENT ONLY
29/07/2015,http://opendatacommunities.org/id/county-council/surrey,Surrey,http://id.esd.org.uk/service/1465,Council expenditure,02/04/2015,EXTENDED HOURS SREVICE,"AMAZON SVCS EUROPE,SAR",25.49,EQUIPMENT,BOOK STORES
29/07/2015,http://opendatacommunities.org/id/county-council/surrey,Surrey,http://id.esd.org.uk/service/1465,Council expenditure,02/04/2015,ACL CENTRAL EXPENDITURE,"AMAZON SVCS EUROPE,SAR",81.54,FIXTURES AND FITTINGS,BOOK STORES
29/07/2015,http://opendatacommunities.org/id/county-council/surrey,Surrey,http://id.esd.org.uk/service/1465,Council expenditure,02/04/2015,ARUNDEL,ASDA HOME SHOPPING,68.8,REFRESHMENT COSTS,"GROCERY STORES, SUPERMARKETS"
29/07/2015,http://opendatacommunities.org/id/county-council/surrey,Surrey,http://id.esd.org.uk/service/1465,Council expenditure,02/04/2015,ARUNDEL,ASDA HOME SHOPPING,1,REFRESHMENT COSTS,"GROCERY STORES, SUPERMARKETS"
29/07/2015,http://opendatacommunities.org/id/county-council/surrey,Surrey,http://id.esd.org.uk/service/1465,Council expenditure,02/04/2015,YOUTH ENGAGEMENT CONTRACT,"AMAZON SVCS EUROPE,SAR",71.1,EQUIPMENT,BOOK STORES
29/07/2015,http://opendatacommunities.org/id/county-council/surrey,Surrey,http://id.esd.org.uk/service/1465,Council expenditure,02/04/2015,IMT MANAGEMENT TEAM,IN TO LUNCH,62,REFRESHMENT COSTS,CATERERS
29/07/2015,http://opendatacommunities.org/id/county-council/surrey,Surrey,http://id.esd.org.uk/service/1465,Council expenditure,02/04/2015,HIGHLANDS CTR BONSEY LA WOKING,GENERAL LAMPS LTD,35.52,DAY TO DAY MAINTENANCE,HOUSEHOLD APPLIANCE STORES
29/07/2015,http://opendatacommunities.org/id/county-council/surrey,Surrey,http://id.esd.org.uk/service/1465,Council expenditure,02/04/2015,BURBANK COMMUNITY HOME,WOKING GARDEN CENT,9.99,EQUIPMENT,LAWN AND GARDEN SUPPLY STORES
29/07/2015,http://opendatacommunities.org/id/county-council/surrey,Surrey,http://id.esd.org.uk/service/1465,Council expenditure,02/04/2015,CONSERVATION,PAYPAL  INST ARTLAW,29,BOOKS,PROFESSIONAL SERVICES-NOT ELSEWHERE CLASSIFIED
29/07/2015,http://opendatacommunities.org/id/county-council/surrey,Surrey,http://id.esd.org.uk/service/1465,Council expenditure,02/04/2015,SOLD DAY TO DAY OPERATIONS,THE LONDON EYE,215.68,EDUC VISITS/HOLS/CAMPS/TOYS,TOURIST ATTRACTIONS AND EXHIBITS
29/07/2015,http://opendatacommunities.org/id/county-council/surrey,Surrey,http://id.esd.org.uk/service/1465,Council expenditure,02/04/2015,HILLSIDE,INTERFLORA BRITISH UNI,34.98,EDUC VISITS/HOLS/CAMPS/TOYS,FLORISTS
29/07/2015,http://opendatacommunities.org/id/county-council/surrey,Surrey,http://id.esd.org.uk/service/1465,Council expenditure,02/04/2015,PE/CDT MAINTENANCE OVERHEADS,KETTLER /GB/ LTD,66,ITEMS PURCHASED FOR RE-SALE,SPORTING GOODS STORES
29/07/2015,http://opendatacommunities.org/id/county-council/surrey,Surrey,http://id.esd.org.uk/service/1465,Council expenditure,02/04/2015,SECTOR MANAGER,DAISY GIFTS,122.49,ITEMS PURCHASED FOR RE-SALE,"GIFT, CARD, NOVELTY AND SOUVENIR SHOPS"
29/07/2015,http://opendatacommunities.org/id/county-council/surrey,Surrey,http://id.esd.org.uk/service/1465,Council expenditure,02/04/2015,ACL CENTRAL EXPENDITURE,AMAZON UK MARKETPLACE,9.08,EQUIPMENT,BOOK STORES
29/07/2015,http://opendatacommunities.org/id/county-council/surrey,Surrey,http://id.esd.org.uk/service/1465,Council expenditure,02/04/2015,IMPROVING OUTCOMES - EARLY SUPPORT,PAYPAL  NAS UK,210,TRAINING EXPENSES EXTERNAL GENERAL,"ORGANIZATIONS, CHARITABLE AND SOCIAL SERVICES"
29/07/2015,http://opendatacommunities.org/id/county-council/surrey,Surrey,http://id.esd.org.uk/service/1465,Council expenditure,02/04/2015,PE/CDT MAINTENANCE OVERHEADS,N.M.A(AGENCIES),80.83,ITEMS PURCHASED FOR RE-SALE,MISCELLANEOUS AND SPECIALTY RETAIL STORES
29/07/2015,http://opendatacommunities.org/id/county-council/surrey,Surrey,http://id.esd.org.uk/service/1465,Council expenditure,02/04/2015,CRB CHECKING TEAM,AMAZON UK RETAIL,56.67,EQUIPMENT,DIRECT MARKETING-OTHER DIRECT MARKETERS/NOT ELSEW.
29/07/2015,http://opendatacommunities.org/id/county-council/surrey,Surrey,http://id.esd.org.uk/service/1465,Council expenditure,02/04/2015,LEAVING CARE PACKAGES,CENTRAL SERVICES LTD,630,3RD PARTY PAYMENTS PRIVATE INDIV,REAL ESTATE AGENTS AND MANAGERS-RENTALS
29/07/2015,http://opendatacommunities.org/id/county-council/surrey,Surrey,http://id.esd.org.uk/service/1465,Council expenditure,02/04/2015,HILLSIDE,SAINSBURYS 0675,118.74,PURCHASE OF FOOD (RAW MATERIALS),"GROCERY STORES, SUPERMARKETS"
29/07/2015,http://opendatacommunities.org/id/county-council/surrey,Surrey,http://id.esd.org.uk/service/1465,Council expenditure,02/04/2015,YOUTH ENGAGEMENT CONTRACT,"AMAZON SVCS EUROPE,SAR",35.75,EQUIPMENT,BOOK STORES
29/07/2015,http://opendatacommunities.org/id/county-council/surrey,Surrey,http://id.esd.org.uk/service/1465,Council expenditure,02/04/2015,ACL CENTRAL EXPENDITURE,"AMAZON SVCS EUROPE,SAR",23.28,CURRICULUM EQUIPMENT AND FURNITURE,BOOK STORES
29/07/2015,http://opendatacommunities.org/id/county-council/surrey,Surrey,http://id.esd.org.uk/service/1465,Council expenditure,02/04/2015,ACCESS 2 EDUCATION NE NON-MEDICAL,WWW.BRITSAFE.ORG,15.3,EQUIPMENT,"ORGANIZATIONS, MEMBERSHIP-NOT ELSEWHERE CLASSIFIED"
29/07/2015,http://opendatacommunities.org/id/county-council/surrey,Surrey,http://id.esd.org.uk/service/1465,Council expenditure,02/04/2015,E&I - TEXTILES                          ,FACEBOOK WS7SV7E2S2,27.86,PUBLICITY,ADVERTISING SERVICES
29/07/2015,http://opendatacommunities.org/id/county-council/surrey,Surrey,http://id.esd.org.uk/service/1465,Council expenditure,03/04/2015,FAIRCROFT COMMUNITY HOME,TESCO STORE 2160,57.75,PURCHASE OF FOOD (RAW MATERIALS),"GROCERY STORES, SUPERMARKETS"
29/07/2015,http://opendatacommunities.org/id/county-council/surrey,Surrey,http://id.esd.org.uk/service/1465,Council expenditure,03/04/2015,ARUNDEL,WAITROSE 202,15.89,REFRESHMENT COSTS,"GROCERY STORES, SUPERMARKETS"
29/07/2015,http://opendatacommunities.org/id/county-council/surrey,Surrey,http://id.esd.org.uk/service/1465,Council expenditure,03/04/2015,HOPE SERVICE - EAST,"AMAZON SVCS EUROPE,SAR",15.9,DAY TO DAY MAINTENANCE,BOOK STORES
29/07/2015,http://opendatacommunities.org/id/county-council/surrey,Surrey,http://id.esd.org.uk/service/1465,Council expenditure,03/04/2015,COUNTY HALL,AMAZON UK RETAIL,30.29,EQUIPMENT,DIRECT MARKETING-OTHER DIRECT MARKETERS/NOT ELSEW.
29/07/2015,http://opendatacommunities.org/id/county-council/surrey,Surrey,http://id.esd.org.uk/service/1465,Council expenditure,03/04/2015,E&I - TEXTILES                          ,FACEBOOK TT7PW7S2S2,22.15,ADVERTISING (STATUTORY NOTICES),ADVERTISING SERVICES
29/07/2015,http://opendatacommunities.org/id/county-council/surrey,Surrey,http://id.esd.org.uk/service/1465,Council expenditure,03/04/2015,SOLD DAY TO DAY OPERATIONS,TESCO STORE 2812,28.5,EQUIPMENT,"GROCERY STORES, SUPERMARKETS"
29/07/2015,http://opendatacommunities.org/id/county-council/surrey,Surrey,http://id.esd.org.uk/service/1465,Council expenditure,03/04/2015,HILLSIDE,SAINSBURYS 0675,29.05,PURCHASE OF FOOD (RAW MATERIALS),"GROCERY STORES, SUPERMARKETS"
29/07/2015,http://opendatacommunities.org/id/county-council/surrey,Surrey,http://id.esd.org.uk/service/1465,Council expenditure,03/04/2015,ACL CENTRAL EXPENDITURE,"AMAZON SVCS EUROPE,SAR",11.66,EQUIPMENT,BOOK STORES
29/07/2015,http://opendatacommunities.org/id/county-council/surrey,Surrey,http://id.esd.org.uk/service/1465,Council expenditure,03/04/2015,LIBERTAS COMMUNITY HOME,BK AIRE,55.9,PURCHASE OF FOOD (RAW MATERIALS),"EATING PLACES, RESTAURANTS"
29/07/2015,http://opendatacommunities.org/id/county-council/surrey,Surrey,http://id.esd.org.uk/service/1465,Council expenditure,03/04/2015,CHEYNE WALK COMMUNITY HOME,CINEWORLD CLASSIC,29.4,EDUC VISITS/HOLS/CAMPS/TOYS,"THEATRICAL PRODUCERS(EXCL MOTION PIX),TICKET AGNCY"
29/07/2015,http://opendatacommunities.org/id/county-council/surrey,Surrey,http://id.esd.org.uk/service/1465,Council expenditure,03/04/2015,ACL CENTRAL EXPENDITURE,"AMAZON SVCS EUROPE,SAR",5.19,EQUIPMENT,BOOK STORES
29/07/2015,http://opendatacommunities.org/id/county-council/surrey,Surrey,http://id.esd.org.uk/service/1465,Council expenditure,03/04/2015,OTHER NON CWD HOME COSTS,ARGOS RETAIL GROUP,911.89,FURNITURE,DISCOUNT STORES
29/07/2015,http://opendatacommunities.org/id/county-council/surrey,Surrey,http://id.esd.org.uk/service/1465,Council expenditure,03/04/2015,IMPROVING OUTCOMES - EARLY SUPPORT,AMAZON UK RETAIL,43.58,EQUIPMENT,DIRECT MARKETING-OTHER DIRECT MARKETERS/NOT ELSEW.
29/07/2015,http://opendatacommunities.org/id/county-council/surrey,Surrey,http://id.esd.org.uk/service/1465,Council expenditure,03/04/2015,LIBERTAS COMMUNITY HOME,SAINSBURYS TO YOU 0652,149.88,PURCHASE OF FOOD (RAW MATERIALS),"GROCERY STORES, SUPERMARKETS"
29/07/2015,http://opendatacommunities.org/id/county-council/surrey,Surrey,http://id.esd.org.uk/service/1465,Council expenditure,03/04/2015,IMT SUPPORT SERVICE DESK,"AMAZON SVCS EUROPE,SAR",2.99,EQUIPMENT,BOOK STORES
29/07/2015,http://opendatacommunities.org/id/county-council/surrey,Surrey,http://id.esd.org.uk/service/1465,Council expenditure,03/04/2015,LIBERTAS COMMUNITY HOME,GROUNDFORCE TENERIFE S,81.25,EDUC VISITS/HOLS/CAMPS/TOYS,TRAVEL AGENCIES AND TOUR OPERATORS
29/07/2015,http://opendatacommunities.org/id/county-council/surrey,Surrey,http://id.esd.org.uk/service/1465,Council expenditure,03/04/2015,BURBANK COMMUNITY HOME,W M MORRISONS,9.97,EQUIPMENT,"GROCERY STORES, SUPERMARKETS"
29/07/2015,http://opendatacommunities.org/id/county-council/surrey,Surrey,http://id.esd.org.uk/service/1465,Council expenditure,03/04/2015,SOLD DAY TO DAY OPERATIONS,B & Q,10.68,EQUIPMENT,"BUILDING MATERIALS, LUMBER STORES"
29/07/2015,http://opendatacommunities.org/id/county-council/surrey,Surrey,http://id.esd.org.uk/service/1465,Council expenditure,03/04/2015,BURBANK COMMUNITY HOME,W M MORRISONS CAFE,3.5,REFRESHMENT COSTS,"EATING PLACES, RESTAURANTS"
29/07/2015,http://opendatacommunities.org/id/county-council/surrey,Surrey,http://id.esd.org.uk/service/1465,Council expenditure,03/04/2015,LIBERTAS COMMUNITY HOME,SANDOS SAN BLAS,337.67,EDUC VISITS/HOLS/CAMPS/TOYS,"LODGING-HOTELS,MOTELS,RESORTS-NOT CLASSIFIED"
29/07/2015,http://opendatacommunities.org/id/county-council/surrey,Surrey,http://id.esd.org.uk/service/1465,Council expenditure,03/04/2015,SOLD DAY TO DAY OPERATIONS,CARD FACTORY,6.93,EQUIPMENT,"GIFT, CARD, NOVELTY AND SOUVENIR SHOPS"
29/07/2015,http://opendatacommunities.org/id/county-council/surrey,Surrey,http://id.esd.org.uk/service/1465,Council expenditure,03/04/2015,YOUTH ENGAGEMENT CONTRACT,AMAZON UK RETAIL,113.05,EQUIPMENT,DIRECT MARKETING-OTHER DIRECT MARKETERS/NOT ELSEW.
29/07/2015,http://opendatacommunities.org/id/county-council/surrey,Surrey,http://id.esd.org.uk/service/1465,Council expenditure,03/04/2015,HOPE SERVICE - EAST,"AMAZON SVCS EUROPE,SAR",26.99,DAY TO DAY MAINTENANCE,BOOK STORES
29/07/2015,http://opendatacommunities.org/id/county-council/surrey,Surrey,http://id.esd.org.uk/service/1465,Council expenditure,03/04/2015,SOLD DAY TO DAY OPERATIONS,CLINTONS 729,2.5,EQUIPMENT,"GIFT, CARD, NOVELTY AND SOUVENIR SHOPS"
29/07/2015,http://opendatacommunities.org/id/county-council/surrey,Surrey,http://id.esd.org.uk/service/1465,Council expenditure,03/04/2015,ACL CENTRAL EXPENDITURE,FACEBOOK V4H467SBB2,11.13,PUBLICITY,ADVERTISING SERVICES
29/07/2015,http://opendatacommunities.org/id/county-council/surrey,Surrey,http://id.esd.org.uk/service/1465,Council expenditure,03/04/2015,WOODLANDS COMMUNITY HOME,SAINSBURYS 0686,51.62,PURCHASE OF FOOD (RAW MATERIALS),"GROCERY STORES, SUPERMARKETS"
29/07/2015,http://opendatacommunities.org/id/county-council/surrey,Surrey,http://id.esd.org.uk/service/1465,Council expenditure,03/04/2015,WOODLANDS COMMUNITY HOME,SAINSBURYS 0686,3.35,PURCHASE OF FOOD (RAW MATERIALS),"GROCERY STORES, SUPERMARKETS"
29/07/2015,http://opendatacommunities.org/id/county-council/surrey,Surrey,http://id.esd.org.uk/service/1465,Council expenditure,03/04/2015,WOODLANDS COMMUNITY HOME,SAINSBURYS 0686,12.99,LIBRARY RESOURCES,"GROCERY STORES, SUPERMARKETS"
29/07/2015,http://opendatacommunities.org/id/county-council/surrey,Surrey,http://id.esd.org.uk/service/1465,Council expenditure,03/04/2015,WOODLANDS COMMUNITY HOME,SAINSBURYS 0686,67.65,EQUIPMENT,"GROCERY STORES, SUPERMARKETS"
29/07/2015,http://opendatacommunities.org/id/county-council/surrey,Surrey,http://id.esd.org.uk/service/1465,Council expenditure,03/04/2015,PORTAGE SERVICE (SW),AMAZON UK RETAIL,53,BOOKS,DIRECT MARKETING-OTHER DIRECT MARKETERS/NOT ELSEW.
29/07/2015,http://opendatacommunities.org/id/county-council/surrey,Surrey,http://id.esd.org.uk/service/1465,Council expenditure,04/04/2015,FAIRCROFT COMMUNITY HOME,PIZZA HUT 762,67.05,REFRESHMENT COSTS,"EATING PLACES, RESTAURANTS"
29/07/2015,http://opendatacommunities.org/id/county-council/surrey,Surrey,http://id.esd.org.uk/service/1465,Council expenditure,04/04/2015,BURBANK COMMUNITY HOME,COSTA COFFEE,18.8,REFRESHMENT COSTS,"EATING PLACES, RESTAURANTS"
29/07/2015,http://opendatacommunities.org/id/county-council/surrey,Surrey,http://id.esd.org.uk/service/1465,Council expenditure,04/04/2015,HOPE SERVICE - WEST,LAKELAND WINDSOR,18.74,CURRICULUM EQUIPMENT AND FURNITURE,MISCELLANEOUS GENERAL MERCHANDISE
29/07/2015,http://opendatacommunities.org/id/county-council/surrey,Surrey,http://id.esd.org.uk/service/1465,Council expenditure,04/04/2015,FAIRCROFT COMMUNITY HOME,CINEWORLD BGT CP,30,EDUC VISITS/HOLS/CAMPS/TOYS,"THEATRICAL PRODUCERS(EXCL MOTION PIX),TICKET AGNCY"
29/07/2015,http://opendatacommunities.org/id/county-council/surrey,Surrey,http://id.esd.org.uk/service/1465,Council expenditure,04/04/2015,LANGDOWN STAFF COST,TESCO STORE 3220,123.65,PURCHASE OF FOOD (RAW MATERIALS),"GROCERY STORES, SUPERMARKETS"
29/07/2015,http://opendatacommunities.org/id/county-council/surrey,Surrey,http://id.esd.org.uk/service/1465,Council expenditure,04/04/2015,BURBANK COMMUNITY HOME,WH SMITH,19.99,REFRESHMENT COSTS,NEWS DEALERS AND NEWSSTANDS
29/07/2015,http://opendatacommunities.org/id/county-council/surrey,Surrey,http://id.esd.org.uk/service/1465,Council expenditure,04/04/2015,WEB OPERATIONS TEAM,HOOTSUITE MEDIA INC.,4.97,SUBSCRIPTIONS,BUSINESS SERVICES-NOT ELSEWHERE CLASSIFIED
29/07/2015,http://opendatacommunities.org/id/county-council/surrey,Surrey,http://id.esd.org.uk/service/1465,Council expenditure,04/04/2015,BURBANK COMMUNITY HOME,MCDONALDS 736,44.88,PURCHASE OF FOOD (RAW MATERIALS),FAST FOOD RESTAURANTS
29/07/2015,http://opendatacommunities.org/id/county-council/surrey,Surrey,http://id.esd.org.uk/service/1465,Council expenditure,04/04/2015,E&I - TEXTILES                          ,FACEBOOK ELM4W7N2S2,19.31,ADVERTISING (STATUTORY NOTICES),ADVERTISING SERVICES
29/07/2015,http://opendatacommunities.org/id/county-council/surrey,Surrey,http://id.esd.org.uk/service/1465,Council expenditure,04/04/2015,FAIRCROFT COMMUNITY HOME,HOME BARGAINS BYFLEET,14.55,EQUIPMENT,HARDWARE STORES
29/07/2015,http://opendatacommunities.org/id/county-council/surrey,Surrey,http://id.esd.org.uk/service/1465,Council expenditure,04/04/2015,ARUNDEL,ASDA SUPERSTORE,11.09,REFRESHMENT COSTS,"GROCERY STORES, SUPERMARKETS"
29/07/2015,http://opendatacommunities.org/id/county-council/surrey,Surrey,http://id.esd.org.uk/service/1465,Council expenditure,04/04/2015,HILLSIDE,TESCO STORE 3149,362.2,PURCHASE OF FOOD (RAW MATERIALS),"GROCERY STORES, SUPERMARKETS"
29/07/2015,http://opendatacommunities.org/id/county-council/surrey,Surrey,http://id.esd.org.uk/service/1465,Council expenditure,04/04/2015,MALLOW CRESCENT,SAINSBURYS SACAT 0652,12,PUBLICITY,"GROCERY STORES, SUPERMARKETS"
29/07/2015,http://opendatacommunities.org/id/county-council/surrey,Surrey,http://id.esd.org.uk/service/1465,Council expenditure,04/04/2015,BURBANK COMMUNITY HOME,WH SMITH,4.78,REFRESHMENT COSTS,NEWS DEALERS AND NEWSSTANDS
29/07/2015,http://opendatacommunities.org/id/county-council/surrey,Surrey,http://id.esd.org.uk/service/1465,Council expenditure,04/04/2015,ACL CENTRAL EXPENDITURE,"AMAZON SVCS EUROPE,SAR",49.58,EQUIPMENT,BOOK STORES
29/07/2015,http://opendatacommunities.org/id/county-council/surrey,Surrey,http://id.esd.org.uk/service/1465,Council expenditure,04/04/2015,BURBANK COMMUNITY HOME,MAGIC CIRCUS,11.21,VENUE COSTS (INCLUDING HIRE OF ROOMS),"LODGING-HOTELS,MOTELS,RESORTS-NOT CLASSIFIED"
29/07/2015,http://opendatacommunities.org/id/county-council/surrey,Surrey,http://id.esd.org.uk/service/1465,Council expenditure,04/04/2015,ARUNDEL,AMAZON UK RETAIL,39.25,EDUC VISITS/HOLS/CAMPS/TOYS,DIRECT MARKETING-OTHER DIRECT MARKETERS/NOT ELSEW.
29/07/2015,http://opendatacommunities.org/id/county-council/surrey,Surrey,http://id.esd.org.uk/service/1465,Council expenditure,04/04/2015,ACL CENTRAL EXPENDITURE,"AMAZON SVCS EUROPE,SAR",5.68,CURRICULUM EQUIPMENT AND FURNITURE,BOOK STORES
29/07/2015,http://opendatacommunities.org/id/county-council/surrey,Surrey,http://id.esd.org.uk/service/1465,Council expenditure,04/04/2015,LAKERS YC,"AMAZON SVCS EUROPE,SAR",31.49,EQUIPMENT,BOOK STORES
29/07/2015,http://opendatacommunities.org/id/county-council/surrey,Surrey,http://id.esd.org.uk/service/1465,Council expenditure,05/04/2015,BURBANK COMMUNITY HOME,RAINFOREST CAFE,134.99,PURCHASE OF FOOD (RAW MATERIALS),"EATING PLACES, RESTAURANTS"
29/07/2015,http://opendatacommunities.org/id/county-council/surrey,Surrey,http://id.esd.org.uk/service/1465,Council expenditure,05/04/2015,LEAVING CARE PACKAGES,THE BIG APPLE,779.94,3RD PARTY PAYMENTS PRIVATE INDIV,BOWLING ALLEYS
29/07/2015,http://opendatacommunities.org/id/county-council/surrey,Surrey,http://id.esd.org.uk/service/1465,Council expenditure,05/04/2015,ACL CENTRAL EXPENDITURE,AMAZON UK RETAIL,81.91,EQUIPMENT,DIRECT MARKETING-OTHER DIRECT MARKETERS/NOT ELSEW.
29/07/2015,http://opendatacommunities.org/id/county-council/surrey,Surrey,http://id.esd.org.uk/service/1465,Council expenditure,05/04/2015,E&I - TEXTILES                          ,FACEBOOK PRU5V7NZR2,21.74,ADVERTISING (STATUTORY NOTICES),ADVERTISING SERVICES
29/07/2015,http://opendatacommunities.org/id/county-council/surrey,Surrey,http://id.esd.org.uk/service/1465,Council expenditure,05/04/2015,POLICY AND PERFORMANCE TEAM,AMAZON UK RETAIL,8.91,BOOKS,DIRECT MARKETING-OTHER DIRECT MARKETERS/NOT ELSEW.
29/07/2015,http://opendatacommunities.org/id/county-council/surrey,Surrey,http://id.esd.org.uk/service/1465,Council expenditure,05/04/2015,SOLD DAY TO DAY OPERATIONS,NEW SOUTHERN RAILW,67.2,EDUC VISITS/HOLS/CAMPS/TOYS,PASSENGER RAILWAYS
29/07/2015,http://opendatacommunities.org/id/county-council/surrey,Surrey,http://id.esd.org.uk/service/1465,Council expenditure,05/04/2015,WOODLANDS COMMUNITY HOME,BOWLPLEX,24,EDUC VISITS/HOLS/CAMPS/TOYS,"BANDS, ORCHESTRAS, & MISC ENTRTNRS-NOT ELSWHR CLAS"
29/07/2015,http://opendatacommunities.org/id/county-council/surrey,Surrey,http://id.esd.org.uk/service/1465,Council expenditure,06/04/2015,TARGETED INTERVENTION,VUE BSL LTD,14.98,EDUC VISITS/HOLS/CAMPS/TOYS,MOTION PICTURE THEATERS
29/07/2015,http://opendatacommunities.org/id/county-council/surrey,Surrey,http://id.esd.org.uk/service/1465,Council expenditure,06/04/2015,FAIRCROFT COMMUNITY HOME,EVERYMAN ON-LINE,56.65,EDUC VISITS/HOLS/CAMPS/TOYS,MOTION PICTURE THEATERS
29/07/2015,http://opendatacommunities.org/id/county-council/surrey,Surrey,http://id.esd.org.uk/service/1465,Council expenditure,06/04/2015,MALLOW CRESCENT,TESCO STORE 2590,12.49,PURCHASE OF FOOD (RAW MATERIALS),"GROCERY STORES, SUPERMARKETS"
29/07/2015,http://opendatacommunities.org/id/county-council/surrey,Surrey,http://id.esd.org.uk/service/1465,Council expenditure,06/04/2015,MALLOW CRESCENT,TESCO STORE 2590,69.37,PURCHASE OF FOOD (RAW MATERIALS),"GROCERY STORES, SUPERMARKETS"
29/07/2015,http://opendatacommunities.org/id/county-council/surrey,Surrey,http://id.esd.org.uk/service/1465,Council expenditure,06/04/2015,CSF COMMUNICATIONS TEAM,HOOTSUITE MEDIA INC.,9.59,SUBSCRIPTIONS,BUSINESS SERVICES-NOT ELSEWHERE CLASSIFIED
29/07/2015,http://opendatacommunities.org/id/county-council/surrey,Surrey,http://id.esd.org.uk/service/1465,Council expenditure,06/04/2015,HOPE SERVICE - WEST,TESCO STORE 3149,37.88,PURCHASE OF FOOD (RAW MATERIALS),"GROCERY STORES, SUPERMARKETS"
29/07/2015,http://opendatacommunities.org/id/county-council/surrey,Surrey,http://id.esd.org.uk/service/1465,Council expenditure,06/04/2015,TRANSPORT,WICKES,4.99,DAY TO DAY MAINTENANCE,HOME SUPPLY WAREHOUSE STORES
29/07/2015,http://opendatacommunities.org/id/county-council/surrey,Surrey,http://id.esd.org.uk/service/1465,Council expenditure,06/04/2015,ASHTEAD YC,TESCO STORES 6999,16.16,REFRESHMENT COSTS,"GROCERY STORES, SUPERMARKETS"
29/07/2015,http://opendatacommunities.org/id/county-council/surrey,Surrey,http://id.esd.org.uk/service/1465,Council expenditure,06/04/2015,LIBERTAS COMMUNITY HOME,SAINSBURYS 0652,22,PURCHASE OF FOOD (RAW MATERIALS),"GROCERY STORES, SUPERMARKETS"
29/07/2015,http://opendatacommunities.org/id/county-council/surrey,Surrey,http://id.esd.org.uk/service/1465,Council expenditure,06/04/2015,KARIBU COMMUNITY HOME,THE CAPTAINS TABLE,56.55,PURCHASE OF FOOD (RAW MATERIALS),"EATING PLACES, RESTAURANTS"
29/07/2015,http://opendatacommunities.org/id/county-council/surrey,Surrey,http://id.esd.org.uk/service/1465,Council expenditure,06/04/2015,RUTH HOUSE,SAINSBURYS TO YOU 0686,4.55,PURCHASE OF FOOD (RAW MATERIALS),"GROCERY STORES, SUPERMARKETS"
29/07/2015,http://opendatacommunities.org/id/county-council/surrey,Surrey,http://id.esd.org.uk/service/1465,Council expenditure,06/04/2015,RUTH HOUSE,SAINSBURYS TO YOU 0686,28.85,PURCHASE OF FOOD (RAW MATERIALS),"GROCERY STORES, SUPERMARKETS"
29/07/2015,http://opendatacommunities.org/id/county-council/surrey,Surrey,http://id.esd.org.uk/service/1465,Council expenditure,06/04/2015,KARIBU COMMUNITY HOME,FRESCO G.C,49.03,PURCHASE OF FOOD (RAW MATERIALS),"GROCERY STORES, SUPERMARKETS"
29/07/2015,http://opendatacommunities.org/id/county-council/surrey,Surrey,http://id.esd.org.uk/service/1465,Council expenditure,06/04/2015,CHEYNE WALK COMMUNITY HOME,AIR BALLOON,30.36,PURCHASE OF FOOD (RAW MATERIALS),"BAR,LOUNGE,DISCO,NIGHTCLUB,TAVERN-ALCOHOLIC DRINKS"
29/07/2015,http://opendatacommunities.org/id/county-council/surrey,Surrey,http://id.esd.org.uk/service/1465,Council expenditure,06/04/2015,CHEYNE WALK COMMUNITY HOME,TESCO STORES 2560,49.66,EQUIPMENT,"GROCERY STORES, SUPERMARKETS"
29/07/2015,http://opendatacommunities.org/id/county-council/surrey,Surrey,http://id.esd.org.uk/service/1465,Council expenditure,07/04/2015,SOLD DAY TO DAY OPERATIONS,WWW.TRIDENTUK.COM,55.84,EQUIPMENT,"MARINAS, MARINE SERVICE/SUPPLIES"
29/07/2015,http://opendatacommunities.org/id/county-council/surrey,Surrey,http://id.esd.org.uk/service/1465,Council expenditure,07/04/2015,KARIBU COMMUNITY HOME,BEAVER ARCHITECTURAL,56.58,EQUIPMENT,CONSTRUCTION MATERIALS NOT ELSEWHERE CLASSIFIED
29/07/2015,http://opendatacommunities.org/id/county-council/surrey,Surrey,http://id.esd.org.uk/service/1465,Council expenditure,07/04/2015,SOLD DAY TO DAY OPERATIONS,ROYAL YACHTING ASSOC L,106.75,EQUIPMENT,BUSINESS SERVICES-NOT ELSEWHERE CLASSIFIED
29/07/2015,http://opendatacommunities.org/id/county-council/surrey,Surrey,http://id.esd.org.uk/service/1465,Council expenditure,07/04/2015,CHEYNE WALK COMMUNITY HOME,ARGOS RETAIL GROUP,31.44,EQUIPMENT,DISCOUNT STORES
29/07/2015,http://opendatacommunities.org/id/county-council/surrey,Surrey,http://id.esd.org.uk/service/1465,Council expenditure,07/04/2015,TRANSPORT,BRIGADE ELECTRONIC,"2,550.76",OPERATIONAL FIRE EQUIPMENT,DIRECT MARKETING-COMBINATION CATALOG/RETAIL MERCH.
29/07/2015,http://opendatacommunities.org/id/county-council/surrey,Surrey,http://id.esd.org.uk/service/1465,Council expenditure,07/04/2015,KARIBU COMMUNITY HOME,GUILDFORD LOCK & SAFE,68.1,EQUIPMENT,HARDWARE EQUIPMENT AND SUPPLIES
29/07/2015,http://opendatacommunities.org/id/county-council/surrey,Surrey,http://id.esd.org.uk/service/1465,Council expenditure,07/04/2015,PE/CDT MAINTENANCE OVERHEADS,BEACON ELECTRIC(GUILDF,596.2,EQUIPMENT,ELECTRICAL PARTS AND EQUIPMENT
29/07/2015,http://opendatacommunities.org/id/county-council/surrey,Surrey,http://id.esd.org.uk/service/1465,Council expenditure,07/04/2015,IMCA / DEPRIVATION OF LIBERTY,VIRGIN MEDIA PYMTS,138.01,3RD PARTY PAYMENTS PRIVATE INDIV,TELECOM INCL PREPAID/RECURRING PHONE SVCS
29/07/2015,http://opendatacommunities.org/id/county-council/surrey,Surrey,http://id.esd.org.uk/service/1465,Council expenditure,07/04/2015,HOPE SERVICE - WEST,SAINSBURYS SACAT(4409),22.8,PURCHASE OF FOOD (RAW MATERIALS),"GROCERY STORES, SUPERMARKETS"
29/07/2015,http://opendatacommunities.org/id/county-council/surrey,Surrey,http://id.esd.org.uk/service/1465,Council expenditure,07/04/2015,TRANSPORT,AMAZON UK RETAIL,37.19,COMPUTER HARDWARE,DIRECT MARKETING-OTHER DIRECT MARKETERS/NOT ELSEW.
29/07/2015,http://opendatacommunities.org/id/county-council/surrey,Surrey,http://id.esd.org.uk/service/1465,Council expenditure,07/04/2015,PE/CDT MAINTENANCE OVERHEADS,AW CHAMPION LTD,37.69,EQUIPMENT,"BUILDING MATERIALS, LUMBER STORES"
29/07/2015,http://opendatacommunities.org/id/county-council/surrey,Surrey,http://id.esd.org.uk/service/1465,Council expenditure,07/04/2015,DOWNLANDS COUNTRYSIDE PROJECT,TESCO STORES,4.1,CLEANING MATERIALS,"GROCERY STORES, SUPERMARKETS"
29/07/2015,http://opendatacommunities.org/id/county-council/surrey,Surrey,http://id.esd.org.uk/service/1465,Council expenditure,07/04/2015,RUTH HOUSE,SAINSBURYS TO YOU 0686,24.9,PURCHASE OF FOOD (RAW MATERIALS),"GROCERY STORES, SUPERMARKETS"
29/07/2015,http://opendatacommunities.org/id/county-council/surrey,Surrey,http://id.esd.org.uk/service/1465,Council expenditure,07/04/2015,RUTH HOUSE,SAINSBURYS TO YOU 0686,179.65,PURCHASE OF FOOD (RAW MATERIALS),"GROCERY STORES, SUPERMARKETS"
29/07/2015,http://opendatacommunities.org/id/county-council/surrey,Surrey,http://id.esd.org.uk/service/1465,Council expenditure,07/04/2015,CHILDREN'S RIGHTS TEAM,PLAYZONE,34.87,VENUE COSTS (INCLUDING HIRE OF ROOMS),"AMUSEMENT PARKS,CARNIVALS,CIRCUS,FORTUNE TELLERS"
29/07/2015,http://opendatacommunities.org/id/county-council/surrey,Surrey,http://id.esd.org.uk/service/1465,Council expenditure,07/04/2015,HOPE SERVICE - EAST,SAINSBURYS 0683,13,PURCHASE OF FOOD (RAW MATERIALS),"GROCERY STORES, SUPERMARKETS"
29/07/2015,http://opendatacommunities.org/id/county-council/surrey,Surrey,http://id.esd.org.uk/service/1465,Council expenditure,07/04/2015,KARIBU COMMUNITY HOME,BURGER KING,11.38,PURCHASE OF FOOD (RAW MATERIALS),"EATING PLACES, RESTAURANTS"
29/07/2015,http://opendatacommunities.org/id/county-council/surrey,Surrey,http://id.esd.org.uk/service/1465,Council expenditure,07/04/2015,SE CARE - NON-LAC CP & COURT,CHESSINGTON WRLD A,338,OTHER COMMUNITY CARE VOL,"AMUSEMENT PARKS,CARNIVALS,CIRCUS,FORTUNE TELLERS"
29/07/2015,http://opendatacommunities.org/id/county-council/surrey,Surrey,http://id.esd.org.uk/service/1465,Council expenditure,07/04/2015,KARIBU COMMUNITY HOME,BILLYS BISTRO,62.85,PURCHASE OF FOOD (RAW MATERIALS),"LODGING-HOTELS,MOTELS,RESORTS-NOT CLASSIFIED"
29/07/2015,http://opendatacommunities.org/id/county-council/surrey,Surrey,http://id.esd.org.uk/service/1465,Council expenditure,07/04/2015,COVEHAM,SAINSBURYS TO YOU 0687,74.7,PURCHASE OF FOOD (RAW MATERIALS),"GROCERY STORES, SUPERMARKETS"
29/07/2015,http://opendatacommunities.org/id/county-council/surrey,Surrey,http://id.esd.org.uk/service/1465,Council expenditure,07/04/2015,ACL CENTRAL EXPENDITURE,ARGOS RETAIL GROUP,208.93,FURNITURE,DISCOUNT STORES
29/07/2015,http://opendatacommunities.org/id/county-council/surrey,Surrey,http://id.esd.org.uk/service/1465,Council expenditure,07/04/2015,ASSET PLANNING - OPERATIONS,SAINSBURYS SACAT 0652,2.96,REFRESHMENT COSTS,"GROCERY STORES, SUPERMARKETS"
29/07/2015,http://opendatacommunities.org/id/county-council/surrey,Surrey,http://id.esd.org.uk/service/1465,Council expenditure,07/04/2015,TRANSPORT,NITON EQUIPMENT LTD,79.99,"CLOTHING, UNIFORM AND LAUNDRY",ACCESSORY AND APPAREL STORES-MISCELLANEOUS
29/07/2015,http://opendatacommunities.org/id/county-council/surrey,Surrey,http://id.esd.org.uk/service/1465,Council expenditure,07/04/2015,LOCAL PREVENTION FRAMEWORK - TANDRIDGE,BEAVER WATERSCAPES LTD,10.5,CURRICULUM CONSUMABLES,SPORTING GOODS STORES
29/07/2015,http://opendatacommunities.org/id/county-council/surrey,Surrey,http://id.esd.org.uk/service/1465,Council expenditure,07/04/2015,PE/CDT MAINTENANCE OVERHEADS,HARROD UK SPORT,784.39,ITEMS PURCHASED FOR RE-SALE,"SPORTS APPAREL, RIDING APPAREL STORES"
29/07/2015,http://opendatacommunities.org/id/county-council/surrey,Surrey,http://id.esd.org.uk/service/1465,Council expenditure,07/04/2015,KARIBU COMMUNITY HOME,FRESCO G.C,57.04,PURCHASE OF FOOD (RAW MATERIALS),"GROCERY STORES, SUPERMARKETS"
29/07/2015,http://opendatacommunities.org/id/county-council/surrey,Surrey,http://id.esd.org.uk/service/1465,Council expenditure,07/04/2015,PE/CDT MAINTENANCE OVERHEADS,HALFORDS 0731,3.99,EQUIPMENT,BICYCLE SHOPS-SALES AND SERVICE
29/07/2015,http://opendatacommunities.org/id/county-council/surrey,Surrey,http://id.esd.org.uk/service/1465,Council expenditure,07/04/2015,WOODLANDS COMMUNITY HOME,SAINSBURYS 0686,9,PURCHASE OF FOOD (RAW MATERIALS),"GROCERY STORES, SUPERMARKETS"
29/07/2015,http://opendatacommunities.org/id/county-council/surrey,Surrey,http://id.esd.org.uk/service/1465,Council expenditure,07/04/2015,WOODLANDS COMMUNITY HOME,SAINSBURYS 0686,55.56,PURCHASE OF FOOD (RAW MATERIALS),"GROCERY STORES, SUPERMARKETS"
29/07/2015,http://opendatacommunities.org/id/county-council/surrey,Surrey,http://id.esd.org.uk/service/1465,Council expenditure,07/04/2015,LIBERTAS COMMUNITY HOME,SAINSBURYS 0652,114,PURCHASE OF FOOD (RAW MATERIALS),"GROCERY STORES, SUPERMARKETS"
29/07/2015,http://opendatacommunities.org/id/county-council/surrey,Surrey,http://id.esd.org.uk/service/1465,Council expenditure,07/04/2015,KARIBU COMMUNITY HOME,FRESCO G.C,19.99,PURCHASE OF FOOD (RAW MATERIALS),"GROCERY STORES, SUPERMARKETS"
29/07/2015,http://opendatacommunities.org/id/county-council/surrey,Surrey,http://id.esd.org.uk/service/1465,Council expenditure,07/04/2015,LEAVING CARE PACKAGES,TRAVELODGE WEBSITE,133,3RD PARTY PAYMENTS PRIVATE INDIV,TRAVELODGE
29/07/2015,http://opendatacommunities.org/id/county-council/surrey,Surrey,http://id.esd.org.uk/service/1465,Council expenditure,07/04/2015,PE/CDT MAINTENANCE OVERHEADS,SPECIALIST INSTRUMENT,216,EQUIPMENT,ELECTRICAL PARTS AND EQUIPMENT
29/07/2015,http://opendatacommunities.org/id/county-council/surrey,Surrey,http://id.esd.org.uk/service/1465,Council expenditure,07/04/2015,YSS MANAGEMENT PRACTICE AND SUPPORT,WESTMINSTER FORUM,252,FEES,"CONSULTING, MANAGEMENT, AND PUBLIC RELATIONS SVCS"
29/07/2015,http://opendatacommunities.org/id/county-council/surrey,Surrey,http://id.esd.org.uk/service/1465,Council expenditure,07/04/2015,COMMUNICATIONS TEAM,ITUNES.COM/BILL,14.98,SUBSCRIPTIONS,RECORD SHOPS
29/07/2015,http://opendatacommunities.org/id/county-council/surrey,Surrey,http://id.esd.org.uk/service/1465,Council expenditure,07/04/2015,SERVICE DELIVERY RESOURCES,"AMAZON SVCS EUROPE,SAR",24.78,CLEANING MATERIALS,BOOK STORES
29/07/2015,http://opendatacommunities.org/id/county-council/surrey,Surrey,http://id.esd.org.uk/service/1465,Council expenditure,07/04/2015,NW CARE - NON-LAC CP & COURT,TRAVELODGE WEBSITE,234,CHILDREN ACT SEC 17 PAYMENTS,TRAVELODGE
29/07/2015,http://opendatacommunities.org/id/county-council/surrey,Surrey,http://id.esd.org.uk/service/1465,Council expenditure,07/04/2015,KARIBU COMMUNITY HOME,STARBUCKS,11.34,PURCHASE OF FOOD (RAW MATERIALS),FAST FOOD RESTAURANTS
29/07/2015,http://opendatacommunities.org/id/county-council/surrey,Surrey,http://id.esd.org.uk/service/1465,Council expenditure,07/04/2015,PE/CDT MAINTENANCE OVERHEADS,WICKES,20.94,EQUIPMENT,"BUILDING MATERIALS, LUMBER STORES"
29/07/2015,http://opendatacommunities.org/id/county-council/surrey,Surrey,http://id.esd.org.uk/service/1465,Council expenditure,07/04/2015,SPORTIVATE                              ,AMAZON UK RETAIL,17.98,EQUIPMENT,DIRECT MARKETING-OTHER DIRECT MARKETERS/NOT ELSEW.
29/07/2015,http://opendatacommunities.org/id/county-council/surrey,Surrey,http://id.esd.org.uk/service/1465,Council expenditure,07/04/2015,NE CARE - CP & COURT LAC,SURREY CC CARD PAY,21,CHILDREN ACT SEC 17 PAYMENTS,COMPUTER NETWORK/INFORMATION SERVICES
29/07/2015,http://opendatacommunities.org/id/county-council/surrey,Surrey,http://id.esd.org.uk/service/1465,Council expenditure,07/04/2015,HILLSIDE,SAINSBURYS 0675,48.27,PURCHASE OF FOOD (RAW MATERIALS),"GROCERY STORES, SUPERMARKETS"
29/07/2015,http://opendatacommunities.org/id/county-council/surrey,Surrey,http://id.esd.org.uk/service/1465,Council expenditure,07/04/2015,CHEYNE WALK COMMUNITY HOME,SAINSBURYS TO YOU 0026,250.15,PURCHASE OF FOOD (RAW MATERIALS),"GROCERY STORES, SUPERMARKETS"
29/07/2015,http://opendatacommunities.org/id/county-council/surrey,Surrey,http://id.esd.org.uk/service/1465,Council expenditure,07/04/2015,LOCAL PREVENTION FRAMEWORK - TANDRIDGE,W M MORRISONS,6.94,CURRICULUM CONSUMABLES,"GROCERY STORES, SUPERMARKETS"
29/07/2015,http://opendatacommunities.org/id/county-council/surrey,Surrey,http://id.esd.org.uk/service/1465,Council expenditure,07/04/2015,PHYSICAL CONTACT TRAINING,SJASUPLIES,21.28,STATIONERY,"ORGANIZATIONS, CHARITABLE AND SOCIAL SERVICES"
29/07/2015,http://opendatacommunities.org/id/county-council/surrey,Surrey,http://id.esd.org.uk/service/1465,Council expenditure,07/04/2015,PE/CDT MAINTENANCE OVERHEADS,BEACON ELECTRIC(GUILDF,747.83,EQUIPMENT,ELECTRICAL PARTS AND EQUIPMENT
29/07/2015,http://opendatacommunities.org/id/county-council/surrey,Surrey,http://id.esd.org.uk/service/1465,Council expenditure,07/04/2015,APPLEWOOD,ASDA HOME SHOPPING,102.37,PURCHASE OF FOOD (RAW MATERIALS),"GROCERY STORES, SUPERMARKETS"
29/07/2015,http://opendatacommunities.org/id/county-council/surrey,Surrey,http://id.esd.org.uk/service/1465,Council expenditure,07/04/2015,ASHTEAD YC,ASHTEAD PARK 350,14.49,REFRESHMENT COSTS,SERVICE STATIONS WITH OR WITHOUT ANCILLARY SERVICE
29/07/2015,http://opendatacommunities.org/id/county-council/surrey,Surrey,http://id.esd.org.uk/service/1465,Council expenditure,07/04/2015,CLOSED LANDFILL,A.1. ROPES & RIGG,144,EQUIPMENT,"FABRIC, NEEDLEWORK, PIECE GOODS, AND SEWING STORES"
29/07/2015,http://opendatacommunities.org/id/county-council/surrey,Surrey,http://id.esd.org.uk/service/1465,Council expenditure,07/04/2015,CENTRAL COMMUNICATIONS,IKEA ONLINE,53.3,STATIONERY,MISCELLANEOUS HOUSE FURNISHING SPECIALTY SHOPS
29/07/2015,http://opendatacommunities.org/id/county-council/surrey,Surrey,http://id.esd.org.uk/service/1465,Council expenditure,07/04/2015,ACL CENTRAL EXPENDITURE,GOOGLE  ADWS3062151770,450,PUBLICITY,DIRECT MARKETING-CONTINUITY/SUBSCRIPTION MERCHANTS
29/07/2015,http://opendatacommunities.org/id/county-council/surrey,Surrey,http://id.esd.org.uk/service/1465,Council expenditure,07/04/2015,YSS MANAGEMENT PRACTICE AND SUPPORT,VUE NCS CITB HS&E TEST,17.5,EDUC VISITS/HOLS/CAMPS/TOYS,SCHOOLS & EDUCATIONAL SVC-NOT ELSEWHERE CLASSIFIED
29/07/2015,http://opendatacommunities.org/id/county-council/surrey,Surrey,http://id.esd.org.uk/service/1465,Council expenditure,07/04/2015,LOCAL PREVENTION FRAMEWORK - TANDRIDGE,WWW.POSTOFFICE.CO.UK,5,CURRICULUM CONSUMABLES,POSTAL SERVICES-GOVERNMENT ONLY
29/07/2015,http://opendatacommunities.org/id/county-council/surrey,Surrey,http://id.esd.org.uk/service/1465,Council expenditure,07/04/2015,EAST SUSSEX CONTRACT - MGMT & ADMIN,TESCO STORES 3330,2.79,REFRESHMENT COSTS,"GROCERY STORES, SUPERMARKETS"
29/07/2015,http://opendatacommunities.org/id/county-council/surrey,Surrey,http://id.esd.org.uk/service/1465,Council expenditure,08/04/2015,ARUNDEL,ASDA HOME SHOPPING,177.19,REFRESHMENT COSTS,"GROCERY STORES, SUPERMARKETS"
29/07/2015,http://opendatacommunities.org/id/county-council/surrey,Surrey,http://id.esd.org.uk/service/1465,Council expenditure,08/04/2015,ARUNDEL,ASDA HOME SHOPPING,1,REFRESHMENT COSTS,"GROCERY STORES, SUPERMARKETS"
29/07/2015,http://opendatacommunities.org/id/county-council/surrey,Surrey,http://id.esd.org.uk/service/1465,Council expenditure,08/04/2015,MISC EDCAT SUPPORT,WWW.ROYALMAIL.COM,147,POSTAGE AND COURIER CHARGES,POSTAL SERVICES-GOVERNMENT ONLY
29/07/2015,http://opendatacommunities.org/id/county-council/surrey,Surrey,http://id.esd.org.uk/service/1465,Council expenditure,08/04/2015,SE CARE - LAC,WWW.BIRMINGHAM.GOV.UK,-30,CHILDREN ACT SEC 17 PAYMENTS,SCHOOLS & EDUCATIONAL SVC-NOT ELSEWHERE CLASSIFIED
29/07/2015,http://opendatacommunities.org/id/county-council/surrey,Surrey,http://id.esd.org.uk/service/1465,Council expenditure,08/04/2015,TRANSITION TEAM,PREMIER INN44013535,99.75,OTHER COMMUNITY CARE PRIV,PREMIER INN
29/07/2015,http://opendatacommunities.org/id/county-council/surrey,Surrey,http://id.esd.org.uk/service/1465,Council expenditure,08/04/2015,SE CARE - LAC,SOUTHDOWN PSV LTD,200,NON-STAFF RELATED TRANSPORT COSTS,BUS LINES
29/07/2015,http://opendatacommunities.org/id/county-council/surrey,Surrey,http://id.esd.org.uk/service/1465,Council expenditure,08/04/2015,FAIRCROFT COMMUNITY HOME,GIFFGAFF.COM,15,3RD PARTY PAYMENTS PRIVATE INDIV,TELECOMMUNICATION EQUIPMENT INCL TELEPHONE SALES
29/07/2015,http://opendatacommunities.org/id/county-council/surrey,Surrey,http://id.esd.org.uk/service/1465,Council expenditure,08/04/2015,KARIBU COMMUNITY HOME,PRESTO RETAIL LTD,25.7,PURCHASE OF FOOD (RAW MATERIALS),"GROCERY STORES, SUPERMARKETS"
29/07/2015,http://opendatacommunities.org/id/county-council/surrey,Surrey,http://id.esd.org.uk/service/1465,Council expenditure,08/04/2015,LEGAL SUPPORT TEAM,"AMAZON SVCS EUROPE,SAR",13.44,EQUIPMENT,BOOK STORES
29/07/2015,http://opendatacommunities.org/id/county-council/surrey,Surrey,http://id.esd.org.uk/service/1465,Council expenditure,08/04/2015,DOWNLANDS COUNTRYSIDE PROJECT,F R JONES & SON,121.75,EQUIPMENT,LANDSCAPING AND HORTICULTURAL SERVICES
29/07/2015,http://opendatacommunities.org/id/county-council/surrey,Surrey,http://id.esd.org.uk/service/1465,Council expenditure,08/04/2015,KARIBU COMMUNITY HOME,GOLDEN CST HOLIDAY,32,EDUC VISITS/HOLS/CAMPS/TOYS,"LODGING-HOTELS,MOTELS,RESORTS-NOT CLASSIFIED"
29/07/2015,http://opendatacommunities.org/id/county-council/surrey,Surrey,http://id.esd.org.uk/service/1465,Council expenditure,08/04/2015,LOWER MOLE COUNTRYSIDE PROJECT,WICKES,52.96,PURCHASE OF BUILDING MATERIALS,"BUILDING MATERIALS, LUMBER STORES"
29/07/2015,http://opendatacommunities.org/id/county-council/surrey,Surrey,http://id.esd.org.uk/service/1465,Council expenditure,08/04/2015,SOLD DAY TO DAY OPERATIONS,"AMAZON SVCS EUROPE,SAR",3.2,EQUIPMENT,BOOK STORES
29/07/2015,http://opendatacommunities.org/id/county-council/surrey,Surrey,http://id.esd.org.uk/service/1465,Council expenditure,08/04/2015,BUSINESS UNIT,VICTORIA LODGE,300,TRAINING EXPENSES EXTERNAL GENERAL,"LODGING-HOTELS,MOTELS,RESORTS-NOT CLASSIFIED"
29/07/2015,http://opendatacommunities.org/id/county-council/surrey,Surrey,http://id.esd.org.uk/service/1465,Council expenditure,08/04/2015,TRAINING AND DEVELOPMENT,DSA THEORY TEST,500,TRAINING EXPENSES EXTERNAL GENERAL,GOVERNMENT SERVICES-NOT ELSEWHERE CLASSIFIED
29/07/2015,http://opendatacommunities.org/id/county-council/surrey,Surrey,http://id.esd.org.uk/service/1465,Council expenditure,08/04/2015,E&I - COUNTRYSIDE                       ,PAYPAL  HOOTSUITE,9.59,SUBSCRIPTIONS,COMPUTER NETWORK/INFORMATION SERVICES
29/07/2015,http://opendatacommunities.org/id/county-council/surrey,Surrey,http://id.esd.org.uk/service/1465,Council expenditure,08/04/2015,PINEHURST RESIDENTIAL CARE,ARGOS RETAIL GROUP,63.95,EQUIPMENT,DISCOUNT STORES
29/07/2015,http://opendatacommunities.org/id/county-council/surrey,Surrey,http://id.esd.org.uk/service/1465,Council expenditure,08/04/2015,BURBANK COMMUNITY HOME,SAINSBURYS TO YOU 0686,198.75,PURCHASE OF FOOD (RAW MATERIALS),"GROCERY STORES, SUPERMARKETS"
29/07/2015,http://opendatacommunities.org/id/county-council/surrey,Surrey,http://id.esd.org.uk/service/1465,Council expenditure,08/04/2015,HOPE SERVICE - WEST,SAINSBURYS SACAT(4409),22.68,PURCHASE OF FOOD (RAW MATERIALS),"GROCERY STORES, SUPERMARKETS"
29/07/2015,http://opendatacommunities.org/id/county-council/surrey,Surrey,http://id.esd.org.uk/service/1465,Council expenditure,08/04/2015,KARIBU COMMUNITY HOME,LIDL UK,18.36,PURCHASE OF FOOD (RAW MATERIALS),"GROCERY STORES, SUPERMARKETS"
29/07/2015,http://opendatacommunities.org/id/county-council/surrey,Surrey,http://id.esd.org.uk/service/1465,Council expenditure,08/04/2015,IMT CRITICAL ENVIRONMENTS,AMAZON UK RETAIL,50.94,REFRESHMENT COSTS,DIRECT MARKETING-OTHER DIRECT MARKETERS/NOT ELSEW.
29/07/2015,http://opendatacommunities.org/id/county-council/surrey,Surrey,http://id.esd.org.uk/service/1465,Council expenditure,08/04/2015,NW EDUCATION WELFARE OFFICERS,SURREY CC CARD PAY,12,TRAINING EXPENSES EXTERNAL GENERAL,COMPUTER NETWORK/INFORMATION SERVICES
29/07/2015,http://opendatacommunities.org/id/county-council/surrey,Surrey,http://id.esd.org.uk/service/1465,Council expenditure,08/04/2015,SURREY ARTS GENERAL,ANDERTONS MUSIC,"1,042.80",EQUIPMENT,"MUSIC STORES-INSTRUMENTS, PIANOS, SHEET MUSIC"
29/07/2015,http://opendatacommunities.org/id/county-council/surrey,Surrey,http://id.esd.org.uk/service/1465,Council expenditure,08/04/2015,NW EDUCATION WELFARE OFFICERS,SURREY CC CARD PAY,12,TRAINING EXPENSES EXTERNAL GENERAL,COMPUTER NETWORK/INFORMATION SERVICES
29/07/2015,http://opendatacommunities.org/id/county-council/surrey,Surrey,http://id.esd.org.uk/service/1465,Council expenditure,08/04/2015,SOLD DAY TO DAY OPERATIONS,AMAZON UK MARKETPLACE,3.6,EQUIPMENT,BOOK STORES
29/07/2015,http://opendatacommunities.org/id/county-council/surrey,Surrey,http://id.esd.org.uk/service/1465,Council expenditure,08/04/2015,PINEHURST RESIDENTIAL CARE,ALEXANDRA WEBSITE,528.66,"CLOTHING, UNIFORM AND LAUNDRY",MEN'S/WOMEN'S/CHILDREN'S UNIFORMS/COMMERCIAL CLOTH
29/07/2015,http://opendatacommunities.org/id/county-council/surrey,Surrey,http://id.esd.org.uk/service/1465,Council expenditure,08/04/2015,MALLOW CRESCENT,SAINSBURYS TO YOU 0686,18.94,PURCHASE OF FOOD (RAW MATERIALS),"GROCERY STORES, SUPERMARKETS"
29/07/2015,http://opendatacommunities.org/id/county-council/surrey,Surrey,http://id.esd.org.uk/service/1465,Council expenditure,08/04/2015,MALLOW CRESCENT,SAINSBURYS TO YOU 0686,101.16,PURCHASE OF FOOD (RAW MATERIALS),"GROCERY STORES, SUPERMARKETS"
29/07/2015,http://opendatacommunities.org/id/county-council/surrey,Surrey,http://id.esd.org.uk/service/1465,Council expenditure,08/04/2015,TRAINING AND DEVELOPMENT,STAND-BY FIRE PROTECTI,535.35,EQUIPMENT,HARDWARE EQUIPMENT AND SUPPLIES
29/07/2015,http://opendatacommunities.org/id/county-council/surrey,Surrey,http://id.esd.org.uk/service/1465,Council expenditure,08/04/2015,SOLD DAY TO DAY OPERATIONS,"AMAZON SVCS EUROPE,SAR",17.9,EQUIPMENT,BOOK STORES
29/07/2015,http://opendatacommunities.org/id/county-council/surrey,Surrey,http://id.esd.org.uk/service/1465,Council expenditure,08/04/2015,SOLD CATERING,PURLFROSTLT,59.11,DAY TO DAY MAINTENANCE,HARDWARE STORES
29/07/2015,http://opendatacommunities.org/id/county-council/surrey,Surrey,http://id.esd.org.uk/service/1465,Council expenditure,08/04/2015,SOLD DAY TO DAY OPERATIONS,AMAZON UK MARKETPLACE,60.82,EQUIPMENT,BOOK STORES
29/07/2015,http://opendatacommunities.org/id/county-council/surrey,Surrey,http://id.esd.org.uk/service/1465,Council expenditure,08/04/2015,TRAINING AND DEVELOPMENT,DRIVING STANDARDS,142.8,TRAINING EXPENSES EXTERNAL GENERAL,GOVERNMENT SERVICES-NOT ELSEWHERE CLASSIFIED
29/07/2015,http://opendatacommunities.org/id/county-council/surrey,Surrey,http://id.esd.org.uk/service/1465,Council expenditure,08/04/2015,SOLD DAY TO DAY OPERATIONS,TRADE.SCOUTSHOP,145,EQUIPMENT,TENT AND AWNING SHOPS
29/07/2015,http://opendatacommunities.org/id/county-council/surrey,Surrey,http://id.esd.org.uk/service/1465,Council expenditure,08/04/2015,MALLOW CRESCENT,WWW.ALZPRODUCTS.CO.UK,58.98,EQUIPMENT,ORTHOPEDIC GOODS-ARTIFICIAL LIMB STORES
29/07/2015,http://opendatacommunities.org/id/county-council/surrey,Surrey,http://id.esd.org.uk/service/1465,Council expenditure,08/04/2015,DOWNLANDS COUNTRYSIDE PROJECT,SCATS COUNTRYSTORE 70,13.6,EQUIPMENT,AGRICULTURAL COOPERATIVES
29/07/2015,http://opendatacommunities.org/id/county-council/surrey,Surrey,http://id.esd.org.uk/service/1465,Council expenditure,08/04/2015,DOWNLANDS COUNTRYSIDE PROJECT,D W AYLIFFE MECHANISED,20,EQUIPMENT,LAWN AND GARDEN SUPPLY STORES
29/07/2015,http://opendatacommunities.org/id/county-council/surrey,Surrey,http://id.esd.org.uk/service/1465,Council expenditure,08/04/2015,TRANSPORT,REIGATE GARDEN CEN,154.95,OPERATIONAL FIRE EQUIPMENT,LAWN AND GARDEN SUPPLY STORES
29/07/2015,http://opendatacommunities.org/id/county-council/surrey,Surrey,http://id.esd.org.uk/service/1465,Council expenditure,08/04/2015,SOLD DAY TO DAY OPERATIONS,"AMAZON SVCS EUROPE,SAR",18.5,EQUIPMENT,BOOK STORES
29/07/2015,http://opendatacommunities.org/id/county-council/surrey,Surrey,http://id.esd.org.uk/service/1465,Council expenditure,08/04/2015,SE CARE - LAC,WWW.BIRMINGHAM.GOV.UK,32,CHILDREN ACT SEC 17 PAYMENTS,SCHOOLS & EDUCATIONAL SVC-NOT ELSEWHERE CLASSIFIED
29/07/2015,http://opendatacommunities.org/id/county-council/surrey,Surrey,http://id.esd.org.uk/service/1465,Council expenditure,08/04/2015,SOLD DAY TO DAY OPERATIONS,AMAZON UK MARKETPLACE,12.95,EQUIPMENT,BOOK STORES
29/07/2015,http://opendatacommunities.org/id/county-council/surrey,Surrey,http://id.esd.org.uk/service/1465,Council expenditure,08/04/2015,"SE REF, ASS & INT SERVICE - HUB 1",REIGATE HILL GOLF CLUB,426.8,SUBSISTENCE AND CONFERENCE EXPENSES,"CLUBS-CNTRY,MBRSHIP(ATHLET,REC,SPRTS,PRIVATE GOLF"
29/07/2015,http://opendatacommunities.org/id/county-council/surrey,Surrey,http://id.esd.org.uk/service/1465,Council expenditure,08/04/2015,YSS YOUTH CENTRE IMPROVEMENTS,CURRYS ONLINE,259,EQUIPMENT,ELECTRONIC SALES
29/07/2015,http://opendatacommunities.org/id/county-council/surrey,Surrey,http://id.esd.org.uk/service/1465,Council expenditure,08/04/2015,HOPE SERVICE - EAST,HORNIMAN MUSEUM &GARDE,22,EDUC VISITS/HOLS/CAMPS/TOYS,TOURIST ATTRACTIONS AND EXHIBITS
29/07/2015,http://opendatacommunities.org/id/county-council/surrey,Surrey,http://id.esd.org.uk/service/1465,Council expenditure,08/04/2015,DOWNLANDS COUNTRYSIDE PROJECT,SCATS COUNTRYSTORE 70,5.82,EQUIPMENT,AGRICULTURAL COOPERATIVES
29/07/2015,http://opendatacommunities.org/id/county-council/surrey,Surrey,http://id.esd.org.uk/service/1465,Council expenditure,08/04/2015,TRANSPORT,QVS ELECTRICAL,106.66,DAY TO DAY MAINTENANCE,HOUSEHOLD APPLIANCE STORES
29/07/2015,http://opendatacommunities.org/id/county-council/surrey,Surrey,http://id.esd.org.uk/service/1465,Council expenditure,08/04/2015,SOLD DAY TO DAY OPERATIONS,"AMAZON SVCS EUROPE,SAR",54,EQUIPMENT,BOOK STORES
29/07/2015,http://opendatacommunities.org/id/county-council/surrey,Surrey,http://id.esd.org.uk/service/1465,Council expenditure,08/04/2015,HILLSIDE,SAINSBURYS 0675,47.13,PURCHASE OF FOOD (RAW MATERIALS),"GROCERY STORES, SUPERMARKETS"
29/07/2015,http://opendatacommunities.org/id/county-council/surrey,Surrey,http://id.esd.org.uk/service/1465,Council expenditure,09/04/2015,ARUNDEL,ASDA HOME SHOPPING,47.13,REFRESHMENT COSTS,"GROCERY STORES, SUPERMARKETS"
29/07/2015,http://opendatacommunities.org/id/county-council/surrey,Surrey,http://id.esd.org.uk/service/1465,Council expenditure,09/04/2015,ARUNDEL,ASDA HOME SHOPPING,8,REFRESHMENT COSTS,"GROCERY STORES, SUPERMARKETS"
29/07/2015,http://opendatacommunities.org/id/county-council/surrey,Surrey,http://id.esd.org.uk/service/1465,Council expenditure,09/04/2015,SW CARE - LAC,SURREY CC CARD PAY,-11,LEGAL EXPENSES,COMPUTER NETWORK/INFORMATION SERVICES
29/07/2015,http://opendatacommunities.org/id/county-council/surrey,Surrey,http://id.esd.org.uk/service/1465,Council expenditure,09/04/2015,TRANSITION TEAM,PREMIER INN44013535,107,OTHER COMMUNITY CARE PRIV,PREMIER INN
29/07/2015,http://opendatacommunities.org/id/county-council/surrey,Surrey,http://id.esd.org.uk/service/1465,Council expenditure,09/04/2015,SW CARE - LAC,LBHACKNEY PYMT,26,LEGAL EXPENSES,GOVERNMENT SERVICES-NOT ELSEWHERE CLASSIFIED
29/07/2015,http://opendatacommunities.org/id/county-council/surrey,Surrey,http://id.esd.org.uk/service/1465,Council expenditure,09/04/2015,NE CP & COURT TEAM,UKBA4205195377,199,FEES,GOVERNMENT SERVICES-NOT ELSEWHERE CLASSIFIED
29/07/2015,http://opendatacommunities.org/id/county-council/surrey,Surrey,http://id.esd.org.uk/service/1465,Council expenditure,09/04/2015,YOUTH ENGAGEMENT                        ,CONCEPT ENGINEERIN,82.8,OPERATIONAL FIRE EQUIPMENT,INDUSTRIAL SUPPLIES NOT ELSEWHERE CLASSIFIED
29/07/2015,http://opendatacommunities.org/id/county-council/surrey,Surrey,http://id.esd.org.uk/service/1465,Council expenditure,09/04/2015,STRATEGIC LEADERSHIP (CEO & ACEO),TICKETOFFICESALE,15,MISCELLANEOUS STAFF TRAVEL,PASSENGER RAILWAYS
29/07/2015,http://opendatacommunities.org/id/county-council/surrey,Surrey,http://id.esd.org.uk/service/1465,Council expenditure,09/04/2015,CHILDMINDING,"AMAZON SVCS EUROPE,SAR",16.98,EQUIPMENT,BOOK STORES
29/07/2015,http://opendatacommunities.org/id/county-council/surrey,Surrey,http://id.esd.org.uk/service/1465,Council expenditure,09/04/2015,COMMUNICATIONS TEAM,"AMAZON SVCS EUROPE,SAR",25.39,STATIONERY,BOOK STORES
29/07/2015,http://opendatacommunities.org/id/county-council/surrey,Surrey,http://id.esd.org.uk/service/1465,Council expenditure,09/04/2015,EAST SUSSEX CONTRACT - MGMT & ADMIN,THE POST OFFICE,15.22,PURCHASE CARD TRANSACTION LOG DEFAULT,POSTAL SERVICES-GOVERNMENT ONLY
29/07/2015,http://opendatacommunities.org/id/county-council/surrey,Surrey,http://id.esd.org.uk/service/1465,Council expenditure,09/04/2015,EAST SUSSEX CONTRACT - MGMT & ADMIN,TESCO STORES 3330,2.79,PURCHASE CARD TRANSACTION LOG DEFAULT,"GROCERY STORES, SUPERMARKETS"
29/07/2015,http://opendatacommunities.org/id/county-council/surrey,Surrey,http://id.esd.org.uk/service/1465,Council expenditure,09/04/2015,ACL CENTRAL EXPENDITURE,FACEBOOK 3H4ND7JCB2,2.87,PUBLICITY,ADVERTISING SERVICES
29/07/2015,http://opendatacommunities.org/id/county-council/surrey,Surrey,http://id.esd.org.uk/service/1465,Council expenditure,09/04/2015,ACL CENTRAL EXPENDITURE,AMAZON UK RETAIL,45,CURRICULUM EQUIPMENT AND FURNITURE,DIRECT MARKETING-OTHER DIRECT MARKETERS/NOT ELSEW.
29/07/2015,http://opendatacommunities.org/id/county-council/surrey,Surrey,http://id.esd.org.uk/service/1465,Council expenditure,09/04/2015,HOPE SERVICE - WEST,SAMARITANS SHOP,6,CURRICULUM CONSUMABLES,FAMILY CLOTHING STORES
29/07/2015,http://opendatacommunities.org/id/county-council/surrey,Surrey,http://id.esd.org.uk/service/1465,Council expenditure,09/04/2015,LOCAL PREVENTION FRAMEWORK - TANDRIDGE,WWW.POSTOFFICE.CO.UK,11.25,CURRICULUM CONSUMABLES,POSTAL SERVICES-GOVERNMENT ONLY
29/07/2015,http://opendatacommunities.org/id/county-council/surrey,Surrey,http://id.esd.org.uk/service/1465,Council expenditure,09/04/2015,FAIRCROFT COMMUNITY HOME,TESCO STORE 2160,54.25,PURCHASE OF FOOD (RAW MATERIALS),"GROCERY STORES, SUPERMARKETS"
29/07/2015,http://opendatacommunities.org/id/county-council/surrey,Surrey,http://id.esd.org.uk/service/1465,Council expenditure,09/04/2015,COMMUNICATIONS TEAM,"AMAZON SVCS EUROPE,SAR",23.7,STATIONERY,BOOK STORES
29/07/2015,http://opendatacommunities.org/id/county-council/surrey,Surrey,http://id.esd.org.uk/service/1465,Council expenditure,09/04/2015,HOPE SERVICE - EAST,ASDA HOME SHOPPING,32.55,PURCHASE OF FOOD (RAW MATERIALS),"GROCERY STORES, SUPERMARKETS"
29/07/2015,http://opendatacommunities.org/id/county-council/surrey,Surrey,http://id.esd.org.uk/service/1465,Council expenditure,09/04/2015,TS SERVICE MANAGEMENT,SAS SOFTWARE LTD,"1,939.20",COMPUTER SOFTWARE,COMPUTER SOFTWARE STORES
29/07/2015,http://opendatacommunities.org/id/county-council/surrey,Surrey,http://id.esd.org.uk/service/1465,Council expenditure,09/04/2015,HOPE SERVICE - WEST,CANCER RESEARCH LTD,2,CURRICULUM CONSUMABLES,"ORGANIZATIONS, CHARITABLE AND SOCIAL SERVICES"
29/07/2015,http://opendatacommunities.org/id/county-council/surrey,Surrey,http://id.esd.org.uk/service/1465,Council expenditure,09/04/2015,CHEYNE WALK COMMUNITY HOME,HARVESTER REDHILL,33.06,PURCHASE OF FOOD (RAW MATERIALS),"EATING PLACES, RESTAURANTS"
29/07/2015,http://opendatacommunities.org/id/county-council/surrey,Surrey,http://id.esd.org.uk/service/1465,Council expenditure,09/04/2015,TRANSPORT,SELCO TRADE CTR EFT S0,21.58,DAY TO DAY MAINTENANCE,"BUILDING MATERIALS, LUMBER STORES"
29/07/2015,http://opendatacommunities.org/id/county-council/surrey,Surrey,http://id.esd.org.uk/service/1465,Council expenditure,09/04/2015,SOLD DAY TO DAY OPERATIONS,"AMAZON SVCS EUROPE,SAR",11.42,EQUIPMENT,BOOK STORES
29/07/2015,http://opendatacommunities.org/id/county-council/surrey,Surrey,http://id.esd.org.uk/service/1465,Council expenditure,09/04/2015,KARIBU COMMUNITY HOME,WOODLANDS,97.8,EDUC VISITS/HOLS/CAMPS/TOYS,"AMUSEMENT PARKS,CARNIVALS,CIRCUS,FORTUNE TELLERS"
29/07/2015,http://opendatacommunities.org/id/county-council/surrey,Surrey,http://id.esd.org.uk/service/1465,Council expenditure,09/04/2015,HOLLAND CLOSE RESIDENTIAL HOME,TESCO-STORES 6647,-3.5,PURCHASE OF FOOD (RAW MATERIALS),"GROCERY STORES, SUPERMARKETS"
29/07/2015,http://opendatacommunities.org/id/county-council/surrey,Surrey,http://id.esd.org.uk/service/1465,Council expenditure,09/04/2015,SOLD DAY TO DAY OPERATIONS,AMAZON UK MARKETPLACE,4.36,EQUIPMENT,BOOK STORES
29/07/2015,http://opendatacommunities.org/id/county-council/surrey,Surrey,http://id.esd.org.uk/service/1465,Council expenditure,09/04/2015,MALLOW CRESCENT,SAINSBURYS TO YOU 0686,5.2,PURCHASE OF FOOD (RAW MATERIALS),"GROCERY STORES, SUPERMARKETS"
29/07/2015,http://opendatacommunities.org/id/county-council/surrey,Surrey,http://id.esd.org.uk/service/1465,Council expenditure,09/04/2015,MALLOW CRESCENT,SAINSBURYS TO YOU 0686,103.9,PURCHASE OF FOOD (RAW MATERIALS),"GROCERY STORES, SUPERMARKETS"
29/07/2015,http://opendatacommunities.org/id/county-council/surrey,Surrey,http://id.esd.org.uk/service/1465,Council expenditure,09/04/2015,HOPE SERVICE - EAST,ASDA SUPERSTORE,3,PURCHASE OF FOOD (RAW MATERIALS),"GROCERY STORES, SUPERMARKETS"
29/07/2015,http://opendatacommunities.org/id/county-council/surrey,Surrey,http://id.esd.org.uk/service/1465,Council expenditure,09/04/2015,ACL CENTRAL EXPENDITURE,AMAZON UK RETAIL,255,CURRICULUM EQUIPMENT AND FURNITURE,DIRECT MARKETING-OTHER DIRECT MARKETERS/NOT ELSEW.
29/07/2015,http://opendatacommunities.org/id/county-council/surrey,Surrey,http://id.esd.org.uk/service/1465,Council expenditure,09/04/2015,HOLLAND CLOSE RESIDENTIAL HOME,TESCO-STORES 6647,130.01,PURCHASE OF FOOD (RAW MATERIALS),"GROCERY STORES, SUPERMARKETS"
29/07/2015,http://opendatacommunities.org/id/county-council/surrey,Surrey,http://id.esd.org.uk/service/1465,Council expenditure,09/04/2015,SW CARE - LAC,SURREY CC CARD PAY,11,LEGAL EXPENSES,COMPUTER NETWORK/INFORMATION SERVICES
29/07/2015,http://opendatacommunities.org/id/county-council/surrey,Surrey,http://id.esd.org.uk/service/1465,Council expenditure,09/04/2015,LOCAL PREVENTION FRAMEWORK - TANDRIDGE,WWW.POSTOFFICE.CO.UK,15,CURRICULUM CONSUMABLES,POSTAL SERVICES-GOVERNMENT ONLY
29/07/2015,http://opendatacommunities.org/id/county-council/surrey,Surrey,http://id.esd.org.uk/service/1465,Council expenditure,09/04/2015,SOLD DAY TO DAY OPERATIONS,"AMAZON SVCS EUROPE,SAR",24.95,EQUIPMENT,BOOK STORES
29/07/2015,http://opendatacommunities.org/id/county-council/surrey,Surrey,http://id.esd.org.uk/service/1465,Council expenditure,09/04/2015,CS BUSINESS SUPPORT EAST,AMAZON UK RETAIL,23.65,STATIONERY,DIRECT MARKETING-OTHER DIRECT MARKETERS/NOT ELSEW.
29/07/2015,http://opendatacommunities.org/id/county-council/surrey,Surrey,http://id.esd.org.uk/service/1465,Council expenditure,09/04/2015,SOLD DAY TO DAY OPERATIONS,AMAZON UK MARKETPLACE,13.92,EQUIPMENT,BOOK STORES
29/07/2015,http://opendatacommunities.org/id/county-council/surrey,Surrey,http://id.esd.org.uk/service/1465,Council expenditure,09/04/2015,HOPE SERVICE - WEST,OXFAM F4221,9.97,CURRICULUM CONSUMABLES,"ORGANIZATIONS, CHARITABLE AND SOCIAL SERVICES"
29/07/2015,http://opendatacommunities.org/id/county-council/surrey,Surrey,http://id.esd.org.uk/service/1465,Council expenditure,09/04/2015,COMMUNICATIONS TEAM,ITUNES.COM/BILL,3.99,SUBSCRIPTIONS,RECORD SHOPS
29/07/2015,http://opendatacommunities.org/id/county-council/surrey,Surrey,http://id.esd.org.uk/service/1465,Council expenditure,09/04/2015,BASINGSTOKE CANAL,CONNAUGHT SERVICE,17.84,PETROL/DIESEL ALL OFF BUSINESS,SERVICE STATIONS WITH OR WITHOUT ANCILLARY SERVICE
29/07/2015,http://opendatacommunities.org/id/county-council/surrey,Surrey,http://id.esd.org.uk/service/1465,Council expenditure,09/04/2015,CHILDREN'S RIGHTS TEAM,"AMAZON SVCS EUROPE,SAR",29.96,EQUIPMENT,BOOK STORES
29/07/2015,http://opendatacommunities.org/id/county-council/surrey,Surrey,http://id.esd.org.uk/service/1465,Council expenditure,09/04/2015,ACL CENTRAL EXPENDITURE,SCREWFIX DIRECT,53.98,DAY TO DAY MAINTENANCE,"BUILDING MATERIALS, LUMBER STORES"
29/07/2015,http://opendatacommunities.org/id/county-council/surrey,Surrey,http://id.esd.org.uk/service/1465,Council expenditure,09/04/2015,COUNTYWIDE MANAGED PRINT SERVICE,GALTEC SOLUTIONS LTD,"1,012.80",COMPUTER CONSUMABLES,COMPUTER SOFTWARE STORES
29/07/2015,http://opendatacommunities.org/id/county-council/surrey,Surrey,http://id.esd.org.uk/service/1465,Council expenditure,09/04/2015,ASHTEAD YC,TESCO STORES 5371,7.16,REFRESHMENT COSTS,"GROCERY STORES, SUPERMARKETS"
29/07/2015,http://opendatacommunities.org/id/county-council/surrey,Surrey,http://id.esd.org.uk/service/1465,Council expenditure,09/04/2015,PROPERTY OPERATIONS TEAM,CCF,57.06,PURCHASE OF BUILDING MATERIALS,"BUILDING MATERIALS, LUMBER STORES"
29/07/2015,http://opendatacommunities.org/id/county-council/surrey,Surrey,http://id.esd.org.uk/service/1465,Council expenditure,09/04/2015,SOLD DAY TO DAY OPERATIONS,"AMAZON SVCS EUROPE,SAR",8.99,EQUIPMENT,BOOK STORES
29/07/2015,http://opendatacommunities.org/id/county-council/surrey,Surrey,http://id.esd.org.uk/service/1465,Council expenditure,09/04/2015,SW CARE - LAC,SURREY CC CARD PAY,22,LEGAL EXPENSES,COMPUTER NETWORK/INFORMATION SERVICES
29/07/2015,http://opendatacommunities.org/id/county-council/surrey,Surrey,http://id.esd.org.uk/service/1465,Council expenditure,09/04/2015,SOLD DAY TO DAY OPERATIONS,QUICKS ARCHERY (WALTON,167.44,EQUIPMENT,SPORTING GOODS STORES
29/07/2015,http://opendatacommunities.org/id/county-council/surrey,Surrey,http://id.esd.org.uk/service/1465,Council expenditure,09/04/2015,COUNTY HALL,CURRYS ONLINE,948.95,EQUIPMENT,ELECTRONIC SALES
29/07/2015,http://opendatacommunities.org/id/county-council/surrey,Surrey,http://id.esd.org.uk/service/1465,Council expenditure,09/04/2015,CHAIRMAN,TIC,110,REFRESHMENT COSTS,"THEATRICAL PRODUCERS(EXCL MOTION PIX),TICKET AGNCY"
29/07/2015,http://opendatacommunities.org/id/county-council/surrey,Surrey,http://id.esd.org.uk/service/1465,Council expenditure,09/04/2015,SOLD DAY TO DAY OPERATIONS,"AMAZON SVCS EUROPE,SAR",13.98,EQUIPMENT,BOOK STORES
29/07/2015,http://opendatacommunities.org/id/county-council/surrey,Surrey,http://id.esd.org.uk/service/1465,Council expenditure,09/04/2015,KARIBU COMMUNITY HOME,EASYJET00 000ENZPLHW,876.05,EDUC VISITS/HOLS/CAMPS/TOYS,EASYJET
29/07/2015,http://opendatacommunities.org/id/county-council/surrey,Surrey,http://id.esd.org.uk/service/1465,Council expenditure,09/04/2015,SURREY-THE GREAT WAR                    ,AMAZON UK MARKETPLACE,81.09,COMPUTER HARDWARE,BOOK STORES
29/07/2015,http://opendatacommunities.org/id/county-council/surrey,Surrey,http://id.esd.org.uk/service/1465,Council expenditure,09/04/2015,TRANSPORT,"AMAZON SVCS EUROPE,SAR",49.87,STATIONERY,BOOK STORES
29/07/2015,http://opendatacommunities.org/id/county-council/surrey,Surrey,http://id.esd.org.uk/service/1465,Council expenditure,09/04/2015,TRANSPORT,ILASCO LTD,102.05,"CLOTHING, UNIFORM AND LAUNDRY",CHILDREN'S AND INFANT'S WEAR STORES
29/07/2015,http://opendatacommunities.org/id/county-council/surrey,Surrey,http://id.esd.org.uk/service/1465,Council expenditure,09/04/2015,LOCAL PREVENTION FRAMEWORK - TANDRIDGE,BEAVER WATERSCAPES LTD,10,CURRICULUM CONSUMABLES,SPORTING GOODS STORES
29/07/2015,http://opendatacommunities.org/id/county-council/surrey,Surrey,http://id.esd.org.uk/service/1465,Council expenditure,09/04/2015,SURREY-THE GREAT WAR                    ,AMAZON UK RETAIL,83.83,COMPUTER HARDWARE,DIRECT MARKETING-OTHER DIRECT MARKETERS/NOT ELSEW.
29/07/2015,http://opendatacommunities.org/id/county-council/surrey,Surrey,http://id.esd.org.uk/service/1465,Council expenditure,09/04/2015,COUNTY HALL,PLUMB CENTER DBD,42.62,DAY TO DAY MAINTENANCE,"HEATING, PLUMBING, AIR CONDITIONING CONTRACTORS"
29/07/2015,http://opendatacommunities.org/id/county-council/surrey,Surrey,http://id.esd.org.uk/service/1465,Council expenditure,09/04/2015,HILLSIDE,SAINSBURYS 0675,58.02,PURCHASE OF FOOD (RAW MATERIALS),"GROCERY STORES, SUPERMARKETS"
29/07/2015,http://opendatacommunities.org/id/county-council/surrey,Surrey,http://id.esd.org.uk/service/1465,Council expenditure,09/04/2015,SOLD ESTATES MANAGEMENT,WILKO RETAIL LIMIT,7.59,DAY TO DAY MAINTENANCE,HOUSEHOLD APPLIANCE STORES
29/07/2015,http://opendatacommunities.org/id/county-council/surrey,Surrey,http://id.esd.org.uk/service/1465,Council expenditure,09/04/2015,SOLD DAY TO DAY OPERATIONS,AMAZON UK RETAIL,66.11,EQUIPMENT,DIRECT MARKETING-OTHER DIRECT MARKETERS/NOT ELSEW.
29/07/2015,http://opendatacommunities.org/id/county-council/surrey,Surrey,http://id.esd.org.uk/service/1465,Council expenditure,09/04/2015,SOLD DAY TO DAY OPERATIONS,"AMAZON SVCS EUROPE,SAR",3.06,EQUIPMENT,BOOK STORES
29/07/2015,http://opendatacommunities.org/id/county-council/surrey,Surrey,http://id.esd.org.uk/service/1465,Council expenditure,09/04/2015,COUNTYWIDE MANAGED PRINT SERVICE,AMAZON UK RETAIL,38.45,COMPUTER CONSUMABLES,DIRECT MARKETING-OTHER DIRECT MARKETERS/NOT ELSEW.
29/07/2015,http://opendatacommunities.org/id/county-council/surrey,Surrey,http://id.esd.org.uk/service/1465,Council expenditure,10/04/2015,COMMUNICATIONS TEAM,FINANCIAL TIMES,54,SUBSCRIPTIONS,DIRECT MARKETING-CATALOG MERCHANTS
29/07/2015,http://opendatacommunities.org/id/county-council/surrey,Surrey,http://id.esd.org.uk/service/1465,Council expenditure,10/04/2015,KARIBU COMMUNITY HOME,SOUTHLEA SERVICE STN,75.55,VEHICLE RUNNING COSTS,SERVICE STATIONS WITH OR WITHOUT ANCILLARY SERVICE
29/07/2015,http://opendatacommunities.org/id/county-council/surrey,Surrey,http://id.esd.org.uk/service/1465,Council expenditure,10/04/2015,ASSET PLANNING - OPERATIONS,WWW.DVLA.GOV.UK,227.5,VEHICLE RUNNING COSTS,GOVERNMENT SERVICES-NOT ELSEWHERE CLASSIFIED
29/07/2015,http://opendatacommunities.org/id/county-council/surrey,Surrey,http://id.esd.org.uk/service/1465,Council expenditure,10/04/2015,NE CARE - NON-LAC CP & COURT,WP-FATHERHOOD INSTITUT,61.5,LIBRARY RESOURCES,BUSINESS SERVICES-NOT ELSEWHERE CLASSIFIED
29/07/2015,http://opendatacommunities.org/id/county-council/surrey,Surrey,http://id.esd.org.uk/service/1465,Council expenditure,10/04/2015,SOLD DAY TO DAY OPERATIONS,"AMAZON SVCS EUROPE,SAR",4.16,EQUIPMENT,BOOK STORES
29/07/2015,http://opendatacommunities.org/id/county-council/surrey,Surrey,http://id.esd.org.uk/service/1465,Council expenditure,10/04/2015,KARIBU COMMUNITY HOME,CHICKLADE SPAR & FUEL,15.41,VEHICLE RUNNING COSTS,SERVICE STATIONS WITH OR WITHOUT ANCILLARY SERVICE
29/07/2015,http://opendatacommunities.org/id/county-council/surrey,Surrey,http://id.esd.org.uk/service/1465,Council expenditure,10/04/2015,WOODLANDS COMMUNITY HOME,PICSOLVE INTERNATIONAL,15,EDUC VISITS/HOLS/CAMPS/TOYS,PHOTOGRAPHIC STUDIOS
29/07/2015,http://opendatacommunities.org/id/county-council/surrey,Surrey,http://id.esd.org.uk/service/1465,Council expenditure,10/04/2015,LONGFIELD RESIDENTIAL CARE,MARKS & SPENCER,12,PURCHASE OF FOOD (RAW MATERIALS),"GROCERY STORES, SUPERMARKETS"
29/07/2015,http://opendatacommunities.org/id/county-council/surrey,Surrey,http://id.esd.org.uk/service/1465,Council expenditure,10/04/2015,SOLD DAY TO DAY OPERATIONS,"AMAZON SVCS EUROPE,SAR",13.7,EQUIPMENT,BOOK STORES
29/07/2015,http://opendatacommunities.org/id/county-council/surrey,Surrey,http://id.esd.org.uk/service/1465,Council expenditure,10/04/2015,APPLEWOOD,ASDA HOME SHOPPING,180.18,PURCHASE OF FOOD (RAW MATERIALS),"GROCERY STORES, SUPERMARKETS"
29/07/2015,http://opendatacommunities.org/id/county-council/surrey,Surrey,http://id.esd.org.uk/service/1465,Council expenditure,10/04/2015,NW CARE - NON-LAC CP & COURT,TRAVELODGE WEBSITE,222,CHILDREN ACT SEC 17 PAYMENTS,TRAVELODGE
29/07/2015,http://opendatacommunities.org/id/county-council/surrey,Surrey,http://id.esd.org.uk/service/1465,Council expenditure,10/04/2015,CENTRAL COMMUNICATIONS,"AMAZON SVCS EUROPE,SAR",17.45,STATIONERY,BOOK STORES
29/07/2015,http://opendatacommunities.org/id/county-council/surrey,Surrey,http://id.esd.org.uk/service/1465,Council expenditure,10/04/2015,WOODLANDS COMMUNITY HOME,SAINSBURYS 0686,16.25,PURCHASE OF FOOD (RAW MATERIALS),"GROCERY STORES, SUPERMARKETS"
29/07/2015,http://opendatacommunities.org/id/county-council/surrey,Surrey,http://id.esd.org.uk/service/1465,Council expenditure,10/04/2015,WOODLANDS COMMUNITY HOME,SAINSBURYS 0686,62.42,PURCHASE OF FOOD (RAW MATERIALS),"GROCERY STORES, SUPERMARKETS"
29/07/2015,http://opendatacommunities.org/id/county-council/surrey,Surrey,http://id.esd.org.uk/service/1465,Council expenditure,10/04/2015,SOLD DAY TO DAY OPERATIONS,"AMAZON SVCS EUROPE,SAR",58.48,EQUIPMENT,BOOK STORES
29/07/2015,http://opendatacommunities.org/id/county-council/surrey,Surrey,http://id.esd.org.uk/service/1465,Council expenditure,10/04/2015,ACL CENTRAL EXPENDITURE,AMAZON UK RETAIL,85.18,BOOKS,DIRECT MARKETING-OTHER DIRECT MARKETERS/NOT ELSEW.
29/07/2015,http://opendatacommunities.org/id/county-council/surrey,Surrey,http://id.esd.org.uk/service/1465,Council expenditure,10/04/2015,ENSURING PROVISION INCLUSIVE - CAP,"AMAZON SVCS EUROPE,SAR",238,EDUC VISITS/HOLS/CAMPS/TOYS,BOOK STORES
29/07/2015,http://opendatacommunities.org/id/county-council/surrey,Surrey,http://id.esd.org.uk/service/1465,Council expenditure,10/04/2015,SURREY ARTS GENERAL,ECONOMY OF BRIGHTON,928.15,EQUIPMENT,"ARTIST SUPPLY STORES, CRAFT SHOPS"
29/07/2015,http://opendatacommunities.org/id/county-council/surrey,Surrey,http://id.esd.org.uk/service/1465,Council expenditure,10/04/2015,ARUNDEL,ASDA HOME SHOPPING,-8.81,REFRESHMENT COSTS,"GROCERY STORES, SUPERMARKETS"
29/07/2015,http://opendatacommunities.org/id/county-council/surrey,Surrey,http://id.esd.org.uk/service/1465,Council expenditure,10/04/2015,LEAVING CARE PACKAGES,TRAVELODGE WEBSITE,155,3RD PARTY PAYMENTS PRIVATE INDIV,TRAVELODGE
29/07/2015,http://opendatacommunities.org/id/county-council/surrey,Surrey,http://id.esd.org.uk/service/1465,Council expenditure,10/04/2015,COUNTYWIDE MANAGED PRINT SERVICE,AMAZON UK RETAIL,15.99,COMPUTER CONSUMABLES,DIRECT MARKETING-OTHER DIRECT MARKETERS/NOT ELSEW.
29/07/2015,http://opendatacommunities.org/id/county-council/surrey,Surrey,http://id.esd.org.uk/service/1465,Council expenditure,10/04/2015,FINANCE CHANGE AND PERFORMANCE GROUP,AMAZON UK RETAIL,19.74,EQUIPMENT,DIRECT MARKETING-OTHER DIRECT MARKETERS/NOT ELSEW.
29/07/2015,http://opendatacommunities.org/id/county-council/surrey,Surrey,http://id.esd.org.uk/service/1465,Council expenditure,10/04/2015,CHILDCARE TRAINING & DEVELOPMENT,AMAZON UK RETAIL,43.98,BOOKS,DIRECT MARKETING-OTHER DIRECT MARKETERS/NOT ELSEW.
29/07/2015,http://opendatacommunities.org/id/county-council/surrey,Surrey,http://id.esd.org.uk/service/1465,Council expenditure,10/04/2015,COUNTYWIDE MANAGED PRINT SERVICE,WWW.CARTRIDGESAVE.CO.U,104.06,PRINTING,"OFFICE, SCHOOL SUPPLY, AND STATIONERY STORES"
29/07/2015,http://opendatacommunities.org/id/county-council/surrey,Surrey,http://id.esd.org.uk/service/1465,Council expenditure,10/04/2015,FAIRCROFT COMMUNITY HOME,TESCO STORE 2160,186.35,PURCHASE OF FOOD (RAW MATERIALS),"GROCERY STORES, SUPERMARKETS"
29/07/2015,http://opendatacommunities.org/id/county-council/surrey,Surrey,http://id.esd.org.uk/service/1465,Council expenditure,10/04/2015,FAIRCROFT COMMUNITY HOME,TESCO STORE 2160,30,PURCHASE OF FOOD (RAW MATERIALS),"GROCERY STORES, SUPERMARKETS"
29/07/2015,http://opendatacommunities.org/id/county-council/surrey,Surrey,http://id.esd.org.uk/service/1465,Council expenditure,10/04/2015,HILLSIDE,WWW.CASHS.CO.UK,13.25,PURCHASE OF FOOD (RAW MATERIALS),MEN'S AND BOY'S CLOTHING AND ACCESSORIES STORES
29/07/2015,http://opendatacommunities.org/id/county-council/surrey,Surrey,http://id.esd.org.uk/service/1465,Council expenditure,10/04/2015,HR - BUSINESS SERVICES AND TRAINING,WWW.PRINTERLAND.CO,100.2,EQUIPMENT,"COMP PROGRAMING,DATA PRCSNG,INTGRTD SYS DSGN SRVS"
29/07/2015,http://opendatacommunities.org/id/county-council/surrey,Surrey,http://id.esd.org.uk/service/1465,Council expenditure,10/04/2015,HOLLAND CLOSE RESIDENTIAL HOME,WH SMITH,4.49,STATIONERY,NEWS DEALERS AND NEWSSTANDS
29/07/2015,http://opendatacommunities.org/id/county-council/surrey,Surrey,http://id.esd.org.uk/service/1465,Council expenditure,10/04/2015,FAIRCROFT COMMUNITY HOME,FREEDOM LEISURE,15.6,EDUC VISITS/HOLS/CAMPS/TOYS,GOVERNMENT SERVICES-NOT ELSEWHERE CLASSIFIED
29/07/2015,http://opendatacommunities.org/id/county-council/surrey,Surrey,http://id.esd.org.uk/service/1465,Council expenditure,10/04/2015,RUTH HOUSE,AMAZON UK RETAIL,14.19,EDUC VISITS/HOLS/CAMPS/TOYS,DIRECT MARKETING-OTHER DIRECT MARKETERS/NOT ELSEW.
29/07/2015,http://opendatacommunities.org/id/county-council/surrey,Surrey,http://id.esd.org.uk/service/1465,Council expenditure,10/04/2015,ASSET PLANNING - OPERATIONS,SAINSBURYS SACAT 0652,2.96,REFRESHMENT COSTS,"GROCERY STORES, SUPERMARKETS"
29/07/2015,http://opendatacommunities.org/id/county-council/surrey,Surrey,http://id.esd.org.uk/service/1465,Council expenditure,10/04/2015,KARIBU COMMUNITY HOME,AIRBNB,293,EDUC VISITS/HOLS/CAMPS/TOYS,TRAVEL AGENCIES AND TOUR OPERATORS
29/07/2015,http://opendatacommunities.org/id/county-council/surrey,Surrey,http://id.esd.org.uk/service/1465,Council expenditure,10/04/2015,ASSET PLANNING - OPERATIONS,WWW.DISCOUNTCARPETTILE,145.2,EQUIPMENT,FLOOR COVERING STORES
29/07/2015,http://opendatacommunities.org/id/county-council/surrey,Surrey,http://id.esd.org.uk/service/1465,Council expenditure,10/04/2015,IMT CRITICAL ENVIRONMENTS,"AMAZON SVCS EUROPE,SAR",11.98,COMPUTER HARDWARE,BOOK STORES
29/07/2015,http://opendatacommunities.org/id/county-council/surrey,Surrey,http://id.esd.org.uk/service/1465,Council expenditure,10/04/2015,COVEHAM,SAINSBURYS TO YOU 0687,134.44,PURCHASE OF FOOD (RAW MATERIALS),"GROCERY STORES, SUPERMARKETS"
29/07/2015,http://opendatacommunities.org/id/county-council/surrey,Surrey,http://id.esd.org.uk/service/1465,Council expenditure,10/04/2015,SOLD ESTATES MANAGEMENT,B & Q,227,DAY TO DAY MAINTENANCE,"BUILDING MATERIALS, LUMBER STORES"
29/07/2015,http://opendatacommunities.org/id/county-council/surrey,Surrey,http://id.esd.org.uk/service/1465,Council expenditure,10/04/2015,SOLD CATERING,"AMAZON SVCS EUROPE,SAR",4.29,EQUIPMENT,BOOK STORES
29/07/2015,http://opendatacommunities.org/id/county-council/surrey,Surrey,http://id.esd.org.uk/service/1465,Council expenditure,10/04/2015,BURBANK COMMUNITY HOME,ASDA STORES 4823,9,"CLOTHING, UNIFORM AND LAUNDRY","GROCERY STORES, SUPERMARKETS"
29/07/2015,http://opendatacommunities.org/id/county-council/surrey,Surrey,http://id.esd.org.uk/service/1465,Council expenditure,10/04/2015,KARIBU COMMUNITY HOME,EAT & GO CHICKLADE,11.36,PURCHASE OF FOOD (RAW MATERIALS),SERVICE STATIONS WITH OR WITHOUT ANCILLARY SERVICE
29/07/2015,http://opendatacommunities.org/id/county-council/surrey,Surrey,http://id.esd.org.uk/service/1465,Council expenditure,10/04/2015,SOLD DAY TO DAY OPERATIONS,AW CHAMPION LTD,115.99,EQUIPMENT,"BUILDING MATERIALS, LUMBER STORES"
29/07/2015,http://opendatacommunities.org/id/county-council/surrey,Surrey,http://id.esd.org.uk/service/1465,Council expenditure,10/04/2015,SW CARE - LAC,READING BRGH CNCL,23,LEGAL EXPENSES,GOVERNMENT SERVICES-NOT ELSEWHERE CLASSIFIED
29/07/2015,http://opendatacommunities.org/id/county-council/surrey,Surrey,http://id.esd.org.uk/service/1465,Council expenditure,10/04/2015,WOODLANDS COMMUNITY HOME,THORPE PARK /ENT/,59.99,EDUC VISITS/HOLS/CAMPS/TOYS,"AMUSEMENT PARKS,CARNIVALS,CIRCUS,FORTUNE TELLERS"
29/07/2015,http://opendatacommunities.org/id/county-council/surrey,Surrey,http://id.esd.org.uk/service/1465,Council expenditure,10/04/2015,FOUNDATION STAGE WORK,AMAZON UK RETAIL,59.97,BOOKS,DIRECT MARKETING-OTHER DIRECT MARKETERS/NOT ELSEW.
29/07/2015,http://opendatacommunities.org/id/county-council/surrey,Surrey,http://id.esd.org.uk/service/1465,Council expenditure,10/04/2015,CS BUSINESS SUPPORT EAST,AMAZON UK RETAIL,45.98,STATIONERY,DIRECT MARKETING-OTHER DIRECT MARKETERS/NOT ELSEW.
29/07/2015,http://opendatacommunities.org/id/county-council/surrey,Surrey,http://id.esd.org.uk/service/1465,Council expenditure,10/04/2015,DOWNLANDS COUNTRYSIDE PROJECT,TESCO STORES,40.41,REFRESHMENT COSTS,"GROCERY STORES, SUPERMARKETS"
29/07/2015,http://opendatacommunities.org/id/county-council/surrey,Surrey,http://id.esd.org.uk/service/1465,Council expenditure,10/04/2015,HILLSIDE,SAINSBURYS 0675,70.18,PURCHASE OF FOOD (RAW MATERIALS),"GROCERY STORES, SUPERMARKETS"
29/07/2015,http://opendatacommunities.org/id/county-council/surrey,Surrey,http://id.esd.org.uk/service/1465,Council expenditure,10/04/2015,PROPERTY OPERATIONS TEAM,PENNYS OF COBHAM,5.45,PURCHASE OF BUILDING MATERIALS,HARDWARE EQUIPMENT AND SUPPLIES
29/07/2015,http://opendatacommunities.org/id/county-council/surrey,Surrey,http://id.esd.org.uk/service/1465,Council expenditure,10/04/2015,OCCUPATIONAL HEALTH,WWW.PANELWAREHOUSE.COM,114,COMPUTER CONSUMABLES,BUSINESS SERVICES-NOT ELSEWHERE CLASSIFIED
29/07/2015,http://opendatacommunities.org/id/county-council/surrey,Surrey,http://id.esd.org.uk/service/1465,Council expenditure,10/04/2015,SERVICE DELIVERY SENIOR MANAGEMENT,"AMAZON SVCS EUROPE,SAR",3.24,EQUIPMENT,BOOK STORES
29/07/2015,http://opendatacommunities.org/id/county-council/surrey,Surrey,http://id.esd.org.uk/service/1465,Council expenditure,10/04/2015,ROW VOLUNTEERS EAST                     ,WILLIAM WAY (GODSTONE),9.12,EQUIPMENT,"BUILDING MATERIALS, LUMBER STORES"
29/07/2015,http://opendatacommunities.org/id/county-council/surrey,Surrey,http://id.esd.org.uk/service/1465,Council expenditure,10/04/2015,WOODLANDS COMMUNITY HOME,KFC - THORPE PARK,37.52,REFRESHMENT COSTS,FAST FOOD RESTAURANTS
29/07/2015,http://opendatacommunities.org/id/county-council/surrey,Surrey,http://id.esd.org.uk/service/1465,Council expenditure,10/04/2015,I & E EXPERT TESTING FEES               ,WWW.TUVNEL.COM,360,FEES,"ARCHITECTURAL, ENGINEERING, AND SURVEYING SERVICES"
29/07/2015,http://opendatacommunities.org/id/county-council/surrey,Surrey,http://id.esd.org.uk/service/1465,Council expenditure,10/04/2015,FINANCIAL STRATEGY & REPORTING TEAM,COMPANIES HOUSE,1,FEES,GOVERNMENT SERVICES-NOT ELSEWHERE CLASSIFIED
29/07/2015,http://opendatacommunities.org/id/county-council/surrey,Surrey,http://id.esd.org.uk/service/1465,Council expenditure,10/04/2015,EVENTS,SALVATIONIST PUBLISHIN,76.5,CURRIC BOOKS,VARIETY STORES
29/07/2015,http://opendatacommunities.org/id/county-council/surrey,Surrey,http://id.esd.org.uk/service/1465,Council expenditure,10/04/2015,SW CARE - CP & COURT LAC,THE REGISTRATION S,22.6,EDUC VISITS/HOLS/CAMPS/TOYS,SWIMMING POOLS - SALES AND SUPPLIES
29/07/2015,http://opendatacommunities.org/id/county-council/surrey,Surrey,http://id.esd.org.uk/service/1465,Council expenditure,10/04/2015,ARUNDEL,ASDA HOME SHOPPING,130.81,REFRESHMENT COSTS,"GROCERY STORES, SUPERMARKETS"
29/07/2015,http://opendatacommunities.org/id/county-council/surrey,Surrey,http://id.esd.org.uk/service/1465,Council expenditure,10/04/2015,ARUNDEL,ASDA HOME SHOPPING,3,REFRESHMENT COSTS,"GROCERY STORES, SUPERMARKETS"
29/07/2015,http://opendatacommunities.org/id/county-council/surrey,Surrey,http://id.esd.org.uk/service/1465,Council expenditure,10/04/2015,TRANSPORT,"AMAZON SVCS EUROPE,SAR",23,COMPUTER HARDWARE,BOOK STORES
29/07/2015,http://opendatacommunities.org/id/county-council/surrey,Surrey,http://id.esd.org.uk/service/1465,Council expenditure,11/04/2015,FINANCE CHANGE AND PERFORMANCE GROUP,AMAZON UK RETAIL,19.74,EQUIPMENT,DIRECT MARKETING-OTHER DIRECT MARKETERS/NOT ELSEW.
29/07/2015,http://opendatacommunities.org/id/county-council/surrey,Surrey,http://id.esd.org.uk/service/1465,Council expenditure,11/04/2015,YSS YOUTH CENTRE IMPROVEMENTS,AMAZON UK RETAIL,15.99,EQUIPMENT,DIRECT MARKETING-OTHER DIRECT MARKETERS/NOT ELSEW.
29/07/2015,http://opendatacommunities.org/id/county-council/surrey,Surrey,http://id.esd.org.uk/service/1465,Council expenditure,11/04/2015,BURBANK COMMUNITY HOME,MCDONALDS,16.46,PURCHASE OF FOOD (RAW MATERIALS),FAST FOOD RESTAURANTS
29/07/2015,http://opendatacommunities.org/id/county-council/surrey,Surrey,http://id.esd.org.uk/service/1465,Council expenditure,11/04/2015,FINANCE CHANGE AND PERFORMANCE GROUP,AMAZON UK RETAIL,19.74,EQUIPMENT,DIRECT MARKETING-OTHER DIRECT MARKETERS/NOT ELSEW.
29/07/2015,http://opendatacommunities.org/id/county-council/surrey,Surrey,http://id.esd.org.uk/service/1465,Council expenditure,11/04/2015,FINANCE CHANGE AND PERFORMANCE GROUP,AMAZON UK RETAIL,19.74,EQUIPMENT,DIRECT MARKETING-OTHER DIRECT MARKETERS/NOT ELSEW.
29/07/2015,http://opendatacommunities.org/id/county-council/surrey,Surrey,http://id.esd.org.uk/service/1465,Council expenditure,11/04/2015,FINANCE CHANGE AND PERFORMANCE GROUP,AMAZON UK RETAIL,19.74,EQUIPMENT,DIRECT MARKETING-OTHER DIRECT MARKETERS/NOT ELSEW.
29/07/2015,http://opendatacommunities.org/id/county-council/surrey,Surrey,http://id.esd.org.uk/service/1465,Council expenditure,11/04/2015,LONGFIELD RESIDENTIAL CARE,SAINSBURYS 0670,45,PURCHASE OF FOOD (RAW MATERIALS),"GROCERY STORES, SUPERMARKETS"
29/07/2015,http://opendatacommunities.org/id/county-council/surrey,Surrey,http://id.esd.org.uk/service/1465,Council expenditure,11/04/2015,BURBANK COMMUNITY HOME,KFC-WOKING,14.36,PURCHASE OF FOOD (RAW MATERIALS),FAST FOOD RESTAURANTS
29/07/2015,http://opendatacommunities.org/id/county-council/surrey,Surrey,http://id.esd.org.uk/service/1465,Council expenditure,11/04/2015,ARUNDEL,ASDA SUPERSTORE,17.53,REFRESHMENT COSTS,"GROCERY STORES, SUPERMARKETS"
29/07/2015,http://opendatacommunities.org/id/county-council/surrey,Surrey,http://id.esd.org.uk/service/1465,Council expenditure,11/04/2015,FAIRCROFT COMMUNITY HOME,BURGER KING GUILDFORD,15.97,REFRESHMENT COSTS,FAST FOOD RESTAURANTS
29/07/2015,http://opendatacommunities.org/id/county-council/surrey,Surrey,http://id.esd.org.uk/service/1465,Council expenditure,11/04/2015,BURBANK COMMUNITY HOME,PRIMARK,5,EDUC VISITS/HOLS/CAMPS/TOYS,FAMILY CLOTHING STORES
29/07/2015,http://opendatacommunities.org/id/county-council/surrey,Surrey,http://id.esd.org.uk/service/1465,Council expenditure,11/04/2015,E&I - TEXTILES                          ,FACEBOOK AHLJZ7WZR2,8.94,ADVERTISING (STATUTORY NOTICES),ADVERTISING SERVICES
29/07/2015,http://opendatacommunities.org/id/county-council/surrey,Surrey,http://id.esd.org.uk/service/1465,Council expenditure,11/04/2015,FINANCE CHANGE AND PERFORMANCE GROUP,AMAZON UK RETAIL,19.74,EQUIPMENT,DIRECT MARKETING-OTHER DIRECT MARKETERS/NOT ELSEW.
29/07/2015,http://opendatacommunities.org/id/county-council/surrey,Surrey,http://id.esd.org.uk/service/1465,Council expenditure,11/04/2015,KARIBU COMMUNITY HOME,TESCO STORE 2812,70.31,PURCHASE OF FOOD (RAW MATERIALS),"GROCERY STORES, SUPERMARKETS"
29/07/2015,http://opendatacommunities.org/id/county-council/surrey,Surrey,http://id.esd.org.uk/service/1465,Council expenditure,11/04/2015,BURBANK COMMUNITY HOME,DOMINOS,7.99,PURCHASE OF FOOD (RAW MATERIALS),"EATING PLACES, RESTAURANTS"
29/07/2015,http://opendatacommunities.org/id/county-council/surrey,Surrey,http://id.esd.org.uk/service/1465,Council expenditure,11/04/2015,HILLSIDE,SAINSBURYS 0675,105.97,PURCHASE OF FOOD (RAW MATERIALS),"GROCERY STORES, SUPERMARKETS"
29/07/2015,http://opendatacommunities.org/id/county-council/surrey,Surrey,http://id.esd.org.uk/service/1465,Council expenditure,11/04/2015,RBDM - GENERAL,"AMAZON SVCS EUROPE,SAR",1.9,FIXTURES AND FITTINGS,BOOK STORES
29/07/2015,http://opendatacommunities.org/id/county-council/surrey,Surrey,http://id.esd.org.uk/service/1465,Council expenditure,11/04/2015,FINANCE CHANGE AND PERFORMANCE GROUP,AMAZON UK RETAIL,19.73,EQUIPMENT,DIRECT MARKETING-OTHER DIRECT MARKETERS/NOT ELSEW.
29/07/2015,http://opendatacommunities.org/id/county-council/surrey,Surrey,http://id.esd.org.uk/service/1465,Council expenditure,12/04/2015,FAIRCROFT COMMUNITY HOME,MCDONALDS REST,36.8,REFRESHMENT COSTS,FAST FOOD RESTAURANTS
29/07/2015,http://opendatacommunities.org/id/county-council/surrey,Surrey,http://id.esd.org.uk/service/1465,Council expenditure,12/04/2015,HOLLAND CLOSE RESIDENTIAL HOME,WOKING BOROUGH COUNCIL,2.6,NON-STAFF RELATED TRANSPORT COSTS,AUTOMOBILE PARKING LOTS AND GARAGES
29/07/2015,http://opendatacommunities.org/id/county-council/surrey,Surrey,http://id.esd.org.uk/service/1465,Council expenditure,12/04/2015,IMT MODERN WORKER,AMAZON UK MARKETPLACE,395,COMPUTER HARDWARE,BOOK STORES
29/07/2015,http://opendatacommunities.org/id/county-council/surrey,Surrey,http://id.esd.org.uk/service/1465,Council expenditure,12/04/2015,KARIBU COMMUNITY HOME,RYKA'S CAFE,8.3,PURCHASE OF FOOD (RAW MATERIALS),"EATING PLACES, RESTAURANTS"
29/07/2015,http://opendatacommunities.org/id/county-council/surrey,Surrey,http://id.esd.org.uk/service/1465,Council expenditure,12/04/2015,HOLLAND CLOSE RESIDENTIAL HOME,YATES,10.85,REFRESHMENT COSTS,"EATING PLACES, RESTAURANTS"
29/07/2015,http://opendatacommunities.org/id/county-council/surrey,Surrey,http://id.esd.org.uk/service/1465,Council expenditure,12/04/2015,IMT MODERN WORKER,AMAZON UK MARKETPLACE,450,COMPUTER HARDWARE,BOOK STORES
29/07/2015,http://opendatacommunities.org/id/county-council/surrey,Surrey,http://id.esd.org.uk/service/1465,Council expenditure,12/04/2015,HOLLAND CLOSE RESIDENTIAL HOME,TESCO-STORES 6647,139.77,PURCHASE OF FOOD (RAW MATERIALS),"GROCERY STORES, SUPERMARKETS"
29/07/2015,http://opendatacommunities.org/id/county-council/surrey,Surrey,http://id.esd.org.uk/service/1465,Council expenditure,12/04/2015,IMT MODERN WORKER,AMAZON UK MARKETPLACE,790,COMPUTER HARDWARE,BOOK STORES
29/07/2015,http://opendatacommunities.org/id/county-council/surrey,Surrey,http://id.esd.org.uk/service/1465,Council expenditure,12/04/2015,OPS-FLEET/WORKSHOPS,AMAZON UK RETAIL,79.99,CE03 CAPITAL VEHICLES AND PLANT,DIRECT MARKETING-OTHER DIRECT MARKETERS/NOT ELSEW.
29/07/2015,http://opendatacommunities.org/id/county-council/surrey,Surrey,http://id.esd.org.uk/service/1465,Council expenditure,12/04/2015,LONGFIELD RESIDENTIAL CARE,MARKS & SPENCER,267.49,"CLOTHING, UNIFORM AND LAUNDRY","GROCERY STORES, SUPERMARKETS"
29/07/2015,http://opendatacommunities.org/id/county-council/surrey,Surrey,http://id.esd.org.uk/service/1465,Council expenditure,12/04/2015,LONGFIELD RESIDENTIAL CARE,MARKS & SPENCER,109.5,"CLOTHING, UNIFORM AND LAUNDRY","GROCERY STORES, SUPERMARKETS"
29/07/2015,http://opendatacommunities.org/id/county-council/surrey,Surrey,http://id.esd.org.uk/service/1465,Council expenditure,12/04/2015,TRANSPORT,SCREWFIX DIRECT,58.98,DAY TO DAY MAINTENANCE,"BUILDING MATERIALS, LUMBER STORES"
29/07/2015,http://opendatacommunities.org/id/county-council/surrey,Surrey,http://id.esd.org.uk/service/1465,Council expenditure,12/04/2015,CHEYNE WALK COMMUNITY HOME,TESCO STORES 2560,11.4,EQUIPMENT,"GROCERY STORES, SUPERMARKETS"
29/07/2015,http://opendatacommunities.org/id/county-council/surrey,Surrey,http://id.esd.org.uk/service/1465,Council expenditure,12/04/2015,TRAINING SURREY HIGHWAYS,WWW.INSTOFASPHALT.ORG,400,TRAINING EXPENSES EXTERNAL GENERAL,PROFESSIONAL SERVICES-NOT ELSEWHERE CLASSIFIED
29/07/2015,http://opendatacommunities.org/id/county-council/surrey,Surrey,http://id.esd.org.uk/service/1465,Council expenditure,13/04/2015,FAIRCROFT COMMUNITY HOME,SUPERCUTS,24.4,EQUIPMENT,BARBER AND BEAUTY SHOPS
29/07/2015,http://opendatacommunities.org/id/county-council/surrey,Surrey,http://id.esd.org.uk/service/1465,Council expenditure,13/04/2015,ORDER TO CASH TEAMS,SECURITYMETRICS,420,COMPUTER SERVICES,BUSINESS SERVICES-NOT ELSEWHERE CLASSIFIED
29/07/2015,http://opendatacommunities.org/id/county-council/surrey,Surrey,http://id.esd.org.uk/service/1465,Council expenditure,13/04/2015,MALLOW CRESCENT,ATG TICKETS,56.45,PUBLICITY,"THEATRICAL PRODUCERS(EXCL MOTION PIX),TICKET AGNCY"
29/07/2015,http://opendatacommunities.org/id/county-council/surrey,Surrey,http://id.esd.org.uk/service/1465,Council expenditure,13/04/2015,TRANSPORT,"AMAZON SVCS EUROPE,SAR",131.3,OPERATIONAL FIRE EQUIPMENT,BOOK STORES
29/07/2015,http://opendatacommunities.org/id/county-council/surrey,Surrey,http://id.esd.org.uk/service/1465,Council expenditure,13/04/2015,TARGETED INTERVENTION,STARBUCKS,5.05,EDUC VISITS/HOLS/CAMPS/TOYS,FAST FOOD RESTAURANTS
29/07/2015,http://opendatacommunities.org/id/county-council/surrey,Surrey,http://id.esd.org.uk/service/1465,Council expenditure,13/04/2015,HILLSIDE,TESCO STORE 3149,120.67,PURCHASE OF FOOD (RAW MATERIALS),"GROCERY STORES, SUPERMARKETS"
29/07/2015,http://opendatacommunities.org/id/county-council/surrey,Surrey,http://id.esd.org.uk/service/1465,Council expenditure,13/04/2015,HILLSIDE,TESCO STORE 3149,8.35,PURCHASE OF FOOD (RAW MATERIALS),"GROCERY STORES, SUPERMARKETS"
29/07/2015,http://opendatacommunities.org/id/county-council/surrey,Surrey,http://id.esd.org.uk/service/1465,Council expenditure,13/04/2015,NIL RECOURSE PUBLIC FNDG 18+ ASYLUM SKR,HOLIDAY INN EXPRESS CR,"1,120.00",3RD PARTY PAYMENTS PRIVATE INDIV,"LODGING-HOTELS,MOTELS,RESORTS-NOT CLASSIFIED"
29/07/2015,http://opendatacommunities.org/id/county-council/surrey,Surrey,http://id.esd.org.uk/service/1465,Council expenditure,13/04/2015,ACL CENTRAL EXPENDITURE,TOOLSTATION LTD,167.9,CURRICULUM EQUIPMENT AND FURNITURE,HARDWARE STORES
29/07/2015,http://opendatacommunities.org/id/county-council/surrey,Surrey,http://id.esd.org.uk/service/1465,Council expenditure,13/04/2015,STAFF OFFICE,AEROSPACE RESOURCE,60,REFRESHMENT COSTS,"EATING PLACES, RESTAURANTS"
29/07/2015,http://opendatacommunities.org/id/county-council/surrey,Surrey,http://id.esd.org.uk/service/1465,Council expenditure,13/04/2015,NE CARE - CP & COURT LAC,WWW.NCT.ORG.UK,114,TRAINING EXPENSES EXTERNAL GENERAL,"ORGANIZATIONS, CHARITABLE AND SOCIAL SERVICES"
29/07/2015,http://opendatacommunities.org/id/county-council/surrey,Surrey,http://id.esd.org.uk/service/1465,Council expenditure,13/04/2015,LIBERTAS COMMUNITY HOME,SAINSBURYS SACAT 0652,17.8,PURCHASE OF FOOD (RAW MATERIALS),"GROCERY STORES, SUPERMARKETS"
29/07/2015,http://opendatacommunities.org/id/county-council/surrey,Surrey,http://id.esd.org.uk/service/1465,Council expenditure,13/04/2015,LIBERTAS COMMUNITY HOME,SAINSBURYS SACAT 0652,107.24,PURCHASE OF FOOD (RAW MATERIALS),"GROCERY STORES, SUPERMARKETS"
29/07/2015,http://opendatacommunities.org/id/county-council/surrey,Surrey,http://id.esd.org.uk/service/1465,Council expenditure,13/04/2015,LANGDOWN STAFF COST,SANDY BALLS ESTATE,628,3RD PARTY PAYMENTS PRIVATE INDIV,CAMPGROUNDS AND TRAILER PARKS
29/07/2015,http://opendatacommunities.org/id/county-council/surrey,Surrey,http://id.esd.org.uk/service/1465,Council expenditure,13/04/2015,TARGETED INTERVENTION,CAFE AT COURT FARM,5,EDUC VISITS/HOLS/CAMPS/TOYS,"EATING PLACES, RESTAURANTS"
29/07/2015,http://opendatacommunities.org/id/county-council/surrey,Surrey,http://id.esd.org.uk/service/1465,Council expenditure,13/04/2015,OPS-FLEET/WORKSHOPS,DARCY PRODUCTS LTD,946.76,CE03 CAPITAL VEHICLES AND PLANT,INDUSTRIAL SUPPLIES NOT ELSEWHERE CLASSIFIED
29/07/2015,http://opendatacommunities.org/id/county-council/surrey,Surrey,http://id.esd.org.uk/service/1465,Council expenditure,13/04/2015,HILLSIDE,SAINSBURYS SACAT 0784,19,PURCHASE OF FOOD (RAW MATERIALS),"GROCERY STORES, SUPERMARKETS"
29/07/2015,http://opendatacommunities.org/id/county-council/surrey,Surrey,http://id.esd.org.uk/service/1465,Council expenditure,13/04/2015,PROPERTY OPERATIONS TEAM,GEMINI ELECTRICAL,6.12,PURCHASE OF BUILDING MATERIALS,ELECTRICAL AND SMALL APPLIANCE REPAIR SHOPS
29/07/2015,http://opendatacommunities.org/id/county-council/surrey,Surrey,http://id.esd.org.uk/service/1465,Council expenditure,13/04/2015,PINEHURST RESIDENTIAL CARE,"AMAZON SVCS EUROPE,SAR",19.98,EQUIPMENT,BOOK STORES
29/07/2015,http://opendatacommunities.org/id/county-council/surrey,Surrey,http://id.esd.org.uk/service/1465,Council expenditure,13/04/2015,MALLOW CRESCENT,TESCO STORE 2590,5.29,PURCHASE OF FOOD (RAW MATERIALS),"GROCERY STORES, SUPERMARKETS"
29/07/2015,http://opendatacommunities.org/id/county-council/surrey,Surrey,http://id.esd.org.uk/service/1465,Council expenditure,13/04/2015,MALLOW CRESCENT,TESCO STORE 2590,68.39,PURCHASE OF FOOD (RAW MATERIALS),"GROCERY STORES, SUPERMARKETS"
29/07/2015,http://opendatacommunities.org/id/county-council/surrey,Surrey,http://id.esd.org.uk/service/1465,Council expenditure,13/04/2015,RUTH HOUSE,BT BILL PAYMENT 2,59.86,TELECOMMUNICATION CHARGES,TELECOMMUNICATION EQUIPMENT INCL TELEPHONE SALES
29/07/2015,http://opendatacommunities.org/id/county-council/surrey,Surrey,http://id.esd.org.uk/service/1465,Council expenditure,13/04/2015,HOPE SERVICE - EAST,SAINSBURYS 0683,28.79,PURCHASE OF FOOD (RAW MATERIALS),"GROCERY STORES, SUPERMARKETS"
29/07/2015,http://opendatacommunities.org/id/county-council/surrey,Surrey,http://id.esd.org.uk/service/1465,Council expenditure,13/04/2015,LOCAL PREVENTION FRAMEWORK - TANDRIDGE,SAINSBURYS SACAT 0023,1.99,REFRESHMENT COSTS,"GROCERY STORES, SUPERMARKETS"
29/07/2015,http://opendatacommunities.org/id/county-council/surrey,Surrey,http://id.esd.org.uk/service/1465,Council expenditure,13/04/2015,HOPE SERVICE - WEST,B & Q,21.62,CURRICULUM CONSUMABLES,"BUILDING MATERIALS, LUMBER STORES"
29/07/2015,http://opendatacommunities.org/id/county-council/surrey,Surrey,http://id.esd.org.uk/service/1465,Council expenditure,13/04/2015,HILLSIDE,KITCHEN KAPERS,39.96,EQUIPMENT,MISCELLANEOUS HOUSE FURNISHING SPECIALTY SHOPS
29/07/2015,http://opendatacommunities.org/id/county-council/surrey,Surrey,http://id.esd.org.uk/service/1465,Council expenditure,13/04/2015,HOPE SERVICE - WEST,HOMEBASE LTD 050,3.54,CURRICULUM CONSUMABLES,"BUILDING MATERIALS, LUMBER STORES"
29/07/2015,http://opendatacommunities.org/id/county-council/surrey,Surrey,http://id.esd.org.uk/service/1465,Council expenditure,13/04/2015,PURCHASE TO PAY TEAMS,AMAZON UK RETAIL,133.57,EQUIPMENT,DIRECT MARKETING-OTHER DIRECT MARKETERS/NOT ELSEW.
29/07/2015,http://opendatacommunities.org/id/county-council/surrey,Surrey,http://id.esd.org.uk/service/1465,Council expenditure,13/04/2015,TRANSPORT,"AMAZON SVCS EUROPE,SAR",23.48,COMPUTER CONSUMABLES,BOOK STORES
29/07/2015,http://opendatacommunities.org/id/county-council/surrey,Surrey,http://id.esd.org.uk/service/1465,Council expenditure,13/04/2015,TRANSPORT,AMAZON UK MARKETPLACE,1.8,DAY TO DAY MAINTENANCE,BOOK STORES
29/07/2015,http://opendatacommunities.org/id/county-council/surrey,Surrey,http://id.esd.org.uk/service/1465,Council expenditure,13/04/2015,TRANSPORT,"AMAZON SVCS EUROPE,SAR",31.3,STATIONERY,BOOK STORES
29/07/2015,http://opendatacommunities.org/id/county-council/surrey,Surrey,http://id.esd.org.uk/service/1465,Council expenditure,13/04/2015,KARIBU COMMUNITY HOME,STARBUCKS,7.4,PURCHASE OF FOOD (RAW MATERIALS),FAST FOOD RESTAURANTS
29/07/2015,http://opendatacommunities.org/id/county-council/surrey,Surrey,http://id.esd.org.uk/service/1465,Council expenditure,13/04/2015,BURBANK COMMUNITY HOME,SEAFARE - W,26.1,PURCHASE OF FOOD (RAW MATERIALS),FAST FOOD RESTAURANTS
29/07/2015,http://opendatacommunities.org/id/county-council/surrey,Surrey,http://id.esd.org.uk/service/1465,Council expenditure,13/04/2015,DOWNLANDS COUNTRYSIDE PROJECT,WRAYSBURY TYRES,127.8,EQUIPMENT,AUTOMOTIVE TIRE STORES
29/07/2015,http://opendatacommunities.org/id/county-council/surrey,Surrey,http://id.esd.org.uk/service/1465,Council expenditure,13/04/2015,LOWER MOLE COUNTRYSIDE PROJECT,FILCRIS LTD,354,PURCHASE OF BUILDING MATERIALS,"EQUIP, FURNITURE, HOME FURNSHNGS STRS (EXCPT APPL)"
29/07/2015,http://opendatacommunities.org/id/county-council/surrey,Surrey,http://id.esd.org.uk/service/1465,Council expenditure,13/04/2015,HOPE SERVICE - WEST,SAINSBURYS TO YOU 0686,90.44,PURCHASE OF FOOD (RAW MATERIALS),"GROCERY STORES, SUPERMARKETS"
29/07/2015,http://opendatacommunities.org/id/county-council/surrey,Surrey,http://id.esd.org.uk/service/1465,Council expenditure,13/04/2015,TRANSPORT,MOBILE FLEETWASH UK LT,324,VEHICLE REPAIRS AND MAINTENANCE,CAR WASHES
29/07/2015,http://opendatacommunities.org/id/county-council/surrey,Surrey,http://id.esd.org.uk/service/1465,Council expenditure,13/04/2015,MALLOW CRESCENT,SLEEPWELL,99,FURNITURE,"EQUIP, FURNITURE, HOME FURNSHNGS STRS (EXCPT APPL)"
29/07/2015,http://opendatacommunities.org/id/county-council/surrey,Surrey,http://id.esd.org.uk/service/1465,Council expenditure,13/04/2015,HOPE SERVICE - WEST,THE ART OF CRAFT,10.75,CURRICULUM CONSUMABLES,"ARTIST SUPPLY STORES, CRAFT SHOPS"
29/07/2015,http://opendatacommunities.org/id/county-council/surrey,Surrey,http://id.esd.org.uk/service/1465,Council expenditure,13/04/2015,TARGETED INTERVENTION,STARBUCKS,9,EDUC VISITS/HOLS/CAMPS/TOYS,FAST FOOD RESTAURANTS
29/07/2015,http://opendatacommunities.org/id/county-council/surrey,Surrey,http://id.esd.org.uk/service/1465,Council expenditure,13/04/2015,HOPE SERVICE - WEST,THE ART OF CRAFT,35.58,CURRICULUM CONSUMABLES,"ARTIST SUPPLY STORES, CRAFT SHOPS"
29/07/2015,http://opendatacommunities.org/id/county-council/surrey,Surrey,http://id.esd.org.uk/service/1465,Council expenditure,13/04/2015,HILLSIDE,SAINSBURYS 0784,31.95,PURCHASE OF FOOD (RAW MATERIALS),"GROCERY STORES, SUPERMARKETS"
29/07/2015,http://opendatacommunities.org/id/county-council/surrey,Surrey,http://id.esd.org.uk/service/1465,Council expenditure,13/04/2015,PROPERTY OPERATIONS TEAM,WICKES,103.95,PURCHASE OF BUILDING MATERIALS,"BUILDING MATERIALS, LUMBER STORES"
29/07/2015,http://opendatacommunities.org/id/county-council/surrey,Surrey,http://id.esd.org.uk/service/1465,Council expenditure,13/04/2015,TRANSPORT,BEARINGS AND BELTS,27.22,VEHICLE REPAIRS AND MAINTENANCE,"ARCHITECTURAL, ENGINEERING, AND SURVEYING SERVICES"
29/07/2015,http://opendatacommunities.org/id/county-council/surrey,Surrey,http://id.esd.org.uk/service/1465,Council expenditure,13/04/2015,HOPE SERVICE - WEST,SAINSBURYS 0675,105.33,PURCHASE OF FOOD (RAW MATERIALS),"GROCERY STORES, SUPERMARKETS"
29/07/2015,http://opendatacommunities.org/id/county-council/surrey,Surrey,http://id.esd.org.uk/service/1465,Council expenditure,13/04/2015,SW TEACHERS,PAYPAL  SPEECHMARKP,185.69,EQUIPMENT,MISCELLANEOUS PUBLISHING AND PRINTING
29/07/2015,http://opendatacommunities.org/id/county-council/surrey,Surrey,http://id.esd.org.uk/service/1465,Council expenditure,13/04/2015,TRANSPORT,"AMAZON SVCS EUROPE,SAR",31.99,FURNITURE,BOOK STORES
29/07/2015,http://opendatacommunities.org/id/county-council/surrey,Surrey,http://id.esd.org.uk/service/1465,Council expenditure,13/04/2015,PE/CDT MAINTENANCE OVERHEADS,STAPLES UK,17.06,EQUIPMENT,"OFFICE, SCHOOL SUPPLY, AND STATIONERY STORES"
29/07/2015,http://opendatacommunities.org/id/county-council/surrey,Surrey,http://id.esd.org.uk/service/1465,Council expenditure,13/04/2015,SOUTH WEST AREA TEAM,"AMAZON SVCS EUROPE,SAR",9.65,TELECOMMUNICATION CHARGES,BOOK STORES
29/07/2015,http://opendatacommunities.org/id/county-council/surrey,Surrey,http://id.esd.org.uk/service/1465,Council expenditure,13/04/2015,RUTH HOUSE,LAIDLAWS,73.68,EQUIPMENT,HARDWARE STORES
29/07/2015,http://opendatacommunities.org/id/county-council/surrey,Surrey,http://id.esd.org.uk/service/1465,Council expenditure,13/04/2015,RUTH HOUSE,SAINSBURYS TO YOU 0686,52.45,PURCHASE OF FOOD (RAW MATERIALS),"GROCERY STORES, SUPERMARKETS"
29/07/2015,http://opendatacommunities.org/id/county-council/surrey,Surrey,http://id.esd.org.uk/service/1465,Council expenditure,13/04/2015,RUTH HOUSE,SAINSBURYS TO YOU 0686,308.85,PURCHASE OF FOOD (RAW MATERIALS),"GROCERY STORES, SUPERMARKETS"
29/07/2015,http://opendatacommunities.org/id/county-council/surrey,Surrey,http://id.esd.org.uk/service/1465,Council expenditure,13/04/2015,NIL RECOURSE PUBLIC FNDG 18+ ASYLUM SKR,HOLIDAY INN EXPRESS CR,76,3RD PARTY PAYMENTS PRIVATE INDIV,"LODGING-HOTELS,MOTELS,RESORTS-NOT CLASSIFIED"
29/07/2015,http://opendatacommunities.org/id/county-council/surrey,Surrey,http://id.esd.org.uk/service/1465,Council expenditure,13/04/2015,MAYFORD CENTRE - BUSINESS,WWW.DOUBLEIMAGE.CO.UK,94.13,EQUIPMENT,MISCELLANEOUS PUBLISHING AND PRINTING
29/07/2015,http://opendatacommunities.org/id/county-council/surrey,Surrey,http://id.esd.org.uk/service/1465,Council expenditure,13/04/2015,TRANSPORT,DSA THEORY TEST,25,VEHICLE REPAIRS AND MAINTENANCE,GOVERNMENT SERVICES-NOT ELSEWHERE CLASSIFIED
29/07/2015,http://opendatacommunities.org/id/county-council/surrey,Surrey,http://id.esd.org.uk/service/1465,Council expenditure,13/04/2015,SERVICE DELIVERY SENIOR MANAGEMENT,"AMAZON SVCS EUROPE,SAR",2.99,EQUIPMENT,BOOK STORES
29/07/2015,http://opendatacommunities.org/id/county-council/surrey,Surrey,http://id.esd.org.uk/service/1465,Council expenditure,13/04/2015,C&C DIRECTORATE SUPPORT,PAYPAL  ICONINSTITU,105,SUBSCRIPTIONS,"ORGANIZATIONS, CHARITABLE AND SOCIAL SERVICES"
29/07/2015,http://opendatacommunities.org/id/county-council/surrey,Surrey,http://id.esd.org.uk/service/1465,Council expenditure,13/04/2015,PROPERTY OPERATIONS TEAM,SCREWFIX DIRECT,112.77,PURCHASE OF BUILDING MATERIALS,"BUILDING MATERIALS, LUMBER STORES"
29/07/2015,http://opendatacommunities.org/id/county-council/surrey,Surrey,http://id.esd.org.uk/service/1465,Council expenditure,14/04/2015,MEMBERS EXPENSES (INCL ALLOWANCES),THE PLACE HOTEL,200,TRAINING EXPENSES EXTERNAL GENERAL,"LODGING-HOTELS,MOTELS,RESORTS-NOT CLASSIFIED"
29/07/2015,http://opendatacommunities.org/id/county-council/surrey,Surrey,http://id.esd.org.uk/service/1465,Council expenditure,14/04/2015,HERITAGE                                ,PREMIER INN44530345,739.5,SUBSISTENCE AND CONFERENCE EXPENSES,PREMIER INN
29/07/2015,http://opendatacommunities.org/id/county-council/surrey,Surrey,http://id.esd.org.uk/service/1465,Council expenditure,14/04/2015,BURBANK COMMUNITY HOME,WOKING BOROUGH COUNCIL,3.9,EDUC VISITS/HOLS/CAMPS/TOYS,AUTOMOBILE PARKING LOTS AND GARAGES
29/07/2015,http://opendatacommunities.org/id/county-council/surrey,Surrey,http://id.esd.org.uk/service/1465,Council expenditure,14/04/2015,HERITAGE                                ,PREMIER INN44530345,510.5,SUBSISTENCE AND CONFERENCE EXPENSES,PREMIER INN
29/07/2015,http://opendatacommunities.org/id/county-council/surrey,Surrey,http://id.esd.org.uk/service/1465,Council expenditure,14/04/2015,SOLD DAY TO DAY OPERATIONS,"AMAZON SVCS EUROPE,SAR",3.99,EQUIPMENT,BOOK STORES
29/07/2015,http://opendatacommunities.org/id/county-council/surrey,Surrey,http://id.esd.org.uk/service/1465,Council expenditure,14/04/2015,COUNTYWIDE MANAGED PRINT SERVICE,GALTEC SOLUTIONS LTD,-571.2,COMPUTER CONSUMABLES,COMPUTER SOFTWARE STORES
29/07/2015,http://opendatacommunities.org/id/county-council/surrey,Surrey,http://id.esd.org.uk/service/1465,Council expenditure,14/04/2015,CONSORT HOUSE REDHILL,LINEN DIRECT,7.99,FIXTURES AND FITTINGS,"DRAPERY, UPOLSTERY, AND WINDOW COVERINGS STORES"
29/07/2015,http://opendatacommunities.org/id/county-council/surrey,Surrey,http://id.esd.org.uk/service/1465,Council expenditure,14/04/2015,ACL CENTRAL EXPENDITURE,ALEC TIRANTI LTD,99.89,CURRICULUM EQUIPMENT AND FURNITURE,"ARTIST SUPPLY STORES, CRAFT SHOPS"
29/07/2015,http://opendatacommunities.org/id/county-council/surrey,Surrey,http://id.esd.org.uk/service/1465,Council expenditure,14/04/2015,HILLSIDE,SAINSBURYS 0675,59.1,PURCHASE OF FOOD (RAW MATERIALS),"GROCERY STORES, SUPERMARKETS"
29/07/2015,http://opendatacommunities.org/id/county-council/surrey,Surrey,http://id.esd.org.uk/service/1465,Council expenditure,14/04/2015,HEAD OF SCH COMMISSIONING & ADMISSIONS,AMAZON UK RETAIL,67.98,EQUIPMENT,DIRECT MARKETING-OTHER DIRECT MARKETERS/NOT ELSEW.
29/07/2015,http://opendatacommunities.org/id/county-council/surrey,Surrey,http://id.esd.org.uk/service/1465,Council expenditure,14/04/2015,CHEYNE WALK COMMUNITY HOME,SAINSBURYS TO YOU 0026,109.23,PURCHASE OF FOOD (RAW MATERIALS),"GROCERY STORES, SUPERMARKETS"
29/07/2015,http://opendatacommunities.org/id/county-council/surrey,Surrey,http://id.esd.org.uk/service/1465,Council expenditure,14/04/2015,IMCA / DEPRIVATION OF LIBERTY,"AMAZON SVCS EUROPE,SAR",5.98,3RD PARTY PAYMENTS PRIVATE INDIV,BOOK STORES
29/07/2015,http://opendatacommunities.org/id/county-council/surrey,Surrey,http://id.esd.org.uk/service/1465,Council expenditure,14/04/2015,KARIBU COMMUNITY HOME,TESCO STORE 2812,216.56,PURCHASE OF FOOD (RAW MATERIALS),"GROCERY STORES, SUPERMARKETS"
29/07/2015,http://opendatacommunities.org/id/county-council/surrey,Surrey,http://id.esd.org.uk/service/1465,Council expenditure,14/04/2015,ACL CENTRAL EXPENDITURE,SOUTH WESTERN IND PLAS,133.53,CURRICULUM EQUIPMENT AND FURNITURE,"INSULATION,MASONRY,PLSTER,STONEWRK,TILESET CNTRCTR"
29/07/2015,http://opendatacommunities.org/id/county-council/surrey,Surrey,http://id.esd.org.uk/service/1465,Council expenditure,14/04/2015,SOLD DAY TO DAY OPERATIONS,"AMAZON SVCS EUROPE,SAR",10.69,EQUIPMENT,BOOK STORES
29/07/2015,http://opendatacommunities.org/id/county-council/surrey,Surrey,http://id.esd.org.uk/service/1465,Council expenditure,14/04/2015,LIBERTAS COMMUNITY HOME,THE SNOOTY FOX,22.15,PURCHASE OF FOOD (RAW MATERIALS),FAST FOOD RESTAURANTS
29/07/2015,http://opendatacommunities.org/id/county-council/surrey,Surrey,http://id.esd.org.uk/service/1465,Council expenditure,14/04/2015,BURBANK COMMUNITY HOME,DEBENHAMS,55,"CLOTHING, UNIFORM AND LAUNDRY",DEPARTMENT STORES
29/07/2015,http://opendatacommunities.org/id/county-council/surrey,Surrey,http://id.esd.org.uk/service/1465,Council expenditure,14/04/2015,YSS YOUTH CENTRE IMPROVEMENTS,AMAZON UK RETAIL,147.98,EQUIPMENT,DIRECT MARKETING-OTHER DIRECT MARKETERS/NOT ELSEW.
29/07/2015,http://opendatacommunities.org/id/county-council/surrey,Surrey,http://id.esd.org.uk/service/1465,Council expenditure,14/04/2015,SW CP & COURT TEAM,"AMAZON SVCS EUROPE,SAR",4.59,EDUC VISITS/HOLS/CAMPS/TOYS,BOOK STORES
29/07/2015,http://opendatacommunities.org/id/county-council/surrey,Surrey,http://id.esd.org.uk/service/1465,Council expenditure,14/04/2015,SOLD BUSINESS SUPPORT,AMAZON UK RETAIL,18.29,EQUIPMENT,DIRECT MARKETING-OTHER DIRECT MARKETERS/NOT ELSEW.
29/07/2015,http://opendatacommunities.org/id/county-council/surrey,Surrey,http://id.esd.org.uk/service/1465,Council expenditure,14/04/2015,HERITAGE ENTERPRISE (SCAU),JACKSON & GOCHER,111.6,EQUIPMENT,"EQUIPMENT RENTAL&LEASING SVS, FURNTURE/TOOL RENTAL"
29/07/2015,http://opendatacommunities.org/id/county-council/surrey,Surrey,http://id.esd.org.uk/service/1465,Council expenditure,14/04/2015,BURBANK COMMUNITY HOME,PRIMARK,23.1,"CLOTHING, UNIFORM AND LAUNDRY",FAMILY CLOTHING STORES
29/07/2015,http://opendatacommunities.org/id/county-council/surrey,Surrey,http://id.esd.org.uk/service/1465,Council expenditure,14/04/2015,APPLEWOOD,ASDA HOME SHOPPING,-26.78,PURCHASE OF FOOD (RAW MATERIALS),"GROCERY STORES, SUPERMARKETS"
29/07/2015,http://opendatacommunities.org/id/county-council/surrey,Surrey,http://id.esd.org.uk/service/1465,Council expenditure,14/04/2015,IMPROVING OUTCOMES - ECAT,AMAZON UK RETAIL,20.14,BOOKS,DIRECT MARKETING-OTHER DIRECT MARKETERS/NOT ELSEW.
29/07/2015,http://opendatacommunities.org/id/county-council/surrey,Surrey,http://id.esd.org.uk/service/1465,Council expenditure,14/04/2015,WORKPLACE DELIVERY MANAGER,AMAZON UK MARKETPLACE,5,EQUIPMENT,BOOK STORES
29/07/2015,http://opendatacommunities.org/id/county-council/surrey,Surrey,http://id.esd.org.uk/service/1465,Council expenditure,14/04/2015,KARIBU COMMUNITY HOME,PARENTPAY.COM,45,PURCHASE OF FOOD (RAW MATERIALS),"COLLEGES, UNIV, PRO SCHOOLS, JUNIOR COLLEGES"
29/07/2015,http://opendatacommunities.org/id/county-council/surrey,Surrey,http://id.esd.org.uk/service/1465,Council expenditure,14/04/2015,ARUNDEL,WILKO RETAIL LIMIT,14.5,EQUIPMENT,HOUSEHOLD APPLIANCE STORES
29/07/2015,http://opendatacommunities.org/id/county-council/surrey,Surrey,http://id.esd.org.uk/service/1465,Council expenditure,14/04/2015,HERITAGE PUBLIC SERVICE,BOOKER LIMITED SUNBURY,54.17,REFRESHMENT COSTS,CATERERS
29/07/2015,http://opendatacommunities.org/id/county-council/surrey,Surrey,http://id.esd.org.uk/service/1465,Council expenditure,14/04/2015,BURBANK COMMUNITY HOME,W M MORRISONS,6.49,PURCHASE OF FOOD (RAW MATERIALS),"GROCERY STORES, SUPERMARKETS"
29/07/2015,http://opendatacommunities.org/id/county-council/surrey,Surrey,http://id.esd.org.uk/service/1465,Council expenditure,14/04/2015,EQUIPMENT SCC BUDGET,AO RETAIL LIMITED,263.97,EQUIPMENT,HOUSEHOLD APPLIANCE STORES
29/07/2015,http://opendatacommunities.org/id/county-council/surrey,Surrey,http://id.esd.org.uk/service/1465,Council expenditure,14/04/2015,EAST SUSSEX CONTRACT - MGMT & ADMIN,TESCO STORES 3330,2.79,REFRESHMENT COSTS,"GROCERY STORES, SUPERMARKETS"
29/07/2015,http://opendatacommunities.org/id/county-council/surrey,Surrey,http://id.esd.org.uk/service/1465,Council expenditure,14/04/2015,ASSET PLANNING - OPERATIONS,SAINSBURYS SACAT 0652,2.96,REFRESHMENT COSTS,"GROCERY STORES, SUPERMARKETS"
29/07/2015,http://opendatacommunities.org/id/county-council/surrey,Surrey,http://id.esd.org.uk/service/1465,Council expenditure,14/04/2015,LOCAL CTTEES-YOUTH FRAMEWORK CONTRACT,SURREY HEATH CASH OFFI,42.63,VENUE COSTS (INCLUDING HIRE OF ROOMS),GOVERNMENT SERVICES-NOT ELSEWHERE CLASSIFIED
29/07/2015,http://opendatacommunities.org/id/county-council/surrey,Surrey,http://id.esd.org.uk/service/1465,Council expenditure,14/04/2015,SECTOR MANAGER,ROYAL MAIL,"1,260.00",ITEMS PURCHASED FOR RE-SALE,POSTAL SERVICES-GOVERNMENT ONLY
29/07/2015,http://opendatacommunities.org/id/county-council/surrey,Surrey,http://id.esd.org.uk/service/1465,Council expenditure,14/04/2015,NW LOOKED AFTER TEAM,SURREY CC CARD PAY,11,FEES,COMPUTER NETWORK/INFORMATION SERVICES
29/07/2015,http://opendatacommunities.org/id/county-council/surrey,Surrey,http://id.esd.org.uk/service/1465,Council expenditure,14/04/2015,NW CARE - NON-LAC CP & COURT,TRAVELODGE WEBSITE,66,CHILDREN ACT SEC 17 PAYMENTS,TRAVELODGE
29/07/2015,http://opendatacommunities.org/id/county-council/surrey,Surrey,http://id.esd.org.uk/service/1465,Council expenditure,14/04/2015,HOPE SERVICE - EAST,RADIANT BLINDS LTD,131.74,FIXTURES AND FITTINGS,"DRAPERY, UPOLSTERY, AND WINDOW COVERINGS STORES"
29/07/2015,http://opendatacommunities.org/id/county-council/surrey,Surrey,http://id.esd.org.uk/service/1465,Council expenditure,14/04/2015,TRANSPORT,AUDON ELECTRONICS,342,COMPUTER HARDWARE,ELECTRICAL PARTS AND EQUIPMENT
29/07/2015,http://opendatacommunities.org/id/county-council/surrey,Surrey,http://id.esd.org.uk/service/1465,Council expenditure,14/04/2015,SOLD DAY TO DAY OPERATIONS,"AMAZON SVCS EUROPE,SAR",3.24,EQUIPMENT,BOOK STORES
29/07/2015,http://opendatacommunities.org/id/county-council/surrey,Surrey,http://id.esd.org.uk/service/1465,Council expenditure,14/04/2015,ROW VOLUNTEERS EAST                     ,TESCO STORES 2560,8.95,REFRESHMENT COSTS,"GROCERY STORES, SUPERMARKETS"
29/07/2015,http://opendatacommunities.org/id/county-council/surrey,Surrey,http://id.esd.org.uk/service/1465,Council expenditure,14/04/2015,APPLEWOOD,ASDA HOME SHOPPING,108.42,PURCHASE OF FOOD (RAW MATERIALS),"GROCERY STORES, SUPERMARKETS"
29/07/2015,http://opendatacommunities.org/id/county-council/surrey,Surrey,http://id.esd.org.uk/service/1465,Council expenditure,14/04/2015,SURREY ARTS GENERAL,"AMAZON SVCS EUROPE,SAR",89.96,EQUIPMENT,BOOK STORES
29/07/2015,http://opendatacommunities.org/id/county-council/surrey,Surrey,http://id.esd.org.uk/service/1465,Council expenditure,14/04/2015,SOLD DAY TO DAY OPERATIONS,AMAZON UK MARKETPLACE,15.45,PURCHASE OF FOOD (RAW MATERIALS),BOOK STORES
29/07/2015,http://opendatacommunities.org/id/county-council/surrey,Surrey,http://id.esd.org.uk/service/1465,Council expenditure,14/04/2015,HERITAGE STEWARDSHIP AND PRESERVATION,BOWMER BOND N/FABRICS,531.36,EQUIPMENT,MISCELLANEOUS AND SPECIALTY RETAIL STORES
29/07/2015,http://opendatacommunities.org/id/county-council/surrey,Surrey,http://id.esd.org.uk/service/1465,Council expenditure,14/04/2015,HILLSIDE,TESCO STORE 3149,100.31,PURCHASE OF FOOD (RAW MATERIALS),"GROCERY STORES, SUPERMARKETS"
29/07/2015,http://opendatacommunities.org/id/county-council/surrey,Surrey,http://id.esd.org.uk/service/1465,Council expenditure,14/04/2015,HILLSIDE,TESCO STORE 3149,8.5,PURCHASE OF FOOD (RAW MATERIALS),"GROCERY STORES, SUPERMARKETS"
29/07/2015,http://opendatacommunities.org/id/county-council/surrey,Surrey,http://id.esd.org.uk/service/1465,Council expenditure,14/04/2015,TRANSPORT,SCREWFIX FARNBOROU,48.25,COMPUTER CONSUMABLES,"BUILDING MATERIALS, LUMBER STORES"
29/07/2015,http://opendatacommunities.org/id/county-council/surrey,Surrey,http://id.esd.org.uk/service/1465,Council expenditure,14/04/2015,BURBANK COMMUNITY HOME,MCDONALDS,9.08,REFRESHMENT COSTS,FAST FOOD RESTAURANTS
29/07/2015,http://opendatacommunities.org/id/county-council/surrey,Surrey,http://id.esd.org.uk/service/1465,Council expenditure,14/04/2015,TRANSPORT,GALTEC SOLUTIONS LTD,"1,957.20",COMPUTER HARDWARE,COMPUTER SOFTWARE STORES
29/07/2015,http://opendatacommunities.org/id/county-council/surrey,Surrey,http://id.esd.org.uk/service/1465,Council expenditure,14/04/2015,TRANSPORT,AMAZON UK MARKETPLACE,10,COMPUTER CONSUMABLES,BOOK STORES
29/07/2015,http://opendatacommunities.org/id/county-council/surrey,Surrey,http://id.esd.org.uk/service/1465,Council expenditure,14/04/2015,SOLD DAY TO DAY OPERATIONS,AMAZON UK MARKETPLACE,60.82,EQUIPMENT,BOOK STORES
29/07/2015,http://opendatacommunities.org/id/county-council/surrey,Surrey,http://id.esd.org.uk/service/1465,Council expenditure,15/04/2015,TRANSPORT,EASTMIDLANDSTRAINS,155.6,VEHICLE REPAIRS AND MAINTENANCE,PASSENGER RAILWAYS
29/07/2015,http://opendatacommunities.org/id/county-council/surrey,Surrey,http://id.esd.org.uk/service/1465,Council expenditure,15/04/2015,SURREY THE GREAT WAR,PREMIER INN 44533930,984,SUBSISTENCE AND CONFERENCE EXPENSES,PREMIER INN
29/07/2015,http://opendatacommunities.org/id/county-council/surrey,Surrey,http://id.esd.org.uk/service/1465,Council expenditure,15/04/2015,ARUNDEL,ASDA HOME SHOPPING,121.83,REFRESHMENT COSTS,"GROCERY STORES, SUPERMARKETS"
29/07/2015,http://opendatacommunities.org/id/county-council/surrey,Surrey,http://id.esd.org.uk/service/1465,Council expenditure,15/04/2015,ARUNDEL,ASDA HOME SHOPPING,1,REFRESHMENT COSTS,"GROCERY STORES, SUPERMARKETS"
29/07/2015,http://opendatacommunities.org/id/county-council/surrey,Surrey,http://id.esd.org.uk/service/1465,Council expenditure,15/04/2015,CHEYNE WALK COMMUNITY HOME,WWW.JOEBROWNS.CO.,108.85,PURCHASE OF FOOD (RAW MATERIALS),MEN'S AND WOMEN'S CLOTHING STORES
29/07/2015,http://opendatacommunities.org/id/county-council/surrey,Surrey,http://id.esd.org.uk/service/1465,Council expenditure,15/04/2015,TARGETED INTERVENTION,H&M,7.99,EXAMINATION FEES,MEN'S AND WOMEN'S CLOTHING STORES
29/07/2015,http://opendatacommunities.org/id/county-council/surrey,Surrey,http://id.esd.org.uk/service/1465,Council expenditure,15/04/2015,NIL RECOURSE PUBLIC FNDG 18+ ASYLUM SKR,HOLIDAY INN EXPRESS CR,"1,600.15",3RD PARTY PAYMENTS PRIVATE INDIV,"LODGING-HOTELS,MOTELS,RESORTS-NOT CLASSIFIED"
29/07/2015,http://opendatacommunities.org/id/county-council/surrey,Surrey,http://id.esd.org.uk/service/1465,Council expenditure,15/04/2015,SOLD ESTATES MANAGEMENT,SOLAGLAS LTD,130.13,DAY TO DAY MAINTENANCE,"GLASS, PAINT, WALLPAPER STORES"
29/07/2015,http://opendatacommunities.org/id/county-council/surrey,Surrey,http://id.esd.org.uk/service/1465,Council expenditure,15/04/2015,ADULT SKILLS,CIA TRAINING LTD,283.5,CURRIC BOOKS,"COMP PROGRAMING,DATA PRCSNG,INTGRTD SYS DSGN SRVS"
29/07/2015,http://opendatacommunities.org/id/county-council/surrey,Surrey,http://id.esd.org.uk/service/1465,Council expenditure,15/04/2015,HILLSIDE,SAINSBURYS 0675,106.74,PURCHASE OF FOOD (RAW MATERIALS),"GROCERY STORES, SUPERMARKETS"
29/07/2015,http://opendatacommunities.org/id/county-council/surrey,Surrey,http://id.esd.org.uk/service/1465,Council expenditure,15/04/2015,NE TEACHERS,"AMAZON SVCS EUROPE,SAR",93.49,EQUIPMENT,BOOK STORES
29/07/2015,http://opendatacommunities.org/id/county-council/surrey,Surrey,http://id.esd.org.uk/service/1465,Council expenditure,15/04/2015,C&C DIRECTORATE SUPPORT,WWW.POSTURITE.CO.UK,105.92,EQUIPMENT,OFFICE AND COMMERCIAL FURNITURE
29/07/2015,http://opendatacommunities.org/id/county-council/surrey,Surrey,http://id.esd.org.uk/service/1465,Council expenditure,15/04/2015,SOLD DAY TO DAY OPERATIONS,"AMAZON SVCS EUROPE,SAR",19.36,EQUIPMENT,BOOK STORES
29/07/2015,http://opendatacommunities.org/id/county-council/surrey,Surrey,http://id.esd.org.uk/service/1465,Council expenditure,15/04/2015,PE/CDT MAINTENANCE OVERHEADS,AW CHAMPION LTD,24.01,EQUIPMENT,"BUILDING MATERIALS, LUMBER STORES"
29/07/2015,http://opendatacommunities.org/id/county-council/surrey,Surrey,http://id.esd.org.uk/service/1465,Council expenditure,15/04/2015,TARGETED INTERVENTION,43033255 COSTA COFFEE,3.9,EDUC VISITS/HOLS/CAMPS/TOYS,"EATING PLACES, RESTAURANTS"
29/07/2015,http://opendatacommunities.org/id/county-council/surrey,Surrey,http://id.esd.org.uk/service/1465,Council expenditure,15/04/2015,TARGETED INTERVENTION,H&M,4,EXAMINATION FEES,MEN'S AND WOMEN'S CLOTHING STORES
29/07/2015,http://opendatacommunities.org/id/county-council/surrey,Surrey,http://id.esd.org.uk/service/1465,Council expenditure,15/04/2015,LIBERTAS COMMUNITY HOME,POST OFFICE COUNTER,70.2,POSTAGE AND COURIER CHARGES,POSTAL SERVICES-GOVERNMENT ONLY
29/07/2015,http://opendatacommunities.org/id/county-council/surrey,Surrey,http://id.esd.org.uk/service/1465,Council expenditure,15/04/2015,PROPERTY OPERATIONS TEAM,TOOLSTATION LTD,43.72,PURCHASE OF BUILDING MATERIALS,HARDWARE STORES
29/07/2015,http://opendatacommunities.org/id/county-council/surrey,Surrey,http://id.esd.org.uk/service/1465,Council expenditure,15/04/2015,DEVELOPMENT TEAM,AMAZON UK RETAIL,49.98,BOOKS,DIRECT MARKETING-OTHER DIRECT MARKETERS/NOT ELSEW.
29/07/2015,http://opendatacommunities.org/id/county-council/surrey,Surrey,http://id.esd.org.uk/service/1465,Council expenditure,15/04/2015,FINANCIAL STRATEGY & REPORTING TEAM,PAYPAL  COMPANYCHEC,24,FEES,"ACCOUNTING, AUDITING AND BOOKKEEPING SERVICES"
29/07/2015,http://opendatacommunities.org/id/county-council/surrey,Surrey,http://id.esd.org.uk/service/1465,Council expenditure,15/04/2015,IMCA / DEPRIVATION OF LIBERTY,AMAZON UK RETAIL,50.99,3RD PARTY PAYMENTS PRIVATE INDIV,DIRECT MARKETING-OTHER DIRECT MARKETERS/NOT ELSEW.
29/07/2015,http://opendatacommunities.org/id/county-council/surrey,Surrey,http://id.esd.org.uk/service/1465,Council expenditure,15/04/2015,BURBANK COMMUNITY HOME,SAINSBURYS TO YOU 0686,295.91,PURCHASE OF FOOD (RAW MATERIALS),"GROCERY STORES, SUPERMARKETS"
29/07/2015,http://opendatacommunities.org/id/county-council/surrey,Surrey,http://id.esd.org.uk/service/1465,Council expenditure,15/04/2015,SOLD CATERING,CCP CLEANING SUPPLIES,31.15,CLEANING AND DOMESTIC SUPPLIES,"SANITATION, POLISHING & SPECIALITY CLEANING PREP"
29/07/2015,http://opendatacommunities.org/id/county-council/surrey,Surrey,http://id.esd.org.uk/service/1465,Council expenditure,15/04/2015,TS SERVICE MANAGEMENT,"AMAZON SVCS EUROPE,SAR",53.8,EQUIPMENT,BOOK STORES
29/07/2015,http://opendatacommunities.org/id/county-council/surrey,Surrey,http://id.esd.org.uk/service/1465,Council expenditure,15/04/2015,SW LOOKED AFTER TEAM,"AMAZON SVCS EUROPE,SAR",22.3,EDUC VISITS/HOLS/CAMPS/TOYS,BOOK STORES
29/07/2015,http://opendatacommunities.org/id/county-council/surrey,Surrey,http://id.esd.org.uk/service/1465,Council expenditure,15/04/2015,C&C DIRECTORATE SUPPORT,WWW.POSTURITE.CO.UK,-114.92,EQUIPMENT,OFFICE AND COMMERCIAL FURNITURE
29/07/2015,http://opendatacommunities.org/id/county-council/surrey,Surrey,http://id.esd.org.uk/service/1465,Council expenditure,15/04/2015,SW CARE - CP & COURT LAC,SURREY CC CARD PAY,21,LEGAL EXPENSES,COMPUTER NETWORK/INFORMATION SERVICES
29/07/2015,http://opendatacommunities.org/id/county-council/surrey,Surrey,http://id.esd.org.uk/service/1465,Council expenditure,15/04/2015,SUPERFAST BROADBAND ECONOMIC DEVELOPMENT,LAYERSHIFT,60,COMPUTER SERVICES,COMPUTER NETWORK/INFORMATION SERVICES
29/07/2015,http://opendatacommunities.org/id/county-council/surrey,Surrey,http://id.esd.org.uk/service/1465,Council expenditure,15/04/2015,TRANSPORT,AUDON ELECTRONICS,460.8,COMPUTER CONSUMABLES,ELECTRICAL PARTS AND EQUIPMENT
29/07/2015,http://opendatacommunities.org/id/county-council/surrey,Surrey,http://id.esd.org.uk/service/1465,Council expenditure,15/04/2015,SOLD ESTATES MANAGEMENT,SCREWFIX GUILDFORD,80.94,DAY TO DAY MAINTENANCE,"BUILDING MATERIALS, LUMBER STORES"
29/07/2015,http://opendatacommunities.org/id/county-council/surrey,Surrey,http://id.esd.org.uk/service/1465,Council expenditure,15/04/2015,AD OPERATIONS HIGHWAYS AND COUNTRYSIDE,"AMAZON SVCS EUROPE,SAR",2.69,EQUIPMENT,BOOK STORES
29/07/2015,http://opendatacommunities.org/id/county-council/surrey,Surrey,http://id.esd.org.uk/service/1465,Council expenditure,15/04/2015,BOOKS - ADULT FICTION                   ,AMAZON UK RETAIL,25.96,LIBRARY RESOURCES,DIRECT MARKETING-OTHER DIRECT MARKETERS/NOT ELSEW.
29/07/2015,http://opendatacommunities.org/id/county-council/surrey,Surrey,http://id.esd.org.uk/service/1465,Council expenditure,15/04/2015,TARGETED INTERVENTION,TESCO STORE 2560,7,EDUC VISITS/HOLS/CAMPS/TOYS,"GROCERY STORES, SUPERMARKETS"
29/07/2015,http://opendatacommunities.org/id/county-council/surrey,Surrey,http://id.esd.org.uk/service/1465,Council expenditure,15/04/2015,LOCAL PREVENTION FRAMEWORK - TANDRIDGE,SAINSBURYS 0023,28.2,REFRESHMENT COSTS,"GROCERY STORES, SUPERMARKETS"
29/07/2015,http://opendatacommunities.org/id/county-council/surrey,Surrey,http://id.esd.org.uk/service/1465,Council expenditure,15/04/2015,HERITAGE ENTERPRISE (SCAU),HISTORIC ENGLAND,66,FEES,TOURIST ATTRACTIONS AND EXHIBITS
29/07/2015,http://opendatacommunities.org/id/county-council/surrey,Surrey,http://id.esd.org.uk/service/1465,Council expenditure,15/04/2015,HILLSIDE,THE RANGE - ALDERSHOT,20.95,EQUIPMENT,MISCELLANEOUS GENERAL MERCHANDISE
29/07/2015,http://opendatacommunities.org/id/county-council/surrey,Surrey,http://id.esd.org.uk/service/1465,Council expenditure,15/04/2015,BROCKHURST RESIDENTIAL CARE,LLOYDS PHARMACY,45.96,EQUIPMENT,"DRUG STORES, PHARMACIES"
29/07/2015,http://opendatacommunities.org/id/county-council/surrey,Surrey,http://id.esd.org.uk/service/1465,Council expenditure,15/04/2015,TARGETED INTERVENTION,FREEDOM LEISURE,5.9,EDUC VISITS/HOLS/CAMPS/TOYS,GOVERNMENT SERVICES-NOT ELSEWHERE CLASSIFIED
29/07/2015,http://opendatacommunities.org/id/county-council/surrey,Surrey,http://id.esd.org.uk/service/1465,Council expenditure,15/04/2015,RUTH HOUSE,ARGOS LTD,22.95,EDUC VISITS/HOLS/CAMPS/TOYS,DISCOUNT STORES
29/07/2015,http://opendatacommunities.org/id/county-council/surrey,Surrey,http://id.esd.org.uk/service/1465,Council expenditure,15/04/2015,BURBANK COMMUNITY HOME,POST OFFICE COUNTER,267.5,VEHICLE REPAIRS AND MAINTENANCE,POSTAL SERVICES-GOVERNMENT ONLY
29/07/2015,http://opendatacommunities.org/id/county-council/surrey,Surrey,http://id.esd.org.uk/service/1465,Council expenditure,15/04/2015,TRANSPORT,OLSPLIMITED,134.03,COMPUTER HARDWARE,ELECTRONIC SALES
29/07/2015,http://opendatacommunities.org/id/county-council/surrey,Surrey,http://id.esd.org.uk/service/1465,Council expenditure,15/04/2015,PROPERTY OPERATIONS TEAM,WICKES,17.9,PURCHASE OF BUILDING MATERIALS,HOME SUPPLY WAREHOUSE STORES
29/07/2015,http://opendatacommunities.org/id/county-council/surrey,Surrey,http://id.esd.org.uk/service/1465,Council expenditure,15/04/2015,RUTH HOUSE,MUSBURY FABRICS,234.72,EQUIPMENT,MISCELLANEOUS HOUSE FURNISHING SPECIALTY SHOPS
29/07/2015,http://opendatacommunities.org/id/county-council/surrey,Surrey,http://id.esd.org.uk/service/1465,Council expenditure,15/04/2015,LEAVING CARE PACKAGES,WWW.QA.COM,"1,296.00",CURRICULUM CONSUMABLES,SCHOOLS & EDUCATIONAL SVC-NOT ELSEWHERE CLASSIFIED
29/07/2015,http://opendatacommunities.org/id/county-council/surrey,Surrey,http://id.esd.org.uk/service/1465,Council expenditure,15/04/2015,CHILDREN WITH DISABILITIES TEAM EAST,ROYAL MAIL  0845606040,1.11,POSTAGE AND COURIER CHARGES,POSTAL SERVICES-GOVERNMENT ONLY
29/07/2015,http://opendatacommunities.org/id/county-council/surrey,Surrey,http://id.esd.org.uk/service/1465,Council expenditure,15/04/2015,BURBANK COMMUNITY HOME,FREEDOM LEISURE,62.4,EDUC VISITS/HOLS/CAMPS/TOYS,GOVERNMENT SERVICES-NOT ELSEWHERE CLASSIFIED
29/07/2015,http://opendatacommunities.org/id/county-council/surrey,Surrey,http://id.esd.org.uk/service/1465,Council expenditure,15/04/2015,HERITAGE PUBLIC SERVICE,TESCO STORE 3220,21.88,REFRESHMENT COSTS,"GROCERY STORES, SUPERMARKETS"
29/07/2015,http://opendatacommunities.org/id/county-council/surrey,Surrey,http://id.esd.org.uk/service/1465,Council expenditure,15/04/2015,HEAD OF PROCUREMENT,EMAP LTD-SUBSCRIPTIONS,180.25,SUBSCRIPTIONS,MISCELLANEOUS PUBLISHING AND PRINTING
29/07/2015,http://opendatacommunities.org/id/county-council/surrey,Surrey,http://id.esd.org.uk/service/1465,Council expenditure,15/04/2015,SW CARE - LAC,SURREY CC CARD PAY,11,LEGAL EXPENSES,COMPUTER NETWORK/INFORMATION SERVICES
29/07/2015,http://opendatacommunities.org/id/county-council/surrey,Surrey,http://id.esd.org.uk/service/1465,Council expenditure,15/04/2015,SW LOOKED AFTER TEAM,"AMAZON SVCS EUROPE,SAR",3.76,EDUC VISITS/HOLS/CAMPS/TOYS,BOOK STORES
29/07/2015,http://opendatacommunities.org/id/county-council/surrey,Surrey,http://id.esd.org.uk/service/1465,Council expenditure,15/04/2015,NW CARE - NON-LAC CP & COURT,TRAVELODGE WEBSITE,295,CHILDREN ACT SEC 17 PAYMENTS,TRAVELODGE
29/07/2015,http://opendatacommunities.org/id/county-council/surrey,Surrey,http://id.esd.org.uk/service/1465,Council expenditure,15/04/2015,C&C DIRECTORATE SUPPORT,WWW.POSTURITE.CO.UK,114.92,EQUIPMENT,OFFICE AND COMMERCIAL FURNITURE
29/07/2015,http://opendatacommunities.org/id/county-council/surrey,Surrey,http://id.esd.org.uk/service/1465,Council expenditure,15/04/2015,POLICY AND PERFORMANCE TEAM,"AMAZON SVCS EUROPE,SAR",55.47,EQUIPMENT,BOOK STORES
29/07/2015,http://opendatacommunities.org/id/county-council/surrey,Surrey,http://id.esd.org.uk/service/1465,Council expenditure,15/04/2015,TARGETED INTERVENTION,J D SPORTS 105,70,EDUC VISITS/HOLS/CAMPS/TOYS,SPORTING GOODS STORES
29/07/2015,http://opendatacommunities.org/id/county-council/surrey,Surrey,http://id.esd.org.uk/service/1465,Council expenditure,15/04/2015,POLICY AND PERFORMANCE TEAM,"AMAZON SVCS EUROPE,SAR",14.51,EQUIPMENT,BOOK STORES
29/07/2015,http://opendatacommunities.org/id/county-council/surrey,Surrey,http://id.esd.org.uk/service/1465,Council expenditure,15/04/2015,YSS MANAGEMENT PRACTICE AND SUPPORT,TESCO STORES-2047,15.39,EDUC VISITS/HOLS/CAMPS/TOYS,"GROCERY STORES, SUPERMARKETS"
29/07/2015,http://opendatacommunities.org/id/county-council/surrey,Surrey,http://id.esd.org.uk/service/1465,Council expenditure,15/04/2015,TARGETED INTERVENTION,FREEDOM LEISURE,16.7,EDUC VISITS/HOLS/CAMPS/TOYS,GOVERNMENT SERVICES-NOT ELSEWHERE CLASSIFIED
29/07/2015,http://opendatacommunities.org/id/county-council/surrey,Surrey,http://id.esd.org.uk/service/1465,Council expenditure,15/04/2015,HOPE SERVICE - WEST,PENNINETEAC,258,CURRICULUM EQUIPMENT AND FURNITURE,"MISC FOOD STORE-CONVENIENCE,MRKT,SPLTY,VENDNG MACS"
29/07/2015,http://opendatacommunities.org/id/county-council/surrey,Surrey,http://id.esd.org.uk/service/1465,Council expenditure,15/04/2015,COVEHAM,SAINSBURYS TO YOU 0687,90.1,PURCHASE OF FOOD (RAW MATERIALS),"GROCERY STORES, SUPERMARKETS"
29/07/2015,http://opendatacommunities.org/id/county-council/surrey,Surrey,http://id.esd.org.uk/service/1465,Council expenditure,15/04/2015,MALLOW CRESCENT,SAINSBURYS TO YOU 0686,100.54,PURCHASE OF FOOD (RAW MATERIALS),"GROCERY STORES, SUPERMARKETS"
29/07/2015,http://opendatacommunities.org/id/county-council/surrey,Surrey,http://id.esd.org.uk/service/1465,Council expenditure,15/04/2015,HOPE SERVICE - EAST,THE NATIONAL TRUST,7.9,EDUC VISITS/HOLS/CAMPS/TOYS,"ORGANIZATIONS, CHARITABLE AND SOCIAL SERVICES"
29/07/2015,http://opendatacommunities.org/id/county-council/surrey,Surrey,http://id.esd.org.uk/service/1465,Council expenditure,15/04/2015,TARGETED INTERVENTION,TESCO STORES 3399,3,EDUC VISITS/HOLS/CAMPS/TOYS,"GROCERY STORES, SUPERMARKETS"
29/07/2015,http://opendatacommunities.org/id/county-council/surrey,Surrey,http://id.esd.org.uk/service/1465,Council expenditure,15/04/2015,SW LOOKED AFTER TEAM,AMAZON UK RETAIL,26.2,EDUC VISITS/HOLS/CAMPS/TOYS,DIRECT MARKETING-OTHER DIRECT MARKETERS/NOT ELSEW.
29/07/2015,http://opendatacommunities.org/id/county-council/surrey,Surrey,http://id.esd.org.uk/service/1465,Council expenditure,15/04/2015,PE/CDT MAINTENANCE OVERHEADS,AW CHAMPION LTD,130.98,ITEMS PURCHASED FOR RE-SALE,"BUILDING MATERIALS, LUMBER STORES"
29/07/2015,http://opendatacommunities.org/id/county-council/surrey,Surrey,http://id.esd.org.uk/service/1465,Council expenditure,16/04/2015,DOWNLANDS COUNTRYSIDE PROJECT,SUTTON & EAST SURREY W,12.36,FEES,GOVERNMENT SERVICES-NOT ELSEWHERE CLASSIFIED
29/07/2015,http://opendatacommunities.org/id/county-council/surrey,Surrey,http://id.esd.org.uk/service/1465,Council expenditure,16/04/2015,ARUNDEL,ASDA HOME SHOPPING,123.32,REFRESHMENT COSTS,"GROCERY STORES, SUPERMARKETS"
29/07/2015,http://opendatacommunities.org/id/county-council/surrey,Surrey,http://id.esd.org.uk/service/1465,Council expenditure,16/04/2015,ARUNDEL,ASDA HOME SHOPPING,8,REFRESHMENT COSTS,"GROCERY STORES, SUPERMARKETS"
29/07/2015,http://opendatacommunities.org/id/county-council/surrey,Surrey,http://id.esd.org.uk/service/1465,Council expenditure,16/04/2015,TRAINING AND DEVELOPMENT,PREMIER INN44521690,-81.75,SUBSISTENCE AND CONFERENCE EXPENSES,PREMIER INN
29/07/2015,http://opendatacommunities.org/id/county-council/surrey,Surrey,http://id.esd.org.uk/service/1465,Council expenditure,16/04/2015,ASYLUM SEEKERS 18+,TVLICENSING.CO.UK,145.5,EQUIPMENT,"CONSULTING, MANAGEMENT, AND PUBLIC RELATIONS SVCS"
29/07/2015,http://opendatacommunities.org/id/county-council/surrey,Surrey,http://id.esd.org.uk/service/1465,Council expenditure,16/04/2015,YSS YOUTH CENTRE IMPROVEMENTS,TVLICENSING.CO.UK,145.5,FEES,"CONSULTING, MANAGEMENT, AND PUBLIC RELATIONS SVCS"
29/07/2015,http://opendatacommunities.org/id/county-council/surrey,Surrey,http://id.esd.org.uk/service/1465,Council expenditure,16/04/2015,NE EDUCATION PSYCHOLOGISTS,GL-ASSESMENT.CO.UK,68.52,EQUIPMENT,BOOK STORES
29/07/2015,http://opendatacommunities.org/id/county-council/surrey,Surrey,http://id.esd.org.uk/service/1465,Council expenditure,16/04/2015,SURREY ARTS GENERAL,"AMAZON SVCS EUROPE,SAR",12.85,EQUIPMENT,BOOK STORES
29/07/2015,http://opendatacommunities.org/id/county-council/surrey,Surrey,http://id.esd.org.uk/service/1465,Council expenditure,16/04/2015,CORE ACTIVITY                           ,WWW.WOMENONBOARDS.CO.U,495,TRAINING EXPENSES EXTERNAL GENERAL,"ORGANIZATIONS, MEMBERSHIP-NOT ELSEWHERE CLASSIFIED"
29/07/2015,http://opendatacommunities.org/id/county-council/surrey,Surrey,http://id.esd.org.uk/service/1465,Council expenditure,16/04/2015,TRANSPORT,MOBILE FLEETWASH UK LT,108,VEHICLE REPAIRS AND MAINTENANCE,CAR WASHES
29/07/2015,http://opendatacommunities.org/id/county-council/surrey,Surrey,http://id.esd.org.uk/service/1465,Council expenditure,16/04/2015,TRANSPORT,COMBINED PRECISION,161.7,COMPUTER CONSUMABLES,ELECTRICAL PARTS AND EQUIPMENT
29/07/2015,http://opendatacommunities.org/id/county-council/surrey,Surrey,http://id.esd.org.uk/service/1465,Council expenditure,16/04/2015,WEB OPERATIONS TEAM,POSTURITE (UK) LTD,136.39,EQUIPMENT,OFFICE AND COMMERCIAL FURNITURE
29/07/2015,http://opendatacommunities.org/id/county-council/surrey,Surrey,http://id.esd.org.uk/service/1465,Council expenditure,16/04/2015,TARGETED INTERVENTION,HARRIS & HOOLE,3.2,EDUC VISITS/HOLS/CAMPS/TOYS,"EATING PLACES, RESTAURANTS"
29/07/2015,http://opendatacommunities.org/id/county-council/surrey,Surrey,http://id.esd.org.uk/service/1465,Council expenditure,16/04/2015,SOLD DAY TO DAY OPERATIONS,"AMAZON SVCS EUROPE,SAR",1.99,EQUIPMENT,BOOK STORES
29/07/2015,http://opendatacommunities.org/id/county-council/surrey,Surrey,http://id.esd.org.uk/service/1465,Council expenditure,16/04/2015,LOWER MOLE COUNTRYSIDE PROJECT,WICKES,24.72,PURCHASE OF BUILDING MATERIALS,"BUILDING MATERIALS, LUMBER STORES"
29/07/2015,http://opendatacommunities.org/id/county-council/surrey,Surrey,http://id.esd.org.uk/service/1465,Council expenditure,16/04/2015,TRANSPORT,LAND ROVER,21.08,VEHICLE REPAIRS AND MAINTENANCE,"AUTO & TRUCK DLRS-SALES,SVC, REPRS,PRTS, & LEASING"
29/07/2015,http://opendatacommunities.org/id/county-council/surrey,Surrey,http://id.esd.org.uk/service/1465,Council expenditure,16/04/2015,COUNTYWIDE MANAGED PRINT SERVICE,CCL INTERNET,304.47,COMPUTER CONSUMABLES,"COMPUTERS, COMPUTER PERIPHERAL EQUIPMENT, SOFTWARE"
29/07/2015,http://opendatacommunities.org/id/county-council/surrey,Surrey,http://id.esd.org.uk/service/1465,Council expenditure,16/04/2015,RECRUITMENT OM TEAM,WWW.POSTURITE.CO.UK,20.34,FURNITURE,OFFICE AND COMMERCIAL FURNITURE
29/07/2015,http://opendatacommunities.org/id/county-council/surrey,Surrey,http://id.esd.org.uk/service/1465,Council expenditure,16/04/2015,LOWER MOLE COUNTRYSIDE PROJECT,TESCO STORES 6320,40,TELECOMMUNICATION CHARGES,"GROCERY STORES, SUPERMARKETS"
29/07/2015,http://opendatacommunities.org/id/county-council/surrey,Surrey,http://id.esd.org.uk/service/1465,Council expenditure,16/04/2015,TARGETED INTERVENTION,RUMWONG RESTAURANT,83.65,EDUC VISITS/HOLS/CAMPS/TOYS,"EATING PLACES, RESTAURANTS"
29/07/2015,http://opendatacommunities.org/id/county-council/surrey,Surrey,http://id.esd.org.uk/service/1465,Council expenditure,16/04/2015,CHEYNE WALK COMMUNITY HOME,TESCO STORES 2560,97,EQUIPMENT,"GROCERY STORES, SUPERMARKETS"
29/07/2015,http://opendatacommunities.org/id/county-council/surrey,Surrey,http://id.esd.org.uk/service/1465,Council expenditure,16/04/2015,CHEYNE WALK COMMUNITY HOME,TESCO STORES 2560,72.6,PURCHASE OF FOOD (RAW MATERIALS),"GROCERY STORES, SUPERMARKETS"
29/07/2015,http://opendatacommunities.org/id/county-council/surrey,Surrey,http://id.esd.org.uk/service/1465,Council expenditure,16/04/2015,BURBANK COMMUNITY HOME,HOMEBASE LTD 050,97.82,EDUC VISITS/HOLS/CAMPS/TOYS,"BUILDING MATERIALS, LUMBER STORES"
29/07/2015,http://opendatacommunities.org/id/county-council/surrey,Surrey,http://id.esd.org.uk/service/1465,Council expenditure,16/04/2015,HOPE SERVICE - EAST,AMAZON UK RETAIL,21.61,PURCHASE OF FOOD (RAW MATERIALS),DIRECT MARKETING-OTHER DIRECT MARKETERS/NOT ELSEW.
29/07/2015,http://opendatacommunities.org/id/county-council/surrey,Surrey,http://id.esd.org.uk/service/1465,Council expenditure,16/04/2015,FAIRCROFT COMMUNITY HOME,"AMAZON SVCS EUROPE,SAR",2.95,EQUIPMENT,BOOK STORES
29/07/2015,http://opendatacommunities.org/id/county-council/surrey,Surrey,http://id.esd.org.uk/service/1465,Council expenditure,16/04/2015,CONSERVATION,"AMAZON SVCS EUROPE,SAR",14.8,BOOKS,BOOK STORES
29/07/2015,http://opendatacommunities.org/id/county-council/surrey,Surrey,http://id.esd.org.uk/service/1465,Council expenditure,16/04/2015,HEAD OF CHILDREN'S SERVICE,SURREY CC CARD PAY,12,TRAINING EXPENSES EXTERNAL GENERAL,COMPUTER NETWORK/INFORMATION SERVICES
29/07/2015,http://opendatacommunities.org/id/county-council/surrey,Surrey,http://id.esd.org.uk/service/1465,Council expenditure,16/04/2015,HILLSIDE,SAINSBURYS 0675,47.71,PURCHASE OF FOOD (RAW MATERIALS),"GROCERY STORES, SUPERMARKETS"
29/07/2015,http://opendatacommunities.org/id/county-council/surrey,Surrey,http://id.esd.org.uk/service/1465,Council expenditure,16/04/2015,FAIRCROFT COMMUNITY HOME,PARENTPAY.COM,27,EDUC VISITS/HOLS/CAMPS/TOYS,"COLLEGES, UNIV, PRO SCHOOLS, JUNIOR COLLEGES"
